Workbook

Sheet Inicio CMC2
A23: Descargue la versión Kindle
J32: Miguel Cervantes Jiménez

Sheet Oculto CPCD (hidden)
A1: COBB-DOUGLAS 1 | C1: Recta Presupuestaria | J1: Curva de Indiferencia | M1: REGULARES 1 | O1: Recta Presupuestaria | V1: Curva de Indiferencia | Y1: COMP. PERFECTOS 1 | AB1: Recta Presupuestaria | AD1: Curva de Indiferencia
A2: Unidades | B2: ponderador | C2: x1 | D2: x2 | E2: x1lin | G2: x2lin | I2: Cota | J2: x1 | K2: x2 | M2: Unidades | N2: ponderador | O2: x1 | P2: x2 | Q2: x1lin | S2: x2lin | U2: Cota | V2: x1 | W2: x2 | Y2: Unidades | Z2: ponderador | AB2: x1 | AC2: x2 | AD2: vertice | AE2: x1line | AF2: x2line
A3: 1 | B3: 0 | C3: =('Cobb-Douglas CPCD'!$E$19)*B3 -> 0 | D3: ='Cobb-Douglas CPCD'!$D$14+('Cobb-Douglas CPCD'!$E$14*'Oculto CPCD'!C3) -> 33.33 | E3: =$E$27 -> 16 | F3: =$F$27*B3 -> 0 | G3: =$E$27*'Oculto CPCD'!B3 -> 0 | H3: =$F$27 -> 20 | M3: 1 | N3: 0 | O3: =$P$25/$P$26*N3 -> 0 | P3: =($P$25/$P$27)-(($P$26/$P$27)*O3) -> 3.00 | Q3: =$P$28 -> 50.00 | R3: =$P$29*N3 -> 0 | S3: =Q3*N3 -> 0 | T3: =P$29 -> 2.00 | Y3: 1 | Z3: 0 | AA3: 1.00 | AB3: =$AB$25/$AB$26*Z3 -> 0 | AC3: =$AB$25/$AB$27*AA3 -> 40.00 | AD3: =AB28 -> 28.57 | AE3: =AD3+(($AB$23-AD3)*Z3) -> 28.57 | AF3: =AD3+(($AC$3-AD3)*Z3) -> 28.57
A4: 2 | B4: 0.05 | C4: =('Cobb-Douglas CPCD'!$E$19)*B4 -> 2.00 | D4: ='Cobb-Douglas CPCD'!$D$14+('Cobb-Douglas CPCD'!$E$14*'Oculto CPCD'!C4) -> 31.67 | E4: 16 | F4: 1.00 | G4: =$E$27*'Oculto CPCD'!B4 -> 0.80 | H4: 20 | I4: 0.28 | J4: =$E$27*I4 -> 4.48 | K4: =($F$28/(J4^($E$26)))^(1/$F$26) -> 46.73 | M4: 2 | N4: 0.05 | O4: 7.50 | P4: 2.85 | Q4: =$P$28 -> 50.00 | R4: =$P$29*N4 -> 0.10 | S4: =Q4*N4 -> 2.50 | T4: =P$29 -> 2.00 | U4: =$U$25 -> 0.1 | V4: =O4 -> 7.50 | W4: =$Q$26-LN(V4) -> 3.90 | Y4: 2 | Z4: 0.05 | AA4: 0.95 | AB4: 5.00 | AC4: 38.00 | AD4: =AD3 -> 28.57 | AE4: 32.14 | AF4: 29.14
A5: 3 | B5: 0.10 | C5: =('Cobb-Douglas CPCD'!$E$19)*B5 -> 4.00 | D5: ='Cobb-Douglas CPCD'!$D$14+('Cobb-Douglas CPCD'!$E$14*'Oculto CPCD'!C5) -> 30.00 | E5: 16 | F5: 2.00 | G5: =$E$27*'Oculto CPCD'!B5 -> 1.60 | H5: 20 | I5: 0.36 | J5: 5.76 | K5: 39.52 | M5: 3 | N5: 0.10 | O5: 15.00 | P5: 2.70 | Q5: 50.00 | R5: 0.20 | S5: 5.00 | T5: 2.00 | U5: =U4+$U$25 -> 0.2 | V5: =O5 -> 15.00 | W5: =$Q$26-LN(V5) -> 3.20 | Y5: 3 | Z5: 0.10 | AA5: 0.90 | AB5: 10.00 | AC5: 36.00 | AD5: 28.57 | AE5: 35.71 | AF5: 29.71
A6: 4 | B6: 0.15 | C6: =('Cobb-Douglas CPCD'!$E$19)*B6 -> 6.00 | D6: ='Cobb-Douglas CPCD'!$D$14+('Cobb-Douglas CPCD'!$E$14*'Oculto CPCD'!C6) -> 28.33 | E6: 16 | F6: 3.00 | G6: =$E$27*'Oculto CPCD'!B6 -> 2.40 | H6: 20 | I6: 0.44 | J6: 7.04 | K6: 34.57 | M6: 4 | N6: 0.15 | O6: 22.50 | P6: 2.55 | Q6: 50.00 | R6: 0.30 | S6: 7.50 | T6: 2.00 | U6: 0.3 | V6: 22.50 | W6: 2.80 | Y6: 4 | Z6: 0.15 | AA6: 0.85 | AB6: 15.00 | AC6: 34.00 | AD6: 28.57 | AE6: 39.29 | AF6: 30.29
A7: 5 | B7: 0.20 | C7: =('Cobb-Douglas CPCD'!$E$19)*B7 -> 8.00 | D7: ='Cobb-Douglas CPCD'!$D$14+('Cobb-Douglas CPCD'!$E$14*'Oculto CPCD'!C7) -> 26.67 | E7: 16 | F7: 4.00 | G7: =$E$27*'Oculto CPCD'!B7 -> 3.20 | H7: 20 | I7: 0.52 | J7: 8.32 | K7: 30.93 | M7: 5 | N7: 0.20 | O7: 30.00 | P7: 2.40 | Q7: 50.00 | R7: 0.40 | S7: 10.00 | T7: 2.00 | U7: 0.4 | V7: 30.00 | W7: 2.51 | Y7: 5 | Z7: 0.20 | AA7: 0.80 | AB7: 20.00 | AC7: 32.00 | AD7: 28.57 | AE7: 42.86 | AF7: 30.86
A8: 6 | B8: 0.25 | C8: =('Cobb-Douglas CPCD'!$E$19)*B8 -> 10.00 | D8: ='Cobb-Douglas CPCD'!$D$14+('Cobb-Douglas CPCD'!$E$14*'Oculto CPCD'!C8) -> 25.00 | E8: 16 | F8: 5.00 | G8: =$E$27*'Oculto CPCD'!B8 -> 4.00 | H8: 20 | I8: 0.6 | J8: 9.60 | K8: 28.11 | M8: 6 | N8: 0.25 | O8: 37.50 | P8: 2.25 | Q8: 50.00 | R8: 0.50 | S8: 12.50 | T8: 2.00 | U8: 0.5 | V8: 37.50 | W8: 2.29 | Y8: 6 | Z8: 0.25 | AA8: 0.75 | AB8: 25.00 | AC8: 30.00 | AD8: 28.57 | AE8: 46.43 | AF8: 31.43
A9: 7 | B9: 0.30 | C9: =('Cobb-Douglas CPCD'!$E$19)*B9 -> 12.00 | D9: ='Cobb-Douglas CPCD'!$D$14+('Cobb-Douglas CPCD'!$E$14*'Oculto CPCD'!C9) -> 23.33 | E9: 16 | F9: 6.00 | G9: =$E$27*'Oculto CPCD'!B9 -> 4.80 | H9: 20 | I9: 0.68 | J9: 10.88 | K9: 25.86 | M9: 7 | N9: 0.30 | O9: 45.00 | P9: 2.10 | Q9: 50.00 | R9: 0.60 | S9: 15.00 | T9: 2.00 | U9: 0.6 | V9: 45.00 | W9: 2.11 | Y9: 7 | Z9: 0.30 | AA9: 0.70 | AB9: 30.00 | AC9: 28.00 | AD9: 28.57 | AE9: 50.00 | AF9: 32.00
A10: 8 | B10: 0.35 | C10: =('Cobb-Douglas CPCD'!$E$19)*B10 -> 14.00 | D10: ='Cobb-Douglas CPCD'!$D$14+('Cobb-Douglas CPCD'!$E$14*'Oculto CPCD'!C10) -> 21.67 | E10: 16 | F10: 7.00 | G10: =$E$27*'Oculto CPCD'!B10 -> 5.60 | H10: 20 | I10: 0.76 | J10: 12.16 | K10: 24.02 | M10: 8 | N10: 0.35 | O10: 52.50 | P10: 1.95 | Q10: 50.00 | R10: 0.70 | S10: 17.50 | T10: 2.00 | U10: 0.7 | V10: 52.50 | W10: 1.95 | Y10: 8 | Z10: 0.35 | AA10: 0.65 | AB10: 35.00 | AC10: 26.00 | AD10: 28.57 | AE10: 53.57 | AF10: 32.57
A11: 9 | B11: 0.40 | C11: =('Cobb-Douglas CPCD'!$E$19)*B11 -> 16.00 | D11: ='Cobb-Douglas CPCD'!$D$14+('Cobb-Douglas CPCD'!$E$14*'Oculto CPCD'!C11) -> 20.00 | E11: 16 | F11: 8.00 | G11: =$E$27*'Oculto CPCD'!B11 -> 6.40 | H11: 20 | I11: 0.84 | J11: 13.44 | K11: 22.47 | M11: 9 | N11: 0.40 | O11: 60.00 | P11: 1.80 | Q11: 50.00 | R11: 0.80 | S11: 20.00 | T11: 2.00 | U11: 0.8 | V11: 60.00 | W11: 1.82 | Y11: 9 | Z11: 0.40 | AA11: 0.60 | AB11: 40.00 | AC11: 24.00 | AD11: 28.57 | AE11: 57.14 | AF11: 33.14
A12: 10 | B12: 0.45 | C12: =('Cobb-Douglas CPCD'!$E$19)*B12 -> 18.00 | D12: ='Cobb-Douglas CPCD'!$D$14+('Cobb-Douglas CPCD'!$E$14*'Oculto CPCD'!C12) -> 18.33 | E12: 16 | F12: 9.00 | G12: =$E$27*'Oculto CPCD'!B12 -> 7.20 | H12: 20 | I12: 0.92 | J12: 14.72 | K12: 21.14 | M12: 10 | N12: 0.45 | O12: 67.50 | P12: 1.65 | Q12: 50.00 | R12: 0.90 | S12: 22.50 | T12: 2.00 | U12: 0.9 | V12: 67.50 | W12: 1.70 | Y12: 10 | Z12: 0.45 | AA12: 0.55 | AB12: 45.00 | AC12: 22.00 | AD12: 28.57 | AE12: 60.71 | AF12: 33.71
A13: 11 | B13: 0.50 | C13: =('Cobb-Douglas CPCD'!$E$19)*B13 -> 20.00 | D13: ='Cobb-Douglas CPCD'!$D$14+('Cobb-Douglas CPCD'!$E$14*'Oculto CPCD'!C13) -> 16.67 | E13: 16 | F13: 10.00 | G13: =$E$27*'Oculto CPCD'!B13 -> 8.00 | H13: 20 | I13: 1 | J13: 16.00 | K13: 20.00 | M13: 11 | N13: 0.50 | O13: 75.00 | P13: 1.50 | Q13: 50.00 | R13: 1.00 | S13: 25.00 | T13: 2.00 | U13: 1 | V13: 75.00 | W13: 1.59 | Y13: 11 | Z13: 0.50 | AA13: 0.50 | AB13: 50.00 | AC13: 20.00 | AD13: 28.57 | AE13: 64.29 | AF13: 34.29
A14: 12 | B14: 0.55 | C14: =('Cobb-Douglas CPCD'!$E$19)*B14 -> 22.00 | D14: ='Cobb-Douglas CPCD'!$D$14+('Cobb-Douglas CPCD'!$E$14*'Oculto CPCD'!C14) -> 15.00 | E14: 16 | F14: 11.00 | G14: =$E$27*'Oculto CPCD'!B14 -> 8.80 | H14: 20 | I14: 1.08 | J14: 17.28 | K14: 19.00 | M14: 12 | N14: 0.55 | O14: 82.50 | P14: 1.35 | Q14: 50.00 | R14: 1.10 | S14: 27.50 | T14: 2.00 | U14: =U13+$U$25 -> 1.1 | V14: 82.50 | W14: 1.50 | Y14: 12 | Z14: 0.55 | AA14: 0.45 | AB14: 55.00 | AC14: 18.00 | AD14: 28.57 | AE14: 67.86 | AF14: 34.86
A15: 13 | B15: 0.60 | C15: =('Cobb-Douglas CPCD'!$E$19)*B15 -> 24.00 | D15: ='Cobb-Douglas CPCD'!$D$14+('Cobb-Douglas CPCD'!$E$14*'Oculto CPCD'!C15) -> 13.33 | E15: 16 | F15: 12.00 | G15: =$E$27*'Oculto CPCD'!B15 -> 9.60 | H15: 20 | I15: 1.16 | J15: 18.56 | K15: 18.12 | M15: 13 | N15: 0.60 | O15: 90.00 | P15: 1.20 | Q15: 50.00 | R15: 1.20 | S15: 30.00 | T15: 2.00 | U15: 1.2 | V15: 90.00 | W15: 1.41 | Y15: 13 | Z15: 0.60 | AA15: 0.40 | AB15: 60.00 | AC15: 16.00 | AD15: 28.57 | AE15: 71.43 | AF15: 35.43
A16: 14 | B16: 0.65 | C16: =('Cobb-Douglas CPCD'!$E$19)*B16 -> 26.00 | D16: ='Cobb-Douglas CPCD'!$D$14+('Cobb-Douglas CPCD'!$E$14*'Oculto CPCD'!C16) -> 11.67 | E16: 16 | F16: 13.00 | G16: =$E$27*'Oculto CPCD'!B16 -> 10.40 | H16: 20 | I16: 1.24 | J16: 19.84 | K16: 17.33 | M16: 14 | N16: 0.65 | O16: 97.50 | P16: 1.05 | Q16: 50.00 | R16: 1.30 | S16: 32.50 | T16: 2.00 | U16: 1.3 | V16: 97.50 | W16: 1.33 | Y16: 14 | Z16: 0.65 | AA16: 0.35 | AB16: 65.00 | AC16: 14.00 | AD16: 28.57 | AE16: 75.00 | AF16: 36.00
A17: 15 | B17: 0.70 | C17: =('Cobb-Douglas CPCD'!$E$19)*B17 -> 28.00 | D17: ='Cobb-Douglas CPCD'!$D$14+('Cobb-Douglas CPCD'!$E$14*'Oculto CPCD'!C17) -> 10.00 | E17: 16 | F17: 14.00 | G17: =$E$27*'Oculto CPCD'!B17 -> 11.20 | H17: 20 | I17: 1.32 | J17: 21.12 | K17: 16.62 | M17: 15 | N17: 0.70 | O17: 105.00 | P17: 0.90 | Q17: 50.00 | R17: 1.40 | S17: 35.00 | T17: 2.00 | U17: 1.4 | V17: 105.00 | W17: 1.26 | Y17: 15 | Z17: 0.70 | AA17: 0.30 | AB17: 70.00 | AC17: 12.00 | AD17: 28.57 | AE17: 78.57 | AF17: 36.57
A18: 16 | B18: 0.75 | C18: =('Cobb-Douglas CPCD'!$E$19)*B18 -> 30.00 | D18: ='Cobb-Douglas CPCD'!$D$14+('Cobb-Douglas CPCD'!$E$14*'Oculto CPCD'!C18) -> 8.33 | E18: 16 | F18: 15.00 | G18: =$E$27*'Oculto CPCD'!B18 -> 12.00 | H18: 20 | I18: 1.4 | J18: 22.40 | K18: 15.98 | M18: 16 | N18: 0.75 | O18: 112.50 | P18: 0.75 | Q18: 50.00 | R18: 1.50 | S18: 37.50 | T18: 2.00 | U18: 1.5 | V18: 112.50 | W18: 1.19 | Y18: 16 | Z18: 0.75 | AA18: 0.25 | AB18: 75.00 | AC18: 10.00 | AD18: 28.57 | AE18: 82.14 | AF18: 37.14
A19: 17 | B19: 0.80 | C19: =('Cobb-Douglas CPCD'!$E$19)*B19 -> 32.00 | D19: ='Cobb-Douglas CPCD'!$D$14+('Cobb-Douglas CPCD'!$E$14*'Oculto CPCD'!C19) -> 6.67 | E19: 16 | F19: 16.00 | G19: =$E$27*'Oculto CPCD'!B19 -> 12.80 | H19: 20 | I19: 1.48 | J19: 23.68 | K19: 15.40 | M19: 17 | N19: 0.80 | O19: 120.00 | P19: 0.60 | Q19: 50.00 | R19: 1.60 | S19: 40.00 | T19: 2.00 | U19: 1.6 | V19: 120.00 | W19: 1.12 | Y19: 17 | Z19: 0.80 | AA19: 0.20 | AB19: 80.00 | AC19: 8.00 | AD19: 28.57 | AE19: 85.71 | AF19: 37.71
A20: 18 | B20: 0.85 | C20: =('Cobb-Douglas CPCD'!$E$19)*B20 -> 34.00 | D20: ='Cobb-Douglas CPCD'!$D$14+('Cobb-Douglas CPCD'!$E$14*'Oculto CPCD'!C20) -> 5.00 | E20: 16 | F20: 17.00 | G20: =$E$27*'Oculto CPCD'!B20 -> 13.60 | H20: 20 | I20: 1.56 | J20: 24.96 | K20: 14.87 | M20: 18 | N20: 0.85 | O20: 127.50 | P20: 0.45 | Q20: 50.00 | R20: 1.70 | S20: 42.50 | T20: 2.00 | U20: 1.7 | V20: 127.50 | W20: 1.06 | Y20: 18 | Z20: 0.85 | AA20: 0.15 | AB20: 85.00 | AC20: 6.00 | AD20: 28.57 | AE20: 89.29 | AF20: 38.29
A21: 19 | B21: 0.90 | C21: =('Cobb-Douglas CPCD'!$E$19)*B21 -> 36.00 | D21: ='Cobb-Douglas CPCD'!$D$14+('Cobb-Douglas CPCD'!$E$14*'Oculto CPCD'!C21) -> 3.33 | E21: 16 | F21: 18.00 | G21: =$E$27*'Oculto CPCD'!B21 -> 14.40 | H21: 20 | I21: 1.64 | J21: 26.24 | K21: 14.38 | M21: 19 | N21: 0.90 | O21: 135.00 | P21: 0.30 | Q21: 50.00 | R21: 1.80 | S21: 45.00 | T21: 2.00 | U21: 1.8 | V21: 135.00 | W21: 1.01 | Y21: 19 | Z21: 0.90 | AA21: 0.10 | AB21: 90.00 | AC21: 4.00 | AD21: 28.57 | AE21: 92.86 | AF21: 38.86
A22: 20 | B22: 0.95 | C22: =('Cobb-Douglas CPCD'!$E$19)*B22 -> 38.00 | D22: ='Cobb-Douglas CPCD'!$D$14+('Cobb-Douglas CPCD'!$E$14*'Oculto CPCD'!C22) -> 1.67 | E22: 16 | F22: 19.00 | G22: =$E$27*'Oculto CPCD'!B22 -> 15.20 | H22: 20 | I22: 1.72 | J22: 27.52 | K22: 13.93 | M22: 20 | N22: 0.95 | O22: 142.50 | P22: 0.15 | Q22: 50.00 | R22: 1.90 | S22: 47.50 | T22: 2.00 | U22: 1.9 | V22: 142.50 | W22: 0.95 | Y22: 20 | Z22: 0.95 | AA22: 0.05 | AB22: 95.00 | AC22: 2.00 | AD22: 28.57 | AE22: 96.43 | AF22: 39.43
A23: 21 | B23: 1.00 | C23: =('Cobb-Douglas CPCD'!$E$19)*B23 -> 40.00 | D23: ='Cobb-Douglas CPCD'!$D$14+('Cobb-Douglas CPCD'!$E$14*'Oculto CPCD'!C23) -> 0 | E23: 16 | F23: 20.00 | G23: =$E$27*'Oculto CPCD'!B23 -> 16.00 | H23: 20 | I23: 1.8 | J23: 28.80 | K23: 13.52 | M23: 21 | N23: 1.00 | O23: 150.00 | P23: 0 | Q23: 50.00 | R23: 2.00 | S23: 50.00 | T23: 2.00 | U23: 2 | V23: 150.00 | W23: 0.90 | Y23: 21 | Z23: 1.00 | AA23: 0 | AB23: 100.00 | AC23: 0 | AD23: 28.57 | AE23: 100.00 | AF23: 40.00
E25: x1 | F25: x2 | O25: m | P25: ='Regulares CPCD'!$C$7 -> 300.00 | Q25: k | U25: =1/10 -> 0.1 | AA25: m | AB25: ='CompPerf CPCD'!C7 -> 200
E26: ='Cobb-Douglas CPCD'!$D$25 -> 0.4 | F26: ='Cobb-Douglas CPCD'!$F$25 -> 0.6 | O26: p1 | P26: ='Regulares CPCD'!D7 -> 2 | Q26: =LN(P28)+P29 -> 5.91 | AA26: p1 | AB26: ='CompPerf CPCD'!D7 -> 2
E27: ='Cobb-Douglas CPCD'!$D$25*('Cobb-Douglas CPCD'!$C$7/'Cobb-Douglas CPCD'!$D$7) -> 16 | F27: ='Cobb-Douglas CPCD'!$F$25*('Cobb-Douglas CPCD'!$C$7/'Cobb-Douglas CPCD'!$F$7) -> 20 | O27: p2 | P27: ='Regulares CPCD'!F7 -> 100 | AA27: p2 | AB27: ='CompPerf CPCD'!F7 -> 5
F28: =(E27^(E26))*(F27^(F26)) -> 18.29220208 | O28: x1* | P28: =P27/P26 -> 50.00 | AA28: x1 | AB28: =AB25/(AB27+AB26) -> 28.57142857
O29: x2* | P29: =P25/P27-1 -> 2.00 | AA29: x2 | AB29: =AB28 -> 28.57142857
A30: COBB-DOUGLAS 2 | C30: Recta Presupuestaria | J30: Curva de Indiferencia
A31: Unidades | B31: ponderador | C31: x1 | D31: x2 | E31: x3lin | G31: x4lin | I31: Cota | J31: x1 | K31: x2
A32: 1 | B32: 0 | C32: ='Cobb-Douglas CPCD'!$F$19*B32 -> 0 | D32: ='Cobb-Douglas CPCD'!$D$15+('Cobb-Douglas CPCD'!$E$15*'Oculto CPCD'!C32) -> 33.33 | E32: =$E$56 -> 16 | F32: =$F$56*B32 -> 0 | G32: =$E$56*'Oculto CPCD'!B32 -> 0 | H32: =$F$56 -> 20
A33: 2 | B33: 0.05 | C33: ='Cobb-Douglas CPCD'!$F$19*B33 -> 2.00 | D33: ='Cobb-Douglas CPCD'!$D$15+('Cobb-Douglas CPCD'!$E$15*'Oculto CPCD'!C33) -> 31.67 | E33: 16 | F33: 1.00 | G33: =$E$56*'Oculto CPCD'!B33 -> 0.80 | H33: 20 | I33: 0.28 | J33: =$E$56*I33 -> 4.48 | K33: =($F$57/(J33^($E$55)))^(1/$F$55) -> 46.73 | M33: REGULARES 2 | O33: Recta Presupuestaria | V33: Curva de Indiferencia | Y33: COMP. PERFECTOS 2 | AB33: Recta Presupuestaria | AD33: Curva de Indiferencia
A34: 3 | B34: 0.10 | C34: ='Cobb-Douglas CPCD'!$F$19*B34 -> 4.00 | D34: ='Cobb-Douglas CPCD'!$D$15+('Cobb-Douglas CPCD'!$E$15*'Oculto CPCD'!C34) -> 30.00 | E34: 16 | F34: 2.00 | G34: =$E$56*'Oculto CPCD'!B34 -> 1.60 | H34: 20 | I34: 0.36 | J34: 5.76 | K34: 39.52 | M34: Unidades | N34: ponderador | O34: x1 | P34: x2 | Q34: x1lin | S34: x2lin | U34: Cota | V34: x1 | W34: x2 | Y34: Unidades | Z34: ponderador | AB34: x1 | AC34: x2 | AD34: vertice | AE34: x1line | AF34: x2line
A35: 4 | B35: 0.15 | C35: ='Cobb-Douglas CPCD'!$F$19*B35 -> 6.00 | D35: ='Cobb-Douglas CPCD'!$D$15+('Cobb-Douglas CPCD'!$E$15*'Oculto CPCD'!C35) -> 28.33 | E35: 16 | F35: 3.00 | G35: =$E$56*'Oculto CPCD'!B35 -> 2.40 | H35: 20 | I35: 0.44 | J35: 7.04 | K35: 34.57 | M35: 1 | N35: 0 | O35: =$P$57/$P$58*N35 -> 0 | P35: =($P$57/$P$59)-(($P$58/$P$59)*O35) -> 3.00 | Q35: =$P$60 -> 50.00 | R35: =$P$61*N35 -> 0 | S35: =Q35*N35 -> 0 | T35: =$P$61 -> 2.00 | Y35: 1 | Z35: 0 | AA35: 1.00 | AB35: =$AB$57/$AB$58*Z35 -> 0 | AC35: =$AB$25/$AB$27*AA35 -> 40.00 | AD35: =AB60 -> 28.57 | AE35: =AD35+(($AB$23-AD35)*Z35) -> 28.57 | AF35: =AD35+(($AC$3-AD35)*Z35) -> 28.57
A36: 5 | B36: 0.20 | C36: ='Cobb-Douglas CPCD'!$F$19*B36 -> 8.00 | D36: ='Cobb-Douglas CPCD'!$D$15+('Cobb-Douglas CPCD'!$E$15*'Oculto CPCD'!C36) -> 26.67 | E36: 16 | F36: 4.00 | G36: =$E$56*'Oculto CPCD'!B36 -> 3.20 | H36: 20 | I36: 0.52 | J36: 8.32 | K36: 30.93 | M36: 2 | N36: 0.05 | O36: 7.50 | P36: 2.85 | Q36: =$P$60 -> 50.00 | R36: =$P$61*N36 -> 0.10 | S36: =Q36*N36 -> 2.50 | T36: =$P$61 -> 2.00 | U36: =$U$25 -> 0.1 | V36: =O36 -> 7.50 | W36: =$Q$58-LN(V36) -> 3.90 | Y36: 2 | Z36: 0.05 | AA36: 0.95 | AB36: 5.00 | AC36: 38.00 | AD36: =AD35 -> 28.57 | AE36: 32.14 | AF36: 29.14
A37: 6 | B37: 0.25 | C37: ='Cobb-Douglas CPCD'!$F$19*B37 -> 10.00 | D37: ='Cobb-Douglas CPCD'!$D$15+('Cobb-Douglas CPCD'!$E$15*'Oculto CPCD'!C37) -> 25.00 | E37: 16 | F37: 5.00 | G37: =$E$56*'Oculto CPCD'!B37 -> 4.00 | H37: 20 | I37: 0.6 | J37: 9.60 | K37: 28.11 | M37: 3 | N37: 0.10 | O37: 15.00 | P37: 2.70 | Q37: 50.00 | R37: 0.20 | S37: 5.00 | T37: 2.00 | U37: =U36+$U$25 -> 0.2 | V37: =O37 -> 15.00 | W37: =$Q$58-LN(V37) -> 3.20 | Y37: 3 | Z37: 0.10 | AA37: 0.90 | AB37: 10.00 | AC37: 36.00 | AD37: 28.57 | AE37: 35.71 | AF37: 29.71
A38: 7 | B38: 0.30 | C38: ='Cobb-Douglas CPCD'!$F$19*B38 -> 12.00 | D38: ='Cobb-Douglas CPCD'!$D$15+('Cobb-Douglas CPCD'!$E$15*'Oculto CPCD'!C38) -> 23.33 | E38: 16 | F38: 6.00 | G38: =$E$56*'Oculto CPCD'!B38 -> 4.80 | H38: 20 | I38: 0.68 | J38: 10.88 | K38: 25.86 | M38: 4 | N38: 0.15 | O38: 22.50 | P38: 2.55 | Q38: 50.00 | R38: 0.30 | S38: 7.50 | T38: 2.00 | U38: 0.3 | V38: 22.50 | W38: 2.80 | Y38: 4 | Z38: 0.15 | AA38: 0.85 | AB38: 15.00 | AC38: 34.00 | AD38: 28.57 | AE38: 39.29 | AF38: 30.29
A39: 8 | B39: 0.35 | C39: ='Cobb-Douglas CPCD'!$F$19*B39 -> 14.00 | D39: ='Cobb-Douglas CPCD'!$D$15+('Cobb-Douglas CPCD'!$E$15*'Oculto CPCD'!C39) -> 21.67 | E39: 16 | F39: 7.00 | G39: =$E$56*'Oculto CPCD'!B39 -> 5.60 | H39: 20 | I39: 0.76 | J39: 12.16 | K39: 24.02 | M39: 5 | N39: 0.20 | O39: 30.00 | P39: 2.40 | Q39: 50.00 | R39: 0.40 | S39: 10.00 | T39: 2.00 | U39: 0.4 | V39: 30.00 | W39: 2.51 | Y39: 5 | Z39: 0.20 | AA39: 0.80 | AB39: 20.00 | AC39: 32.00 | AD39: 28.57 | AE39: 42.86 | AF39: 30.86
A40: 9 | B40: 0.40 | C40: ='Cobb-Douglas CPCD'!$F$19*B40 -> 16.00 | D40: ='Cobb-Douglas CPCD'!$D$15+('Cobb-Douglas CPCD'!$E$15*'Oculto CPCD'!C40) -> 20.00 | E40: 16 | F40: 8.00 | G40: =$E$56*'Oculto CPCD'!B40 -> 6.40 | H40: 20 | I40: 0.84 | J40: 13.44 | K40: 22.47 | M40: 6 | N40: 0.25 | O40: 37.50 | P40: 2.25 | Q40: 50.00 | R40: 0.50 | S40: 12.50 | T40: 2.00 | U40: 0.5 | V40: 37.50 | W40: 2.29 | Y40: 6 | Z40: 0.25 | AA40: 0.75 | AB40: 25.00 | AC40: 30.00 | AD40: 28.57 | AE40: 46.43 | AF40: 31.43
A41: 10 | B41: 0.45 | C41: ='Cobb-Douglas CPCD'!$F$19*B41 -> 18.00 | D41: ='Cobb-Douglas CPCD'!$D$15+('Cobb-Douglas CPCD'!$E$15*'Oculto CPCD'!C41) -> 18.33 | E41: 16 | F41: 9.00 | G41: =$E$56*'Oculto CPCD'!B41 -> 7.20 | H41: 20 | I41: 0.92 | J41: 14.72 | K41: 21.14 | M41: 7 | N41: 0.30 | O41: 45.00 | P41: 2.10 | Q41: 50.00 | R41: 0.60 | S41: 15.00 | T41: 2.00 | U41: 0.6 | V41: 45.00 | W41: 2.11 | Y41: 7 | Z41: 0.30 | AA41: 0.70 | AB41: 30.00 | AC41: 28.00 | AD41: 28.57 | AE41: 50.00 | AF41: 32.00
A42: 11 | B42: 0.50 | C42: ='Cobb-Douglas CPCD'!$F$19*B42 -> 20.00 | D42: ='Cobb-Douglas CPCD'!$D$15+('Cobb-Douglas CPCD'!$E$15*'Oculto CPCD'!C42) -> 16.67 | E42: 16 | F42: 10.00 | G42: =$E$56*'Oculto CPCD'!B42 -> 8.00 | H42: 20 | I42: 1 | J42: 16.00 | K42: 20.00 | M42: 8 | N42: 0.35 | O42: 52.50 | P42: 1.95 | Q42: 50.00 | R42: 0.70 | S42: 17.50 | T42: 2.00 | U42: 0.7 | V42: 52.50 | W42: 1.95 | Y42: 8 | Z42: 0.35 | AA42: 0.65 | AB42: 35.00 | AC42: 26.00 | AD42: 28.57 | AE42: 53.57 | AF42: 32.57
A43: 12 | B43: 0.55 | C43: ='Cobb-Douglas CPCD'!$F$19*B43 -> 22.00 | D43: ='Cobb-Douglas CPCD'!$D$15+('Cobb-Douglas CPCD'!$E$15*'Oculto CPCD'!C43) -> 15.00 | E43: 16 | F43: 11.00 | G43: =$E$56*'Oculto CPCD'!B43 -> 8.80 | H43: 20 | I43: 1.08 | J43: 17.28 | K43: 19.00 | M43: 9 | N43: 0.40 | O43: 60.00 | P43: 1.80 | Q43: 50.00 | R43: 0.80 | S43: 20.00 | T43: 2.00 | U43: 0.8 | V43: 60.00 | W43: 1.82 | Y43: 9 | Z43: 0.40 | AA43: 0.60 | AB43: 40.00 | AC43: 24.00 | AD43: 28.57 | AE43: 57.14 | AF43: 33.14
A44: 13 | B44: 0.60 | C44: ='Cobb-Douglas CPCD'!$F$19*B44 -> 24.00 | D44: ='Cobb-Douglas CPCD'!$D$15+('Cobb-Douglas CPCD'!$E$15*'Oculto CPCD'!C44) -> 13.33 | E44: 16 | F44: 12.00 | G44: =$E$56*'Oculto CPCD'!B44 -> 9.60 | H44: 20 | I44: 1.16 | J44: 18.56 | K44: 18.12 | M44: 10 | N44: 0.45 | O44: 67.50 | P44: 1.65 | Q44: 50.00 | R44: 0.90 | S44: 22.50 | T44: 2.00 | U44: 0.9 | V44: 67.50 | W44: 1.70 | Y44: 10 | Z44: 0.45 | AA44: 0.55 | AB44: 45.00 | AC44: 22.00 | AD44: 28.57 | AE44: 60.71 | AF44: 33.71
A45: 14 | B45: 0.65 | C45: ='Cobb-Douglas CPCD'!$F$19*B45 -> 26.00 | D45: ='Cobb-Douglas CPCD'!$D$15+('Cobb-Douglas CPCD'!$E$15*'Oculto CPCD'!C45) -> 11.67 | E45: 16 | F45: 13.00 | G45: =$E$56*'Oculto CPCD'!B45 -> 10.40 | H45: 20 | I45: 1.24 | J45: 19.84 | K45: 17.33 | M45: 11 | N45: 0.50 | O45: 75.00 | P45: 1.50 | Q45: 50.00 | R45: 1.00 | S45: 25.00 | T45: 2.00 | U45: 1 | V45: 75.00 | W45: 1.59 | Y45: 11 | Z45: 0.50 | AA45: 0.50 | AB45: 50.00 | AC45: 20.00 | AD45: 28.57 | AE45: 64.29 | AF45: 34.29
A46: 15 | B46: 0.70 | C46: ='Cobb-Douglas CPCD'!$F$19*B46 -> 28.00 | D46: ='Cobb-Douglas CPCD'!$D$15+('Cobb-Douglas CPCD'!$E$15*'Oculto CPCD'!C46) -> 10.00 | E46: 16 | F46: 14.00 | G46: =$E$56*'Oculto CPCD'!B46 -> 11.20 | H46: 20 | I46: 1.32 | J46: 21.12 | K46: 16.62 | M46: 12 | N46: 0.55 | O46: 82.50 | P46: 1.35 | Q46: 50.00 | R46: 1.10 | S46: 27.50 | T46: 2.00 | U46: =U45+$U$25 -> 1.1 | V46: 82.50 | W46: 1.50 | Y46: 12 | Z46: 0.55 | AA46: 0.45 | AB46: 55.00 | AC46: 18.00 | AD46: 28.57 | AE46: 67.86 | AF46: 34.86
A47: 16 | B47: 0.75 | C47: ='Cobb-Douglas CPCD'!$F$19*B47 -> 30.00 | D47: ='Cobb-Douglas CPCD'!$D$15+('Cobb-Douglas CPCD'!$E$15*'Oculto CPCD'!C47) -> 8.33 | E47: 16 | F47: 15.00 | G47: =$E$56*'Oculto CPCD'!B47 -> 12.00 | H47: 20 | I47: 1.4 | J47: 22.40 | K47: 15.98 | M47: 13 | N47: 0.60 | O47: 90.00 | P47: 1.20 | Q47: 50.00 | R47: 1.20 | S47: 30.00 | T47: 2.00 | U47: 1.2 | V47: 90.00 | W47: 1.41 | Y47: 13 | Z47: 0.60 | AA47: 0.40 | AB47: 60.00 | AC47: 16.00 | AD47: 28.57 | AE47: 71.43 | AF47: 35.43
A48: 17 | B48: 0.80 | C48: ='Cobb-Douglas CPCD'!$F$19*B48 -> 32.00 | D48: ='Cobb-Douglas CPCD'!$D$15+('Cobb-Douglas CPCD'!$E$15*'Oculto CPCD'!C48) -> 6.67 | E48: 16 | F48: 16.00 | G48: =$E$56*'Oculto CPCD'!B48 -> 12.80 | H48: 20 | I48: 1.48 | J48: 23.68 | K48: 15.40 | M48: 14 | N48: 0.65 | O48: 97.50 | P48: 1.05 | Q48: 50.00 | R48: 1.30 | S48: 32.50 | T48: 2.00 | U48: 1.3 | V48: 97.50 | W48: 1.33 | Y48: 14 | Z48: 0.65 | AA48: 0.35 | AB48: 65.00 | AC48: 14.00 | AD48: 28.57 | AE48: 75.00 | AF48: 36.00
A49: 18 | B49: 0.85 | C49: ='Cobb-Douglas CPCD'!$F$19*B49 -> 34.00 | D49: ='Cobb-Douglas CPCD'!$D$15+('Cobb-Douglas CPCD'!$E$15*'Oculto CPCD'!C49) -> 5.00 | E49: 16 | F49: 17.00 | G49: =$E$56*'Oculto CPCD'!B49 -> 13.60 | H49: 20 | I49: 1.56 | J49: 24.96 | K49: 14.87 | M49: 15 | N49: 0.70 | O49: 105.00 | P49: 0.90 | Q49: 50.00 | R49: 1.40 | S49: 35.00 | T49: 2.00 | U49: 1.4 | V49: 105.00 | W49: 1.26 | Y49: 15 | Z49: 0.70 | AA49: 0.30 | AB49: 70.00 | AC49: 12.00 | AD49: 28.57 | AE49: 78.57 | AF49: 36.57
A50: 19 | B50: 0.90 | C50: ='Cobb-Douglas CPCD'!$F$19*B50 -> 36.00 | D50: ='Cobb-Douglas CPCD'!$D$15+('Cobb-Douglas CPCD'!$E$15*'Oculto CPCD'!C50) -> 3.33 | E50: 16 | F50: 18.00 | G50: =$E$56*'Oculto CPCD'!B50 -> 14.40 | H50: 20 | I50: 1.64 | J50: 26.24 | K50: 14.38 | M50: 16 | N50: 0.75 | O50: 112.50 | P50: 0.75 | Q50: 50.00 | R50: 1.50 | S50: 37.50 | T50: 2.00 | U50: 1.5 | V50: 112.50 | W50: 1.19 | Y50: 16 | Z50: 0.75 | AA50: 0.25 | AB50: 75.00 | AC50: 10.00 | AD50: 28.57 | AE50: 82.14 | AF50: 37.14
A51: 20 | B51: 0.95 | C51: ='Cobb-Douglas CPCD'!$F$19*B51 -> 38.00 | D51: ='Cobb-Douglas CPCD'!$D$15+('Cobb-Douglas CPCD'!$E$15*'Oculto CPCD'!C51) -> 1.67 | E51: 16 | F51: 19.00 | G51: =$E$56*'Oculto CPCD'!B51 -> 15.20 | H51: 20 | I51: 1.72 | J51: 27.52 | K51: 13.93 | M51: 17 | N51: 0.80 | O51: 120.00 | P51: 0.60 | Q51: 50.00 | R51: 1.60 | S51: 40.00 | T51: 2.00 | U51: 1.6 | V51: 120.00 | W51: 1.12 | Y51: 17 | Z51: 0.80 | AA51: 0.20 | AB51: 80.00 | AC51: 8.00 | AD51: 28.57 | AE51: 85.71 | AF51: 37.71
A52: 21 | B52: 1.00 | C52: ='Cobb-Douglas CPCD'!$F$19*B52 -> 40.00 | D52: ='Cobb-Douglas CPCD'!$D$15+('Cobb-Douglas CPCD'!$E$15*'Oculto CPCD'!C52) -> 0 | E52: 16 | F52: 20.00 | G52: =$E$56*'Oculto CPCD'!B52 -> 16.00 | H52: 20 | I52: 1.8 | J52: 28.80 | K52: 13.52 | M52: 18 | N52: 0.85 | O52: 127.50 | P52: 0.45 | Q52: 50.00 | R52: 1.70 | S52: 42.50 | T52: 2.00 | U52: 1.7 | V52: 127.50 | W52: 1.06 | Y52: 18 | Z52: 0.85 | AA52: 0.15 | AB52: 85.00 | AC52: 6.00 | AD52: 28.57 | AE52: 89.29 | AF52: 38.29
M53: 19 | N53: 0.90 | O53: 135.00 | P53: 0.30 | Q53: 50.00 | R53: 1.80 | S53: 45.00 | T53: 2.00 | U53: 1.8 | V53: 135.00 | W53: 1.01 | Y53: 19 | Z53: 0.90 | AA53: 0.10 | AB53: 90.00 | AC53: 4.00 | AD53: 28.57 | AE53: 92.86 | AF53: 38.86
E54: x1 | F54: x2 | M54: 20 | N54: 0.95 | O54: 142.50 | P54: 0.15 | Q54: 50.00 | R54: 1.90 | S54: 47.50 | T54: 2.00 | U54: 1.9 | V54: 142.50 | W54: 0.95 | Y54: 20 | Z54: 0.95 | AA54: 0.05 | AB54: 95.00 | AC54: 2.00 | AD54: 28.57 | AE54: 96.43 | AF54: 39.43
E55: ='Cobb-Douglas CPCD'!$D$26 -> 0.4 | F55: ='Cobb-Douglas CPCD'!$F$26 -> 0.6 | M55: 21 | N55: 1.00 | O55: 150.00 | P55: 0 | Q55: 50.00 | R55: 2.00 | S55: 50.00 | T55: 2.00 | U55: 2 | V55: 150.00 | W55: 0.90 | Y55: 21 | Z55: 1.00 | AA55: 0 | AB55: 100.00 | AC55: 0 | AD55: 28.57 | AE55: 100.00 | AF55: 40.00
E56: ='Cobb-Douglas CPCD'!$D$26*('Cobb-Douglas CPCD'!F19) -> 16 | F56: ='Cobb-Douglas CPCD'!$F$26*('Cobb-Douglas CPCD'!F20) -> 20
F57: =(E56^(E55))*(F56^(F55)) -> 18.29220208 | O57: m | P57: ='Regulares CPCD'!C8 -> 300.00 | Q57: k | U57: =1/10 -> 0.1 | AA57: m | AB57: =AB25 -> 200
O58: p1 | P58: ='Regulares CPCD'!D8 -> 2 | Q58: =LN(P60)+P61 -> 5.91 | AA58: p1 | AB58: ='CompPerf CPCD'!D8 -> 2
A59: COBB-DOUGLAS 3 | C59: Recta Presupuestaria | J59: Curva de Indiferencia | O59: p2 | P59: ='Regulares CPCD'!F8 -> 100 | AA59: p2 | AB59: =AB27 -> 5
A60: Unidades | B60: ponderador | C60: x1 | D60: x2 | E60: x5lin | G60: x6lin | I60: Cota | J60: x1 | K60: x2 | O60: x1* | P60: =P59/P58 -> 50.00 | AA60: x1 | AB60: =AB57/(AB59+AB58) -> 28.57142857
A61: 1 | B61: 0 | C61: ='Cobb-Douglas CPCD'!$G$19*B61 -> 0 | D61: ='Cobb-Douglas CPCD'!$D$16+('Cobb-Douglas CPCD'!$E$16*'Oculto CPCD'!C61) -> 33.33 | E61: =$E$85 -> 16 | F61: =$F$85*B61 -> 0 | G61: =$E$85*B61 -> 0 | H61: =$F$85 -> 20 | O61: x2* | P61: =P57/P59-1 -> 2.00 | AA61: x2 | AB61: =AB60 -> 28.57142857
A62: 2 | B62: 0.05 | C62: ='Cobb-Douglas CPCD'!$G$19*B62 -> 2.00 | D62: ='Cobb-Douglas CPCD'!$D$16+('Cobb-Douglas CPCD'!$E$16*'Oculto CPCD'!C62) -> 31.67 | E62: 16 | F62: 1.00 | G62: 0.80 | H62: 20 | I62: 0.28 | J62: =I62*$E$85 -> 4.48 | K62: =($F$86/(J62^($E$84)))^(1/$F$84) -> 46.73
A63: 3 | B63: 0.10 | C63: ='Cobb-Douglas CPCD'!$G$19*B63 -> 4.00 | D63: ='Cobb-Douglas CPCD'!$D$16+('Cobb-Douglas CPCD'!$E$16*'Oculto CPCD'!C63) -> 30.00 | E63: 16 | F63: 2.00 | G63: 1.60 | H63: 20 | I63: 0.36 | J63: 5.76 | K63: 39.52
A64: 4 | B64: 0.15 | C64: ='Cobb-Douglas CPCD'!$G$19*B64 -> 6.00 | D64: ='Cobb-Douglas CPCD'!$D$16+('Cobb-Douglas CPCD'!$E$16*'Oculto CPCD'!C64) -> 28.33 | E64: 16 | F64: 3.00 | G64: 2.40 | H64: 20 | I64: 0.44 | J64: 7.04 | K64: 34.57
A65: 5 | B65: 0.20 | C65: ='Cobb-Douglas CPCD'!$G$19*B65 -> 8.00 | D65: ='Cobb-Douglas CPCD'!$D$16+('Cobb-Douglas CPCD'!$E$16*'Oculto CPCD'!C65) -> 26.67 | E65: 16 | F65: 4.00 | G65: 3.20 | H65: 20 | I65: 0.52 | J65: 8.32 | K65: 30.93 | M65: REGULARES 3 | O65: Recta Presupuestaria | V65: Curva de Indiferencia | Y65: COMP. PERFECTOS 3 | AB65: Recta Presupuestaria | AD65: Curva de Indiferencia
A66: 6 | B66: 0.25 | C66: ='Cobb-Douglas CPCD'!$G$19*B66 -> 10.00 | D66: ='Cobb-Douglas CPCD'!$D$16+('Cobb-Douglas CPCD'!$E$16*'Oculto CPCD'!C66) -> 25.00 | E66: 16 | F66: 5.00 | G66: 4.00 | H66: 20 | I66: 0.6 | J66: 9.60 | K66: 28.11 | M66: Unidades | N66: ponderador | O66: x1 | P66: x2 | Q66: x1lin | S66: x2lin | U66: Cota | V66: x1 | W66: x2 | Y66: Unidades | Z66: ponderador | AB66: x1 | AC66: x2 | AD66: vertice | AE66: x1line | AF66: x2line
A67: 7 | B67: 0.30 | C67: ='Cobb-Douglas CPCD'!$G$19*B67 -> 12.00 | D67: ='Cobb-Douglas CPCD'!$D$16+('Cobb-Douglas CPCD'!$E$16*'Oculto CPCD'!C67) -> 23.33 | E67: 16 | F67: 6.00 | G67: 4.80 | H67: 20 | I67: 0.68 | J67: 10.88 | K67: 25.86 | M67: 1 | N67: 0 | O67: =$P$89/$P$90*N67 -> 0 | P67: =($P$25/$P$27)-(($P$90/$P$27)*O67) -> 3.00 | Q67: =$P$92 -> 50.00 | R67: =$P$93*N67 -> 0 | S67: =Q67*N67 -> 0 | T67: =$P$93 -> 2.00 | Y67: 1 | Z67: 0 | AA67: 1.00 | AB67: =$AB$89/$AB$90*Z67 -> 0 | AC67: =$AB$25/$AB$27*AA67 -> 40.00 | AD67: =AB92 -> 28.57 | AE67: =AD67+(($AB$23-AD67)*Z67) -> 28.57 | AF67: =AD67+(($AC$3-AD67)*Z67) -> 28.57
A68: 8 | B68: 0.35 | C68: ='Cobb-Douglas CPCD'!$G$19*B68 -> 14.00 | D68: ='Cobb-Douglas CPCD'!$D$16+('Cobb-Douglas CPCD'!$E$16*'Oculto CPCD'!C68) -> 21.67 | E68: 16 | F68: 7.00 | G68: 5.60 | H68: 20 | I68: 0.76 | J68: 12.16 | K68: 24.02 | M68: 2 | N68: 0.05 | O68: 7.50 | P68: 2.85 | Q68: =$P$92 -> 50.00 | R68: =$P$93*N68 -> 0.10 | S68: =Q68*N68 -> 2.50 | T68: =$P$93 -> 2.00 | U68: =$U$25 -> 0.1 | V68: =O68 -> 7.50 | W68: =$Q$90-LN(V68) -> 3.90 | Y68: 2 | Z68: 0.05 | AA68: 0.95 | AB68: 5.00 | AC68: 38.00 | AD68: =AD67 -> 28.57 | AE68: 32.14 | AF68: 29.14
A69: 9 | B69: 0.40 | C69: ='Cobb-Douglas CPCD'!$G$19*B69 -> 16.00 | D69: ='Cobb-Douglas CPCD'!$D$16+('Cobb-Douglas CPCD'!$E$16*'Oculto CPCD'!C69) -> 20.00 | E69: 16 | F69: 8.00 | G69: 6.40 | H69: 20 | I69: 0.84 | J69: 13.44 | K69: 22.47 | M69: 3 | N69: 0.10 | O69: 15.00 | P69: 2.70 | Q69: 50.00 | R69: 0.20 | S69: 5.00 | T69: 2.00 | U69: =U68+$U$25 -> 0.2 | V69: =O69 -> 15.00 | W69: =$Q$90-LN(V69) -> 3.20 | Y69: 3 | Z69: 0.10 | AA69: 0.90 | AB69: 10.00 | AC69: 36.00 | AD69: 28.57 | AE69: 35.71 | AF69: 29.71
A70: 10 | B70: 0.45 | C70: ='Cobb-Douglas CPCD'!$G$19*B70 -> 18.00 | D70: ='Cobb-Douglas CPCD'!$D$16+('Cobb-Douglas CPCD'!$E$16*'Oculto CPCD'!C70) -> 18.33 | E70: 16 | F70: 9.00 | G70: 7.20 | H70: 20 | I70: 0.92 | J70: 14.72 | K70: 21.14 | M70: 4 | N70: 0.15 | O70: 22.50 | P70: 2.55 | Q70: 50.00 | R70: 0.30 | S70: 7.50 | T70: 2.00 | U70: 0.3 | V70: 22.50 | W70: 2.80 | Y70: 4 | Z70: 0.15 | AA70: 0.85 | AB70: 15.00 | AC70: 34.00 | AD70: 28.57 | AE70: 39.29 | AF70: 30.29
A71: 11 | B71: 0.50 | C71: ='Cobb-Douglas CPCD'!$G$19*B71 -> 20.00 | D71: ='Cobb-Douglas CPCD'!$D$16+('Cobb-Douglas CPCD'!$E$16*'Oculto CPCD'!C71) -> 16.67 | E71: 16 | F71: 10.00 | G71: 8.00 | H71: 20 | I71: 1 | J71: 16.00 | K71: 20.00 | M71: 5 | N71: 0.20 | O71: 30.00 | P71: 2.40 | Q71: 50.00 | R71: 0.40 | S71: 10.00 | T71: 2.00 | U71: 0.4 | V71: 30.00 | W71: 2.51 | Y71: 5 | Z71: 0.20 | AA71: 0.80 | AB71: 20.00 | AC71: 32.00 | AD71: 28.57 | AE71: 42.86 | AF71: 30.86
A72: 12 | B72: 0.55 | C72: ='Cobb-Douglas CPCD'!$G$19*B72 -> 22.00 | D72: ='Cobb-Douglas CPCD'!$D$16+('Cobb-Douglas CPCD'!$E$16*'Oculto CPCD'!C72) -> 15.00 | E72: 16 | F72: 11.00 | G72: 8.80 | H72: 20 | I72: 1.08 | J72: 17.28 | K72: 19.00 | M72: 6 | N72: 0.25 | O72: 37.50 | P72: 2.25 | Q72: 50.00 | R72: 0.50 | S72: 12.50 | T72: 2.00 | U72: 0.5 | V72: 37.50 | W72: 2.29 | Y72: 6 | Z72: 0.25 | AA72: 0.75 | AB72: 25.00 | AC72: 30.00 | AD72: 28.57 | AE72: 46.43 | AF72: 31.43
A73: 13 | B73: 0.60 | C73: ='Cobb-Douglas CPCD'!$G$19*B73 -> 24.00 | D73: ='Cobb-Douglas CPCD'!$D$16+('Cobb-Douglas CPCD'!$E$16*'Oculto CPCD'!C73) -> 13.33 | E73: 16 | F73: 12.00 | G73: 9.60 | H73: 20 | I73: 1.16 | J73: 18.56 | K73: 18.12 | M73: 7 | N73: 0.30 | O73: 45.00 | P73: 2.10 | Q73: 50.00 | R73: 0.60 | S73: 15.00 | T73: 2.00 | U73: 0.6 | V73: 45.00 | W73: 2.11 | Y73: 7 | Z73: 0.30 | AA73: 0.70 | AB73: 30.00 | AC73: 28.00 | AD73: 28.57 | AE73: 50.00 | AF73: 32.00
A74: 14 | B74: 0.65 | C74: ='Cobb-Douglas CPCD'!$G$19*B74 -> 26.00 | D74: ='Cobb-Douglas CPCD'!$D$16+('Cobb-Douglas CPCD'!$E$16*'Oculto CPCD'!C74) -> 11.67 | E74: 16 | F74: 13.00 | G74: 10.40 | H74: 20 | I74: 1.24 | J74: 19.84 | K74: 17.33 | M74: 8 | N74: 0.35 | O74: 52.50 | P74: 1.95 | Q74: 50.00 | R74: 0.70 | S74: 17.50 | T74: 2.00 | U74: 0.7 | V74: 52.50 | W74: 1.95 | Y74: 8 | Z74: 0.35 | AA74: 0.65 | AB74: 35.00 | AC74: 26.00 | AD74: 28.57 | AE74: 53.57 | AF74: 32.57
A75: 15 | B75: 0.70 | C75: ='Cobb-Douglas CPCD'!$G$19*B75 -> 28.00 | D75: ='Cobb-Douglas CPCD'!$D$16+('Cobb-Douglas CPCD'!$E$16*'Oculto CPCD'!C75) -> 10.00 | E75: 16 | F75: 14.00 | G75: 11.20 | H75: 20 | I75: 1.32 | J75: 21.12 | K75: 16.62 | M75: 9 | N75: 0.40 | O75: 60.00 | P75: 1.80 | Q75: 50.00 | R75: 0.80 | S75: 20.00 | T75: 2.00 | U75: 0.8 | V75: 60.00 | W75: 1.82 | Y75: 9 | Z75: 0.40 | AA75: 0.60 | AB75: 40.00 | AC75: 24.00 | AD75: 28.57 | AE75: 57.14 | AF75: 33.14
A76: 16 | B76: 0.75 | C76: ='Cobb-Douglas CPCD'!$G$19*B76 -> 30.00 | D76: ='Cobb-Douglas CPCD'!$D$16+('Cobb-Douglas CPCD'!$E$16*'Oculto CPCD'!C76) -> 8.33 | E76: 16 | F76: 15.00 | G76: 12.00 | H76: 20 | I76: 1.4 | J76: 22.40 | K76: 15.98 | M76: 10 | N76: 0.45 | O76: 67.50 | P76: 1.65 | Q76: 50.00 | R76: 0.90 | S76: 22.50 | T76: 2.00 | U76: 0.9 | V76: 67.50 | W76: 1.70 | Y76: 10 | Z76: 0.45 | AA76: 0.55 | AB76: 45.00 | AC76: 22.00 | AD76: 28.57 | AE76: 60.71 | AF76: 33.71
A77: 17 | B77: 0.80 | C77: ='Cobb-Douglas CPCD'!$G$19*B77 -> 32.00 | D77: ='Cobb-Douglas CPCD'!$D$16+('Cobb-Douglas CPCD'!$E$16*'Oculto CPCD'!C77) -> 6.67 | E77: 16 | F77: 16.00 | G77: 12.80 | H77: 20 | I77: 1.48 | J77: 23.68 | K77: 15.40 | M77: 11 | N77: 0.50 | O77: 75.00 | P77: 1.50 | Q77: 50.00 | R77: 1.00 | S77: 25.00 | T77: 2.00 | U77: 1 | V77: 75.00 | W77: 1.59 | Y77: 11 | Z77: 0.50 | AA77: 0.50 | AB77: 50.00 | AC77: 20.00 | AD77: 28.57 | AE77: 64.29 | AF77: 34.29
A78: 18 | B78: 0.85 | C78: ='Cobb-Douglas CPCD'!$G$19*B78 -> 34.00 | D78: ='Cobb-Douglas CPCD'!$D$16+('Cobb-Douglas CPCD'!$E$16*'Oculto CPCD'!C78) -> 5.00 | E78: 16 | F78: 17.00 | G78: 13.60 | H78: 20 | I78: 1.56 | J78: 24.96 | K78: 14.87 | M78: 12 | N78: 0.55 | O78: 82.50 | P78: 1.35 | Q78: 50.00 | R78: 1.10 | S78: 27.50 | T78: 2.00 | U78: =U77+$U$25 -> 1.1 | V78: 82.50 | W78: 1.50 | Y78: 12 | Z78: 0.55 | AA78: 0.45 | AB78: 55.00 | AC78: 18.00 | AD78: 28.57 | AE78: 67.86 | AF78: 34.86
A79: 19 | B79: 0.90 | C79: ='Cobb-Douglas CPCD'!$G$19*B79 -> 36.00 | D79: ='Cobb-Douglas CPCD'!$D$16+('Cobb-Douglas CPCD'!$E$16*'Oculto CPCD'!C79) -> 3.33 | E79: 16 | F79: 18.00 | G79: 14.40 | H79: 20 | I79: 1.64 | J79: 26.24 | K79: 14.38 | M79: 13 | N79: 0.60 | O79: 90.00 | P79: 1.20 | Q79: 50.00 | R79: 1.20 | S79: 30.00 | T79: 2.00 | U79: 1.2 | V79: 90.00 | W79: 1.41 | Y79: 13 | Z79: 0.60 | AA79: 0.40 | AB79: 60.00 | AC79: 16.00 | AD79: 28.57 | AE79: 71.43 | AF79: 35.43
A80: 20 | B80: 0.95 | C80: ='Cobb-Douglas CPCD'!$G$19*B80 -> 38.00 | D80: ='Cobb-Douglas CPCD'!$D$16+('Cobb-Douglas CPCD'!$E$16*'Oculto CPCD'!C80) -> 1.67 | E80: 16 | F80: 19.00 | G80: 15.20 | H80: 20 | I80: 1.72 | J80: 27.52 | K80: 13.93 | M80: 14 | N80: 0.65 | O80: 97.50 | P80: 1.05 | Q80: 50.00 | R80: 1.30 | S80: 32.50 | T80: 2.00 | U80: 1.3 | V80: 97.50 | W80: 1.33 | Y80: 14 | Z80: 0.65 | AA80: 0.35 | AB80: 65.00 | AC80: 14.00 | AD80: 28.57 | AE80: 75.00 | AF80: 36.00
A81: 21 | B81: 1.00 | C81: ='Cobb-Douglas CPCD'!$G$19*B81 -> 40.00 | D81: ='Cobb-Douglas CPCD'!$D$16+('Cobb-Douglas CPCD'!$E$16*'Oculto CPCD'!C81) -> 0 | E81: 16 | F81: 20.00 | G81: 16.00 | H81: 20 | I81: 1.8 | J81: 28.80 | K81: 13.52 | M81: 15 | N81: 0.70 | O81: 105.00 | P81: 0.90 | Q81: 50.00 | R81: 1.40 | S81: 35.00 | T81: 2.00 | U81: 1.4 | V81: 105.00 | W81: 1.26 | Y81: 15 | Z81: 0.70 | AA81: 0.30 | AB81: 70.00 | AC81: 12.00 | AD81: 28.57 | AE81: 78.57 | AF81: 36.57
M82: 16 | N82: 0.75 | O82: 112.50 | P82: 0.75 | Q82: 50.00 | R82: 1.50 | S82: 37.50 | T82: 2.00 | U82: 1.5 | V82: 112.50 | W82: 1.19 | Y82: 16 | Z82: 0.75 | AA82: 0.25 | AB82: 75.00 | AC82: 10.00 | AD82: 28.57 | AE82: 82.14 | AF82: 37.14
E83: x1 | F83: x2 | M83: 17 | N83: 0.80 | O83: 120.00 | P83: 0.60 | Q83: 50.00 | R83: 1.60 | S83: 40.00 | T83: 2.00 | U83: 1.6 | V83: 120.00 | W83: 1.12 | Y83: 17 | Z83: 0.80 | AA83: 0.20 | AB83: 80.00 | AC83: 8.00 | AD83: 28.57 | AE83: 85.71 | AF83: 37.71
E84: ='Cobb-Douglas CPCD'!$D$27 -> 0.4 | F84: ='Cobb-Douglas CPCD'!$F$27 -> 0.6 | M84: 18 | N84: 0.85 | O84: 127.50 | P84: 0.45 | Q84: 50.00 | R84: 1.70 | S84: 42.50 | T84: 2.00 | U84: 1.7 | V84: 127.50 | W84: 1.06 | Y84: 18 | Z84: 0.85 | AA84: 0.15 | AB84: 85.00 | AC84: 6.00 | AD84: 28.57 | AE84: 89.29 | AF84: 38.29
E85: ='Cobb-Douglas CPCD'!$D$27*('Cobb-Douglas CPCD'!G19) -> 16 | F85: ='Cobb-Douglas CPCD'!$F$27*('Cobb-Douglas CPCD'!G20) -> 20 | M85: 19 | N85: 0.90 | O85: 135.00 | P85: 0.30 | Q85: 50.00 | R85: 1.80 | S85: 45.00 | T85: 2.00 | U85: 1.8 | V85: 135.00 | W85: 1.01 | Y85: 19 | Z85: 0.90 | AA85: 0.10 | AB85: 90.00 | AC85: 4.00 | AD85: 28.57 | AE85: 92.86 | AF85: 38.86
F86: =(E85^(E84))*(F85^(F84)) -> 18.29220208 | M86: 20 | N86: 0.95 | O86: 142.50 | P86: 0.15 | Q86: 50.00 | R86: 1.90 | S86: 47.50 | T86: 2.00 | U86: 1.9 | V86: 142.50 | W86: 0.95 | Y86: 20 | Z86: 0.95 | AA86: 0.05 | AB86: 95.00 | AC86: 2.00 | AD86: 28.57 | AE86: 96.43 | AF86: 39.43
M87: 21 | N87: 1.00 | O87: 150.00 | P87: 0 | Q87: 50.00 | R87: 2.00 | S87: 50.00 | T87: 2.00 | U87: 2 | V87: 150.00 | W87: 0.90 | Y87: 21 | Z87: 1.00 | AA87: 0 | AB87: 100.00 | AC87: 0 | AD87: 28.57 | AE87: 100.00 | AF87: 40.00
O89: m | P89: ='Regulares CPCD'!C9 -> 300.00 | Q89: k | U89: =1/10 -> 0.1 | AA89: m | AB89: =AB57 -> 200
A90: COBB-DOUGLAS 4 | C90: Recta Presupuestaria | J90: Curva de Indiferencia | O90: p1 | P90: ='Regulares CPCD'!D9 -> 2 | Q90: =LN(P92)+P93 -> 5.91 | AA90: p1 | AB90: ='CompPerf CPCD'!D9 -> 2
A91: Unidades | B91: ponderador | C91: x1 | D91: x2 | E91: x7lin | G91: x8lin | I91: Cota | J91: x1 | K91: x2 | O91: p2 | P91: ='Regulares CPCD'!F9 -> 100 | AA91: p2 | AB91: =AB59 -> 5
A92: 1 | B92: 0 | C92: =('Cobb-Douglas CPCD'!$C$7/'Oculto CPCD'!$I$154)*B92 -> 0 | D92: =('Cobb-Douglas CPCD'!$C$7/'Oculto CPCD'!$J$154)-(('Oculto CPCD'!$I$154/'Oculto CPCD'!$J$154)*'Oculto CPCD'!C92) -> 12.50 | E92: =$E$116 -> 21.33333333 | F92: =$F$116*B92 -> 0 | G92: =B92*$E$116 -> 0 | H92: =$F$116 -> 20 | O92: x1* | P92: =P91/P90 -> 50.00 | AA92: x1 | AB92: =AB89/(AB91+AB90) -> 28.57142857
A93: 2 | B93: 0.05 | C93: =('Cobb-Douglas CPCD'!$C$7/'Oculto CPCD'!$I$154)*B93 -> 2.00 | D93: =('Cobb-Douglas CPCD'!$C$7/'Oculto CPCD'!$J$154)-(('Oculto CPCD'!$I$154/'Oculto CPCD'!$J$154)*'Oculto CPCD'!C93) -> 11.88 | E93: 21.33333333 | F93: 1.00 | G93: 1.07 | H93: 20 | I93: 0.28 | J93: =I93*$E$116 -> 5.97 | K93: =($G$116/(J93^($E$115)))^(1/$F$115) -> 46.73 | O93: x2* | P93: =P89/P91-1 -> 2.00 | AA93: x2 | AB93: =AB92 -> 28.57142857
A94: 3 | B94: 0.10 | C94: =('Cobb-Douglas CPCD'!$C$7/'Oculto CPCD'!$I$154)*B94 -> 4.00 | D94: =('Cobb-Douglas CPCD'!$C$7/'Oculto CPCD'!$J$154)-(('Oculto CPCD'!$I$154/'Oculto CPCD'!$J$154)*'Oculto CPCD'!C94) -> 11.25 | E94: 21.33333333 | F94: 2.00 | G94: 2.13 | H94: 20 | I94: 0.36 | J94: 7.68 | K94: 39.52
A95: 4 | B95: 0.15 | C95: =('Cobb-Douglas CPCD'!$C$7/'Oculto CPCD'!$I$154)*B95 -> 6.00 | D95: =('Cobb-Douglas CPCD'!$C$7/'Oculto CPCD'!$J$154)-(('Oculto CPCD'!$I$154/'Oculto CPCD'!$J$154)*'Oculto CPCD'!C95) -> 10.63 | E95: 21.33333333 | F95: 3.00 | G95: 3.20 | H95: 20 | I95: 0.44 | J95: 9.39 | K95: 34.57
A96: 5 | B96: 0.20 | C96: =('Cobb-Douglas CPCD'!$C$7/'Oculto CPCD'!$I$154)*B96 -> 8.00 | D96: =('Cobb-Douglas CPCD'!$C$7/'Oculto CPCD'!$J$154)-(('Oculto CPCD'!$I$154/'Oculto CPCD'!$J$154)*'Oculto CPCD'!C96) -> 10.00 | E96: 21.33333333 | F96: 4.00 | G96: 4.27 | H96: 20 | I96: 0.52 | J96: 11.09 | K96: 30.93
A97: 6 | B97: 0.25 | C97: =('Cobb-Douglas CPCD'!$C$7/'Oculto CPCD'!$I$154)*B97 -> 10.00 | D97: =('Cobb-Douglas CPCD'!$C$7/'Oculto CPCD'!$J$154)-(('Oculto CPCD'!$I$154/'Oculto CPCD'!$J$154)*'Oculto CPCD'!C97) -> 9.38 | E97: 21.33333333 | F97: 5.00 | G97: 5.33 | H97: 20 | I97: 0.6 | J97: 12.80 | K97: 28.11 | M97: REGULARES 4 | O97: Recta Presupuestaria | V97: Curva de Indiferencia | Y97: COMP. PERFECTOS 4 | AB97: Recta Presupuestaria | AD97: Curva de Indiferencia
A98: 7 | B98: 0.30 | C98: =('Cobb-Douglas CPCD'!$C$7/'Oculto CPCD'!$I$154)*B98 -> 12.00 | D98: =('Cobb-Douglas CPCD'!$C$7/'Oculto CPCD'!$J$154)-(('Oculto CPCD'!$I$154/'Oculto CPCD'!$J$154)*'Oculto CPCD'!C98) -> 8.75 | E98: 21.33333333 | F98: 6.00 | G98: 6.40 | H98: 20 | I98: 0.68 | J98: 14.51 | K98: 25.86 | M98: Unidades | N98: ponderador | O98: x1 | P98: x2 | Q98: x1lin | S98: x2lin | U98: Cota | V98: x1 | W98: x2 | Y98: Unidades | Z98: ponderador | AB98: x1 | AC98: x2 | AD98: vertice | AE98: x1line | AF98: x2line
A99: 8 | B99: 0.35 | C99: =('Cobb-Douglas CPCD'!$C$7/'Oculto CPCD'!$I$154)*B99 -> 14.00 | D99: =('Cobb-Douglas CPCD'!$C$7/'Oculto CPCD'!$J$154)-(('Oculto CPCD'!$I$154/'Oculto CPCD'!$J$154)*'Oculto CPCD'!C99) -> 8.13 | E99: 21.33333333 | F99: 7.00 | G99: 7.47 | H99: 20 | I99: 0.76 | J99: 16.21 | K99: 24.02 | M99: 1 | N99: 0 | O99: =$P$25/$P$26*N99 -> 0 | P99: =($P$25/$P$27)-(($P$26/$P$27)*O99) -> 3.00 | Q99: =$P$124 -> 66.67 | R99: =$P$125*N99 -> 0 | S99: =Q99*N99 -> 0 | T99: =$P$125 -> 2.00 | Y99: 1 | Z99: 0 | AA99: 1.00 | AB99: =$AB$121/$AB$122*Z99 -> 0 | AC99: =$AB$25/$AB$27*AA99 -> 40.00 | AD99: =AB124 -> 30.77 | AE99: =AD99+(($AB$23-AD99)*Z99) -> 30.77 | AF99: =AD99+(($AC$3-AD99)*Z99) -> 30.77
A100: 9 | B100: 0.40 | C100: =('Cobb-Douglas CPCD'!$C$7/'Oculto CPCD'!$I$154)*B100 -> 16.00 | D100: =('Cobb-Douglas CPCD'!$C$7/'Oculto CPCD'!$J$154)-(('Oculto CPCD'!$I$154/'Oculto CPCD'!$J$154)*'Oculto CPCD'!C100) -> 7.50 | E100: 21.33333333 | F100: 8.00 | G100: 8.53 | H100: 20 | I100: 0.84 | J100: 17.92 | K100: 22.47 | M100: 2 | N100: 0.05 | O100: 7.50 | P100: 2.85 | Q100: =$P$124 -> 66.67 | R100: =$P$125*N100 -> 0.10 | S100: =Q100*N100 -> 3.33 | T100: =$P$125 -> 2.00 | U100: =$U$25 -> 0.1 | V100: =O100 -> 7.50 | W100: =$Q$122-LN(V100) -> 4.18 | Y100: 2 | Z100: 0.05 | AA100: 0.95 | AB100: 6.67 | AC100: 38.00 | AD100: =AD99 -> 30.77 | AE100: 34.23 | AF100: 31.23
A101: 10 | B101: 0.45 | C101: =('Cobb-Douglas CPCD'!$C$7/'Oculto CPCD'!$I$154)*B101 -> 18.00 | D101: =('Cobb-Douglas CPCD'!$C$7/'Oculto CPCD'!$J$154)-(('Oculto CPCD'!$I$154/'Oculto CPCD'!$J$154)*'Oculto CPCD'!C101) -> 6.88 | E101: 21.33333333 | F101: 9.00 | G101: 9.60 | H101: 20 | I101: 0.92 | J101: 19.63 | K101: 21.14 | M101: 3 | N101: 0.10 | O101: 15.00 | P101: 2.70 | Q101: 66.67 | R101: 0.20 | S101: 6.67 | T101: 2.00 | U101: =U100+$U$25 -> 0.2 | V101: =O101 -> 15.00 | W101: =$Q$122-LN(V101) -> 3.49 | Y101: 3 | Z101: 0.10 | AA101: 0.90 | AB101: 13.33 | AC101: 36.00 | AD101: 30.77 | AE101: 37.69 | AF101: 31.69
A102: 11 | B102: 0.50 | C102: =('Cobb-Douglas CPCD'!$C$7/'Oculto CPCD'!$I$154)*B102 -> 20.00 | D102: =('Cobb-Douglas CPCD'!$C$7/'Oculto CPCD'!$J$154)-(('Oculto CPCD'!$I$154/'Oculto CPCD'!$J$154)*'Oculto CPCD'!C102) -> 6.25 | E102: 21.33333333 | F102: 10.00 | G102: 10.67 | H102: 20 | I102: 1 | J102: 21.33 | K102: 20.00 | M102: 4 | N102: 0.15 | O102: 22.50 | P102: 2.55 | Q102: 66.67 | R102: 0.30 | S102: 10.00 | T102: 2.00 | U102: 0.3 | V102: 22.50 | W102: 3.09 | Y102: 4 | Z102: 0.15 | AA102: 0.85 | AB102: 20.00 | AC102: 34.00 | AD102: 30.77 | AE102: 41.15 | AF102: 32.15
A103: 12 | B103: 0.55 | C103: =('Cobb-Douglas CPCD'!$C$7/'Oculto CPCD'!$I$154)*B103 -> 22.00 | D103: =('Cobb-Douglas CPCD'!$C$7/'Oculto CPCD'!$J$154)-(('Oculto CPCD'!$I$154/'Oculto CPCD'!$J$154)*'Oculto CPCD'!C103) -> 5.63 | E103: 21.33333333 | F103: 11.00 | G103: 11.73 | H103: 20 | I103: 1.08 | J103: 23.04 | K103: 19.00 | M103: 5 | N103: 0.20 | O103: 30.00 | P103: 2.40 | Q103: 66.67 | R103: 0.40 | S103: 13.33 | T103: 2.00 | U103: 0.4 | V103: 30.00 | W103: 2.80 | Y103: 5 | Z103: 0.20 | AA103: 0.80 | AB103: 26.67 | AC103: 32.00 | AD103: 30.77 | AE103: 44.62 | AF103: 32.62
A104: 13 | B104: 0.60 | C104: =('Cobb-Douglas CPCD'!$C$7/'Oculto CPCD'!$I$154)*B104 -> 24.00 | D104: =('Cobb-Douglas CPCD'!$C$7/'Oculto CPCD'!$J$154)-(('Oculto CPCD'!$I$154/'Oculto CPCD'!$J$154)*'Oculto CPCD'!C104) -> 5.00 | E104: 21.33333333 | F104: 12.00 | G104: 12.80 | H104: 20 | I104: 1.16 | J104: 24.75 | K104: 18.12 | M104: 6 | N104: 0.25 | O104: 37.50 | P104: 2.25 | Q104: 66.67 | R104: 0.50 | S104: 16.67 | T104: 2.00 | U104: 0.5 | V104: 37.50 | W104: 2.58 | Y104: 6 | Z104: 0.25 | AA104: 0.75 | AB104: 33.33 | AC104: 30.00 | AD104: 30.77 | AE104: 48.08 | AF104: 33.08
A105: 14 | B105: 0.65 | C105: =('Cobb-Douglas CPCD'!$C$7/'Oculto CPCD'!$I$154)*B105 -> 26.00 | D105: =('Cobb-Douglas CPCD'!$C$7/'Oculto CPCD'!$J$154)-(('Oculto CPCD'!$I$154/'Oculto CPCD'!$J$154)*'Oculto CPCD'!C105) -> 4.38 | E105: 21.33333333 | F105: 13.00 | G105: 13.87 | H105: 20 | I105: 1.24 | J105: 26.45 | K105: 17.33 | M105: 7 | N105: 0.30 | O105: 45.00 | P105: 2.10 | Q105: 66.67 | R105: 0.60 | S105: 20.00 | T105: 2.00 | U105: 0.6 | V105: 45.00 | W105: 2.39 | Y105: 7 | Z105: 0.30 | AA105: 0.70 | AB105: 40.00 | AC105: 28.00 | AD105: 30.77 | AE105: 51.54 | AF105: 33.54
A106: 15 | B106: 0.70 | C106: =('Cobb-Douglas CPCD'!$C$7/'Oculto CPCD'!$I$154)*B106 -> 28.00 | D106: =('Cobb-Douglas CPCD'!$C$7/'Oculto CPCD'!$J$154)-(('Oculto CPCD'!$I$154/'Oculto CPCD'!$J$154)*'Oculto CPCD'!C106) -> 3.75 | E106: 21.33333333 | F106: 14.00 | G106: 14.93 | H106: 20 | I106: 1.32 | J106: 28.16 | K106: 16.62 | M106: 8 | N106: 0.35 | O106: 52.50 | P106: 1.95 | Q106: 66.67 | R106: 0.70 | S106: 23.33 | T106: 2.00 | U106: 0.7 | V106: 52.50 | W106: 2.24 | Y106: 8 | Z106: 0.35 | AA106: 0.65 | AB106: 46.67 | AC106: 26.00 | AD106: 30.77 | AE106: 55.00 | AF106: 34.00
A107: 16 | B107: 0.75 | C107: =('Cobb-Douglas CPCD'!$C$7/'Oculto CPCD'!$I$154)*B107 -> 30.00 | D107: =('Cobb-Douglas CPCD'!$C$7/'Oculto CPCD'!$J$154)-(('Oculto CPCD'!$I$154/'Oculto CPCD'!$J$154)*'Oculto CPCD'!C107) -> 3.13 | E107: 21.33333333 | F107: 15.00 | G107: 16.00 | H107: 20 | I107: 1.4 | J107: 29.87 | K107: 15.98 | M107: 9 | N107: 0.40 | O107: 60.00 | P107: 1.80 | Q107: 66.67 | R107: 0.80 | S107: 26.67 | T107: 2.00 | U107: 0.8 | V107: 60.00 | W107: 2.11 | Y107: 9 | Z107: 0.40 | AA107: 0.60 | AB107: 53.33 | AC107: 24.00 | AD107: 30.77 | AE107: 58.46 | AF107: 34.46
A108: 17 | B108: 0.80 | C108: =('Cobb-Douglas CPCD'!$C$7/'Oculto CPCD'!$I$154)*B108 -> 32.00 | D108: =('Cobb-Douglas CPCD'!$C$7/'Oculto CPCD'!$J$154)-(('Oculto CPCD'!$I$154/'Oculto CPCD'!$J$154)*'Oculto CPCD'!C108) -> 2.50 | E108: 21.33333333 | F108: 16.00 | G108: 17.07 | H108: 20 | I108: 1.48 | J108: 31.57 | K108: 15.40 | M108: 10 | N108: 0.45 | O108: 67.50 | P108: 1.65 | Q108: 66.67 | R108: 0.90 | S108: 30.00 | T108: 2.00 | U108: 0.9 | V108: 67.50 | W108: 1.99 | Y108: 10 | Z108: 0.45 | AA108: 0.55 | AB108: 60.00 | AC108: 22.00 | AD108: 30.77 | AE108: 61.92 | AF108: 34.92
A109: 18 | B109: 0.85 | C109: =('Cobb-Douglas CPCD'!$C$7/'Oculto CPCD'!$I$154)*B109 -> 34.00 | D109: =('Cobb-Douglas CPCD'!$C$7/'Oculto CPCD'!$J$154)-(('Oculto CPCD'!$I$154/'Oculto CPCD'!$J$154)*'Oculto CPCD'!C109) -> 1.88 | E109: 21.33333333 | F109: 17.00 | G109: 18.13 | H109: 20 | I109: 1.56 | J109: 33.28 | K109: 14.87 | M109: 11 | N109: 0.50 | O109: 75.00 | P109: 1.50 | Q109: 66.67 | R109: 1.00 | S109: 33.33 | T109: 2.00 | U109: 1 | V109: 75.00 | W109: 1.88 | Y109: 11 | Z109: 0.50 | AA109: 0.50 | AB109: 66.67 | AC109: 20.00 | AD109: 30.77 | AE109: 65.38 | AF109: 35.38
A110: 19 | B110: 0.90 | C110: =('Cobb-Douglas CPCD'!$C$7/'Oculto CPCD'!$I$154)*B110 -> 36.00 | D110: =('Cobb-Douglas CPCD'!$C$7/'Oculto CPCD'!$J$154)-(('Oculto CPCD'!$I$154/'Oculto CPCD'!$J$154)*'Oculto CPCD'!C110) -> 1.25 | E110: 21.33333333 | F110: 18.00 | G110: 19.20 | H110: 20 | I110: 1.64 | J110: 34.99 | K110: 14.38 | M110: 12 | N110: 0.55 | O110: 82.50 | P110: 1.35 | Q110: 66.67 | R110: 1.10 | S110: 36.67 | T110: 2.00 | U110: =U109+$U$25 -> 1.1 | V110: 82.50 | W110: 1.79 | Y110: 12 | Z110: 0.55 | AA110: 0.45 | AB110: 73.33 | AC110: 18.00 | AD110: 30.77 | AE110: 68.85 | AF110: 35.85
A111: 20 | B111: 0.95 | C111: =('Cobb-Douglas CPCD'!$C$7/'Oculto CPCD'!$I$154)*B111 -> 38.00 | D111: =('Cobb-Douglas CPCD'!$C$7/'Oculto CPCD'!$J$154)-(('Oculto CPCD'!$I$154/'Oculto CPCD'!$J$154)*'Oculto CPCD'!C111) -> 0.63 | E111: 21.33333333 | F111: 19.00 | G111: 20.27 | H111: 20 | I111: 1.72 | J111: 36.69 | K111: 13.93 | M111: 13 | N111: 0.60 | O111: 90.00 | P111: 1.20 | Q111: 66.67 | R111: 1.20 | S111: 40.00 | T111: 2.00 | U111: 1.2 | V111: 90.00 | W111: 1.70 | Y111: 13 | Z111: 0.60 | AA111: 0.40 | AB111: 80.00 | AC111: 16.00 | AD111: 30.77 | AE111: 72.31 | AF111: 36.31
A112: 21 | B112: 1.00 | C112: =('Cobb-Douglas CPCD'!$C$7/'Oculto CPCD'!$I$154)*B112 -> 40.00 | D112: =('Cobb-Douglas CPCD'!$C$7/'Oculto CPCD'!$J$154)-(('Oculto CPCD'!$I$154/'Oculto CPCD'!$J$154)*'Oculto CPCD'!C112) -> 0 | E112: 21.33333333 | F112: 20.00 | G112: 21.33 | H112: 20 | I112: 1.8 | J112: 38.40 | K112: 13.52 | M112: 14 | N112: 0.65 | O112: 97.50 | P112: 1.05 | Q112: 66.67 | R112: 1.30 | S112: 43.33 | T112: 2.00 | U112: 1.3 | V112: 97.50 | W112: 1.62 | Y112: 14 | Z112: 0.65 | AA112: 0.35 | AB112: 86.67 | AC112: 14.00 | AD112: 30.77 | AE112: 75.77 | AF112: 36.77
M113: 15 | N113: 0.70 | O113: 105.00 | P113: 0.90 | Q113: 66.67 | R113: 1.40 | S113: 46.67 | T113: 2.00 | U113: 1.4 | V113: 105.00 | W113: 1.55 | Y113: 15 | Z113: 0.70 | AA113: 0.30 | AB113: 93.33 | AC113: 12.00 | AD113: 30.77 | AE113: 79.23 | AF113: 37.23
E114: x1 | F114: x2 | M114: 16 | N114: 0.75 | O114: 112.50 | P114: 0.75 | Q114: 66.67 | R114: 1.50 | S114: 50.00 | T114: 2.00 | U114: 1.5 | V114: 112.50 | W114: 1.48 | Y114: 16 | Z114: 0.75 | AA114: 0.25 | AB114: 100.00 | AC114: 10.00 | AD114: 30.77 | AE114: 82.69 | AF114: 37.69
D115: ALFA | E115: ='Cobb-Douglas CPCD'!$D$27 -> 0.4 | F115: ='Cobb-Douglas CPCD'!$F$27 -> 0.6 | M115: 17 | N115: 0.80 | O115: 120.00 | P115: 0.60 | Q115: 66.67 | R115: 1.60 | S115: 53.33 | T115: 2.00 | U115: 1.6 | V115: 120.00 | W115: 1.41 | Y115: 17 | Z115: 0.80 | AA115: 0.20 | AB115: 106.67 | AC115: 8.00 | AD115: 30.77 | AE115: 86.15 | AF115: 38.15
D116: X | E116: =E115*E118/E117 -> 21.3 | F116: =F115*E118/F117 -> 20.0 | G116: =(E116^(E115))*(F116^(F115)) -> 20.52303024 | M116: 18 | N116: 0.85 | O116: 127.50 | P116: 0.45 | Q116: 66.67 | R116: 1.70 | S116: 56.67 | T116: 2.00 | U116: 1.7 | V116: 127.50 | W116: 1.35 | Y116: 18 | Z116: 0.85 | AA116: 0.15 | AB116: 113.33 | AC116: 6.00 | AD116: 30.77 | AE116: 89.62 | AF116: 38.62
D117: P | E117: =MIN('Cobb-Douglas CPCD'!D7:D9)*0.75 -> 3.75 | F117: ='Cobb-Douglas CPCD'!F7 -> 6 | M117: 19 | N117: 0.90 | O117: 135.00 | P117: 0.30 | Q117: 66.67 | R117: 1.80 | S117: 60.00 | T117: 2.00 | U117: 1.8 | V117: 135.00 | W117: 1.29 | Y117: 19 | Z117: 0.90 | AA117: 0.10 | AB117: 120.00 | AC117: 4.00 | AD117: 30.77 | AE117: 93.08 | AF117: 39.08
D118: M | E118: ='Cobb-Douglas CPCD'!C7 -> 200 | M118: 20 | N118: 0.95 | O118: 142.50 | P118: 0.15 | Q118: 66.67 | R118: 1.90 | S118: 63.33 | T118: 2.00 | U118: 1.9 | V118: 142.50 | W118: 1.24 | Y118: 20 | Z118: 0.95 | AA118: 0.05 | AB118: 126.67 | AC118: 2.00 | AD118: 30.77 | AE118: 96.54 | AF118: 39.54
M119: 21 | N119: 1.00 | O119: 150.00 | P119: 0 | Q119: 66.67 | R119: 2.00 | S119: 66.67 | T119: 2.00 | U119: 2 | V119: 150.00 | W119: 1.19 | Y119: 21 | Z119: 1.00 | AA119: 0 | AB119: 133.33 | AC119: 0 | AD119: 30.77 | AE119: 100.00 | AF119: 40.00
A120: COBB-DOUGLAS 0 | C120: Recta Presupuestaria | J120: Curva de Indiferencia
A121: Unidades | B121: ponderador | C121: x1 | D121: x2 | E121: x9lin | G121: x10lin | I121: Cota | J121: x1 | K121: x2 | O121: m | P121: =P89 -> 300.00 | Q121: k | U121: =1/10 -> 0.1 | AA121: m | AB121: =AB89 -> 200
A122: 1 | B122: 0 | C122: ='Cobb-Douglas CPCD'!$C$7/'Oculto CPCD'!$I$150*'Oculto CPCD'!B122 -> 0 | D122: =('Cobb-Douglas CPCD'!$C$7/'Oculto CPCD'!$J$150)-(('Oculto CPCD'!$I$150/'Oculto CPCD'!$J$150)*'Oculto CPCD'!C122) -> 12.50 | E122: =$E$146 -> 16 | F122: =B122*$F$146 -> 0 | G122: =B122*$E$146 -> 0 | H122: =$F$146 -> 20 | O122: p1 | P122: =MIN(P90,P58,P26)*0.75 -> 1.5 | Q122: =LN(P124)+P125 -> 6.20 | AA122: p1 | AB122: =AB26*0.75 -> 1.5
A123: 2 | B123: 0.05 | C123: ='Cobb-Douglas CPCD'!$C$7/'Oculto CPCD'!$I$150*'Oculto CPCD'!B123 -> 2.00 | D123: =('Cobb-Douglas CPCD'!$C$7/'Oculto CPCD'!$J$150)-(('Oculto CPCD'!$I$150/'Oculto CPCD'!$J$150)*'Oculto CPCD'!C123) -> 11.88 | E123: 16 | F123: 1.00 | G123: 0.80 | H123: 20 | I123: 0.28 | J123: =I123*$E$146 -> 4.48 | K123: =($G$146/(J123^($E$145)))^(1/$F$145) -> 46.73 | O123: p2 | P123: =P91 -> 100 | AA123: p2 | AB123: =AB91 -> 5
A124: 3 | B124: 0.10 | C124: ='Cobb-Douglas CPCD'!$C$7/'Oculto CPCD'!$I$150*'Oculto CPCD'!B124 -> 4.00 | D124: =('Cobb-Douglas CPCD'!$C$7/'Oculto CPCD'!$J$150)-(('Oculto CPCD'!$I$150/'Oculto CPCD'!$J$150)*'Oculto CPCD'!C124) -> 11.25 | E124: 16 | F124: 2.00 | G124: 1.60 | H124: 20 | I124: 0.36 | J124: 5.76 | K124: 39.52 | O124: x1* | P124: =P123/P122 -> 66.67 | AA124: x1 | AB124: =AB121/(AB123+AB122) -> 30.76923077
A125: 4 | B125: 0.15 | C125: ='Cobb-Douglas CPCD'!$C$7/'Oculto CPCD'!$I$150*'Oculto CPCD'!B125 -> 6.00 | D125: =('Cobb-Douglas CPCD'!$C$7/'Oculto CPCD'!$J$150)-(('Oculto CPCD'!$I$150/'Oculto CPCD'!$J$150)*'Oculto CPCD'!C125) -> 10.63 | E125: 16 | F125: 3.00 | G125: 2.40 | H125: 20 | I125: 0.44 | J125: 7.04 | K125: 34.57 | O125: x2* | P125: =P121/P123-1 -> 2.00 | AA125: x2 | AB125: =AB124 -> 30.76923077
A126: 5 | B126: 0.20 | C126: ='Cobb-Douglas CPCD'!$C$7/'Oculto CPCD'!$I$150*'Oculto CPCD'!B126 -> 8.00 | D126: =('Cobb-Douglas CPCD'!$C$7/'Oculto CPCD'!$J$150)-(('Oculto CPCD'!$I$150/'Oculto CPCD'!$J$150)*'Oculto CPCD'!C126) -> 10.00 | E126: 16 | F126: 4.00 | G126: 3.20 | H126: 20 | I126: 0.52 | J126: 8.32 | K126: 30.93
A127: 6 | B127: 0.25 | C127: ='Cobb-Douglas CPCD'!$C$7/'Oculto CPCD'!$I$150*'Oculto CPCD'!B127 -> 10.00 | D127: =('Cobb-Douglas CPCD'!$C$7/'Oculto CPCD'!$J$150)-(('Oculto CPCD'!$I$150/'Oculto CPCD'!$J$150)*'Oculto CPCD'!C127) -> 9.38 | E127: 16 | F127: 5.00 | G127: 4.00 | H127: 20 | I127: 0.6 | J127: 9.60 | K127: 28.11
A128: 7 | B128: 0.30 | C128: ='Cobb-Douglas CPCD'!$C$7/'Oculto CPCD'!$I$150*'Oculto CPCD'!B128 -> 12.00 | D128: =('Cobb-Douglas CPCD'!$C$7/'Oculto CPCD'!$J$150)-(('Oculto CPCD'!$I$150/'Oculto CPCD'!$J$150)*'Oculto CPCD'!C128) -> 8.75 | E128: 16 | F128: 6.00 | G128: 4.80 | H128: 20 | I128: 0.68 | J128: 10.88 | K128: 25.86
A129: 8 | B129: 0.35 | C129: ='Cobb-Douglas CPCD'!$C$7/'Oculto CPCD'!$I$150*'Oculto CPCD'!B129 -> 14.00 | D129: =('Cobb-Douglas CPCD'!$C$7/'Oculto CPCD'!$J$150)-(('Oculto CPCD'!$I$150/'Oculto CPCD'!$J$150)*'Oculto CPCD'!C129) -> 8.13 | E129: 16 | F129: 7.00 | G129: 5.60 | H129: 20 | I129: 0.76 | J129: 12.16 | K129: 24.02 | M129: REGULARES 0 | O129: Recta Presupuestaria | V129: Curva de Indiferencia | Y129: COMP. PERFECTOS 0 | AB129: Recta Presupuestaria | AD129: Curva de Indiferencia
A130: 9 | B130: 0.40 | C130: ='Cobb-Douglas CPCD'!$C$7/'Oculto CPCD'!$I$150*'Oculto CPCD'!B130 -> 16.00 | D130: =('Cobb-Douglas CPCD'!$C$7/'Oculto CPCD'!$J$150)-(('Oculto CPCD'!$I$150/'Oculto CPCD'!$J$150)*'Oculto CPCD'!C130) -> 7.50 | E130: 16 | F130: 8.00 | G130: 6.40 | H130: 20 | I130: 0.84 | J130: 13.44 | K130: 22.47 | M130: Unidades | N130: ponderador | O130: x1 | P130: x2 | Q130: x1lin | S130: x2lin | U130: Cota | V130: x1 | W130: x2 | Y130: Unidades | Z130: ponderador | AB130: x1 | AC130: x2 | AD130: vertice | AE130: x1line | AF130: x2line
A131: 10 | B131: 0.45 | C131: ='Cobb-Douglas CPCD'!$C$7/'Oculto CPCD'!$I$150*'Oculto CPCD'!B131 -> 18.00 | D131: =('Cobb-Douglas CPCD'!$C$7/'Oculto CPCD'!$J$150)-(('Oculto CPCD'!$I$150/'Oculto CPCD'!$J$150)*'Oculto CPCD'!C131) -> 6.88 | E131: 16 | F131: 9.00 | G131: 7.20 | H131: 20 | I131: 0.92 | J131: 14.72 | K131: 21.14 | M131: 1 | N131: 0 | O131: =$P$25/$P$26*N131 -> 0 | P131: =($P$25/$P$27)-(($P$26/$P$27)*O131) -> 3.00 | Q131: =$P$156 -> 50.00 | R131: =$P$157*N131 -> 0 | S131: =Q131*N131 -> 0 | T131: =$P$157 -> 2.00 | Y131: 1 | Z131: 0 | AA131: 1.00 | AB131: =$AB$153/$AB$154*Z131 -> 0 | AC131: =$AB$25/$AB$27*AA131 -> 40.00 | AD131: =AB156 -> 33.33 | AE131: =AD131+(($AB$23-AD131)*Z131) -> 33.33 | AF131: =AD131+(($AC$3-AD131)*Z131) -> 33.33
A132: 11 | B132: 0.50 | C132: ='Cobb-Douglas CPCD'!$C$7/'Oculto CPCD'!$I$150*'Oculto CPCD'!B132 -> 20.00 | D132: =('Cobb-Douglas CPCD'!$C$7/'Oculto CPCD'!$J$150)-(('Oculto CPCD'!$I$150/'Oculto CPCD'!$J$150)*'Oculto CPCD'!C132) -> 6.25 | E132: 16 | F132: 10.00 | G132: 8.00 | H132: 20 | I132: 1 | J132: 16.00 | K132: 20.00 | M132: 2 | N132: 0.05 | O132: 7.50 | P132: 2.85 | Q132: =$P$156 -> 50.00 | R132: =$P$157*N132 -> 0.10 | S132: =Q132*N132 -> 2.50 | T132: =$P$157 -> 2.00 | U132: =$U$25 -> 0.1 | V132: =O132 -> 7.50 | W132: =$Q$154-LN(V132) -> 3.90 | Y132: 2 | Z132: 0.05 | AA132: 0.95 | AB132: 10.00 | AC132: 38.00 | AD132: =AD131 -> 33.33 | AE132: 36.67 | AF132: 33.67
A133: 12 | B133: 0.55 | C133: ='Cobb-Douglas CPCD'!$C$7/'Oculto CPCD'!$I$150*'Oculto CPCD'!B133 -> 22.00 | D133: =('Cobb-Douglas CPCD'!$C$7/'Oculto CPCD'!$J$150)-(('Oculto CPCD'!$I$150/'Oculto CPCD'!$J$150)*'Oculto CPCD'!C133) -> 5.63 | E133: 16 | F133: 11.00 | G133: 8.80 | H133: 20 | I133: 1.08 | J133: 17.28 | K133: 19.00 | M133: 3 | N133: 0.10 | O133: 15.00 | P133: 2.70 | Q133: 50.00 | R133: 0.20 | S133: 5.00 | T133: 2.00 | U133: =U132+$U$25 -> 0.2 | V133: =O133 -> 15.00 | W133: =$Q$154-LN(V133) -> 3.20 | Y133: 3 | Z133: 0.10 | AA133: 0.90 | AB133: 20.00 | AC133: 36.00 | AD133: 33.33 | AE133: 40.00 | AF133: 34.00
A134: 13 | B134: 0.60 | C134: ='Cobb-Douglas CPCD'!$C$7/'Oculto CPCD'!$I$150*'Oculto CPCD'!B134 -> 24.00 | D134: =('Cobb-Douglas CPCD'!$C$7/'Oculto CPCD'!$J$150)-(('Oculto CPCD'!$I$150/'Oculto CPCD'!$J$150)*'Oculto CPCD'!C134) -> 5.00 | E134: 16 | F134: 12.00 | G134: 9.60 | H134: 20 | I134: 1.16 | J134: 18.56 | K134: 18.12 | M134: 4 | N134: 0.15 | O134: 22.50 | P134: 2.55 | Q134: 50.00 | R134: 0.30 | S134: 7.50 | T134: 2.00 | U134: 0.3 | V134: 22.50 | W134: 2.80 | Y134: 4 | Z134: 0.15 | AA134: 0.85 | AB134: 30.00 | AC134: 34.00 | AD134: 33.33 | AE134: 43.33 | AF134: 34.33
A135: 14 | B135: 0.65 | C135: ='Cobb-Douglas CPCD'!$C$7/'Oculto CPCD'!$I$150*'Oculto CPCD'!B135 -> 26.00 | D135: =('Cobb-Douglas CPCD'!$C$7/'Oculto CPCD'!$J$150)-(('Oculto CPCD'!$I$150/'Oculto CPCD'!$J$150)*'Oculto CPCD'!C135) -> 4.38 | E135: 16 | F135: 13.00 | G135: 10.40 | H135: 20 | I135: 1.24 | J135: 19.84 | K135: 17.33 | M135: 5 | N135: 0.20 | O135: 30.00 | P135: 2.40 | Q135: 50.00 | R135: 0.40 | S135: 10.00 | T135: 2.00 | U135: 0.4 | V135: 30.00 | W135: 2.51 | Y135: 5 | Z135: 0.20 | AA135: 0.80 | AB135: 40.00 | AC135: 32.00 | AD135: 33.33 | AE135: 46.67 | AF135: 34.67
A136: 15 | B136: 0.70 | C136: ='Cobb-Douglas CPCD'!$C$7/'Oculto CPCD'!$I$150*'Oculto CPCD'!B136 -> 28.00 | D136: =('Cobb-Douglas CPCD'!$C$7/'Oculto CPCD'!$J$150)-(('Oculto CPCD'!$I$150/'Oculto CPCD'!$J$150)*'Oculto CPCD'!C136) -> 3.75 | E136: 16 | F136: 14.00 | G136: 11.20 | H136: 20 | I136: 1.32 | J136: 21.12 | K136: 16.62 | M136: 6 | N136: 0.25 | O136: 37.50 | P136: 2.25 | Q136: 50.00 | R136: 0.50 | S136: 12.50 | T136: 2.00 | U136: 0.5 | V136: 37.50 | W136: 2.29 | Y136: 6 | Z136: 0.25 | AA136: 0.75 | AB136: 50.00 | AC136: 30.00 | AD136: 33.33 | AE136: 50.00 | AF136: 35.00
A137: 16 | B137: 0.75 | C137: ='Cobb-Douglas CPCD'!$C$7/'Oculto CPCD'!$I$150*'Oculto CPCD'!B137 -> 30.00 | D137: =('Cobb-Douglas CPCD'!$C$7/'Oculto CPCD'!$J$150)-(('Oculto CPCD'!$I$150/'Oculto CPCD'!$J$150)*'Oculto CPCD'!C137) -> 3.13 | E137: 16 | F137: 15.00 | G137: 12.00 | H137: 20 | I137: 1.4 | J137: 22.40 | K137: 15.98 | M137: 7 | N137: 0.30 | O137: 45.00 | P137: 2.10 | Q137: 50.00 | R137: 0.60 | S137: 15.00 | T137: 2.00 | U137: 0.6 | V137: 45.00 | W137: 2.11 | Y137: 7 | Z137: 0.30 | AA137: 0.70 | AB137: 60.00 | AC137: 28.00 | AD137: 33.33 | AE137: 53.33 | AF137: 35.33
A138: 17 | B138: 0.80 | C138: ='Cobb-Douglas CPCD'!$C$7/'Oculto CPCD'!$I$150*'Oculto CPCD'!B138 -> 32.00 | D138: =('Cobb-Douglas CPCD'!$C$7/'Oculto CPCD'!$J$150)-(('Oculto CPCD'!$I$150/'Oculto CPCD'!$J$150)*'Oculto CPCD'!C138) -> 2.50 | E138: 16 | F138: 16.00 | G138: 12.80 | H138: 20 | I138: 1.48 | J138: 23.68 | K138: 15.40 | M138: 8 | N138: 0.35 | O138: 52.50 | P138: 1.95 | Q138: 50.00 | R138: 0.70 | S138: 17.50 | T138: 2.00 | U138: 0.7 | V138: 52.50 | W138: 1.95 | Y138: 8 | Z138: 0.35 | AA138: 0.65 | AB138: 70.00 | AC138: 26.00 | AD138: 33.33 | AE138: 56.67 | AF138: 35.67
A139: 18 | B139: 0.85 | C139: ='Cobb-Douglas CPCD'!$C$7/'Oculto CPCD'!$I$150*'Oculto CPCD'!B139 -> 34.00 | D139: =('Cobb-Douglas CPCD'!$C$7/'Oculto CPCD'!$J$150)-(('Oculto CPCD'!$I$150/'Oculto CPCD'!$J$150)*'Oculto CPCD'!C139) -> 1.88 | E139: 16 | F139: 17.00 | G139: 13.60 | H139: 20 | I139: 1.56 | J139: 24.96 | K139: 14.87 | M139: 9 | N139: 0.40 | O139: 60.00 | P139: 1.80 | Q139: 50.00 | R139: 0.80 | S139: 20.00 | T139: 2.00 | U139: 0.8 | V139: 60.00 | W139: 1.82 | Y139: 9 | Z139: 0.40 | AA139: 0.60 | AB139: 80.00 | AC139: 24.00 | AD139: 33.33 | AE139: 60.00 | AF139: 36.00
A140: 19 | B140: 0.90 | C140: ='Cobb-Douglas CPCD'!$C$7/'Oculto CPCD'!$I$150*'Oculto CPCD'!B140 -> 36.00 | D140: =('Cobb-Douglas CPCD'!$C$7/'Oculto CPCD'!$J$150)-(('Oculto CPCD'!$I$150/'Oculto CPCD'!$J$150)*'Oculto CPCD'!C140) -> 1.25 | E140: 16 | F140: 18.00 | G140: 14.40 | H140: 20 | I140: 1.64 | J140: 26.24 | K140: 14.38 | M140: 10 | N140: 0.45 | O140: 67.50 | P140: 1.65 | Q140: 50.00 | R140: 0.90 | S140: 22.50 | T140: 2.00 | U140: 0.9 | V140: 67.50 | W140: 1.70 | Y140: 10 | Z140: 0.45 | AA140: 0.55 | AB140: 90.00 | AC140: 22.00 | AD140: 33.33 | AE140: 63.33 | AF140: 36.33
A141: 20 | B141: 0.95 | C141: ='Cobb-Douglas CPCD'!$C$7/'Oculto CPCD'!$I$150*'Oculto CPCD'!B141 -> 38.00 | D141: =('Cobb-Douglas CPCD'!$C$7/'Oculto CPCD'!$J$150)-(('Oculto CPCD'!$I$150/'Oculto CPCD'!$J$150)*'Oculto CPCD'!C141) -> 0.63 | E141: 16 | F141: 19.00 | G141: 15.20 | H141: 20 | I141: 1.72 | J141: 27.52 | K141: 13.93 | M141: 11 | N141: 0.50 | O141: 75.00 | P141: 1.50 | Q141: 50.00 | R141: 1.00 | S141: 25.00 | T141: 2.00 | U141: 1 | V141: 75.00 | W141: 1.59 | Y141: 11 | Z141: 0.50 | AA141: 0.50 | AB141: 100.00 | AC141: 20.00 | AD141: 33.33 | AE141: 66.67 | AF141: 36.67
A142: 21 | B142: 1.00 | C142: ='Cobb-Douglas CPCD'!$C$7/'Oculto CPCD'!$I$150*'Oculto CPCD'!B142 -> 40.00 | D142: =('Cobb-Douglas CPCD'!$C$7/'Oculto CPCD'!$J$150)-(('Oculto CPCD'!$I$150/'Oculto CPCD'!$J$150)*'Oculto CPCD'!C142) -> 0 | E142: 16 | F142: 20.00 | G142: 16.00 | H142: 20 | I142: 1.8 | J142: 28.80 | K142: 13.52 | M142: 12 | N142: 0.55 | O142: 82.50 | P142: 1.35 | Q142: 50.00 | R142: 1.10 | S142: 27.50 | T142: 2.00 | U142: =U141+$U$25 -> 1.1 | V142: 82.50 | W142: 1.50 | Y142: 12 | Z142: 0.55 | AA142: 0.45 | AB142: 110.00 | AC142: 18.00 | AD142: 33.33 | AE142: 70.00 | AF142: 37.00
M143: 13 | N143: 0.60 | O143: 90.00 | P143: 1.20 | Q143: 50.00 | R143: 1.20 | S143: 30.00 | T143: 2.00 | U143: 1.2 | V143: 90.00 | W143: 1.41 | Y143: 13 | Z143: 0.60 | AA143: 0.40 | AB143: 120.00 | AC143: 16.00 | AD143: 33.33 | AE143: 73.33 | AF143: 37.33
E144: x1 | F144: x2 | M144: 14 | N144: 0.65 | O144: 97.50 | P144: 1.05 | Q144: 50.00 | R144: 1.30 | S144: 32.50 | T144: 2.00 | U144: 1.3 | V144: 97.50 | W144: 1.33 | Y144: 14 | Z144: 0.65 | AA144: 0.35 | AB144: 130.00 | AC144: 14.00 | AD144: 33.33 | AE144: 76.67 | AF144: 37.67
D145: ALFA | E145: =E115 -> 0.4 | F145: =F115 -> 0.6 | M145: 15 | N145: 0.70 | O145: 105.00 | P145: 0.90 | Q145: 50.00 | R145: 1.40 | S145: 35.00 | T145: 2.00 | U145: 1.4 | V145: 105.00 | W145: 1.26 | Y145: 15 | Z145: 0.70 | AA145: 0.30 | AB145: 140.00 | AC145: 12.00 | AD145: 33.33 | AE145: 80.00 | AF145: 38.00
D146: X | E146: =E145*('Cobb-Douglas CPCD'!C7/'Oculto CPCD'!I150) -> 16 | F146: =F145*'Cobb-Douglas CPCD'!C7/'Cobb-Douglas CPCD'!F7 -> 20 | G146: =(E146^(E145))*(F146^(F145)) -> 18.29220208 | M146: 16 | N146: 0.75 | O146: 112.50 | P146: 0.75 | Q146: 50.00 | R146: 1.50 | S146: 37.50 | T146: 2.00 | U146: 1.5 | V146: 112.50 | W146: 1.19 | Y146: 16 | Z146: 0.75 | AA146: 0.25 | AB146: 150.00 | AC146: 10.00 | AD146: 33.33 | AE146: 83.33 | AF146: 38.33
D147: P | E147: =IF(C151=C152,E117,(IF(C152=C153,E117,E117*0.75))) -> 3.75 | F147: ='Cobb-Douglas CPCD'!F7 -> 6 | M147: 17 | N147: 0.80 | O147: 120.00 | P147: 0.60 | Q147: 50.00 | R147: 1.60 | S147: 40.00 | T147: 2.00 | U147: 1.6 | V147: 120.00 | W147: 1.12 | Y147: 17 | Z147: 0.80 | AA147: 0.20 | AB147: 160.00 | AC147: 8.00 | AD147: 33.33 | AE147: 86.67 | AF147: 38.67
D148: M | E148: ='Cobb-Douglas CPCD'!C7 -> 200 | M148: 18 | N148: 0.85 | O148: 127.50 | P148: 0.45 | Q148: 50.00 | R148: 1.70 | S148: 42.50 | T148: 2.00 | U148: 1.7 | V148: 127.50 | W148: 1.06 | Y148: 18 | Z148: 0.85 | AA148: 0.15 | AB148: 170.00 | AC148: 6.00 | AD148: 33.33 | AE148: 90.00 | AF148: 39.00
I149: p1 | J149: x1 | M149: 19 | N149: 0.90 | O149: 135.00 | P149: 0.30 | Q149: 50.00 | R149: 1.80 | S149: 45.00 | T149: 2.00 | U149: 1.8 | V149: 135.00 | W149: 1.01 | Y149: 19 | Z149: 0.90 | AA149: 0.10 | AB149: 180.00 | AC149: 4.00 | AD149: 33.33 | AE149: 93.33 | AF149: 39.33
A150: CURVA PRECIO-CONSUMO | C150: X1 | D150: X2 | I150: =IF(G153=H153,I151,I151*0.75) -> 5 | J150: =E145*E148/I150 -> 16 | M150: 20 | N150: 0.95 | O150: 142.50 | P150: 0.15 | Q150: 50.00 | R150: 1.90 | S150: 47.50 | T150: 2.00 | U150: 1.9 | V150: 142.50 | W150: 0.95 | Y150: 20 | Z150: 0.95 | AA150: 0.05 | AB150: 190.00 | AC150: 2.00 | AD150: 33.33 | AE150: 96.67 | AF150: 39.67
A151: CURVA UNO | C151: =E27 -> 16 | D151: =F27 -> 20 | E151: =IF(G153=H153,C151,C155) -> 16 | F151: =MAX(D151:D155) -> 20 | I151: ='Cobb-Douglas CPCD'!D7 -> 5 | J151: =C151 -> 16 | M151: 21 | N151: 1.00 | O151: 150.00 | P151: 0 | Q151: 50.00 | R151: 2.00 | S151: 50.00 | T151: 2.00 | U151: 2 | V151: 150.00 | W151: 0.90 | Y151: 21 | Z151: 1.00 | AA151: 0 | AB151: 200.00 | AC151: 0 | AD151: 33.33 | AE151: 100.00 | AF151: 40.00
A152: CURVA DOS | C152: =E56 -> 16 | D152: =F56 -> 20 | E152: =IF(G153=H153,E151,MAX(C151:C155)) -> 16 | F152: =MAX(D151:D155) -> 20 | G152: =F151+F152+F153 -> 40 | H152: =F151*3 -> 60 | I152: ='Cobb-Douglas CPCD'!D8 -> 5 | J152: =C152 -> 16
A153: CURVA TRES | C153: =E85 -> 16 | D153: =F85 -> 20 | G153: =C151+C152+C153 -> 48 | H153: =C151*3 -> 48 | I153: ='Cobb-Douglas CPCD'!D9 -> 5 | J153: =C153 -> 16 | O153: m | P153: =P121 -> 300.00 | Q153: k | U153: =1/10 -> 0.1 | AA153: m | AB153: =AB121 -> 200
A154: CURVA CUATRO | C154: =IF(E153=F153,C151,E116) -> 16 | D154: =F116 -> 20 | I154: =IF(G153=H153,I151,MAX(I151:I153)*1.25) -> 5 | J154: =E145*E148/I154 -> 16 | O154: p1 | P154: =P26 -> 2 | Q154: =LN(P156)+P157 -> 5.91 | AA154: p1 | AB154: =AB26*0.5 -> 1
A155: CURVA CERO | C155: 0 | D155: =F146 -> 20 | O155: p2 | P155: =P123 -> 100 | AA155: p2 | AB155: =AB123 -> 5
O156: x1* | P156: =P155/P154 -> 50.00 | AA156: x1 | AB156: =AB153/(AB155+AB154) -> 33.33333333
O157: x2* | P157: =P153/P155-1 -> 2.00 | AA157: x2 | AB157: =AB156 -> 33.33333333
A158: X2LINE1 | C158: X2LINE2 | E158: X2LINE3 | G158: PONDERA
A159: =I151 -> 5 | B159: =$C$151*G159 -> 0 | C159: =I152 -> 5 | D159: =$C$152*G159 -> 0 | E159: =I153 -> 5 | F159: =$C$153*G159 -> 0 | G159: 0
A160: =A159 -> 5 | B160: 3.2 | C160: =C159 -> 5 | D160: 3.2 | E160: =E159 -> 5 | F160: 3.2 | G160: 0.2
A161: =A160 -> 5 | B161: 6.4 | C161: =C160 -> 5 | D161: 6.4 | E161: =E160 -> 5 | F161: 6.4 | G161: 0.4 | M161: CURVA PRECIO-CONSUMO | Y161: CURVA PRECIO-CONSUMO
A162: =A161 -> 5 | B162: 9.6 | C162: =C161 -> 5 | D162: 9.6 | E162: =E161 -> 5 | F162: 9.6 | G162: 0.6 | N162: 0 | O162: 1 | P162: 2 | Q162: 3 | R162: 4 | T162: =P28+P60+P92 -> 150.00 | U162: =P28*3 -> 150.00 | Z162: 0 | AA162: 1 | AB162: 2 | AC162: 3 | AD162: 4 | AF162: =AB28+AB60+AB92 -> 85.71 | AG162: =AB28*3 -> 85.71
A163: =A162 -> 5 | B163: 12.8 | C163: =C162 -> 5 | D163: 12.8 | E163: =E162 -> 5 | F163: 12.8 | G163: 0.8 | M163: x1* | N163: =IF(T162=U162,O163,0) -> 50.00 | O163: =P28 -> 50.00 | P163: =P60 -> 50.00 | Q163: =P92 -> 50.00 | R163: =IF(T162=U162,P156,P124) -> 50.00 | Y163: x1* | Z163: =IF(AF162=AG162,AA163,AB156) -> 28.57 | AA163: =AB28 -> 28.57 | AB163: =AB60 -> 28.57 | AC163: =AB92 -> 28.57 | AD163: =IF(AF162=AG162,AA163,0) -> 28.57
A164: =A163 -> 5 | B164: 16 | C164: =C163 -> 5 | D164: 16 | E164: =E163 -> 5 | F164: 16 | G164: 1 | M164: x2* | N164: =P157 -> 2.00 | O164: =P29 -> 2.00 | P164: =P61 -> 2.00 | Q164: =P93 -> 2.00 | R164: =P125 -> 2.00 | Y164: x2* | Z164: =IF(AF162=AG162,AA164,AB157) -> 28.57 | AA164: =AB29 -> 28.57 | AB164: =AB61 -> 28.57 | AC164: =AB93 -> 28.57 | AD164: =IF(AF162=AG162,AA164,0) -> 28.57
A166: X2LINE1 | C166: X2LINE2 | E166: X2LINE3 | G166: PONDERA
A167: =C151 -> 16 | B167: =$I$151*G167 -> 0 | C167: =C152 -> 16 | D167: =$I$152*G167 -> 0 | E167: =C153 -> 16 | F167: =$I$153*G167 -> 0 | G167: 0 | M167: CURVA PRECIO-CONSUMO | O167: X1 | P167: X2 | Q167: p1 | R167: p2 | Y167: CURVA PRECIO-CONSUMO | AA167: X1 | AB167: X2 | AC167: p1 | AD167: p2
A168: =A167 -> 16 | B168: 1 | C168: =C167 -> 16 | D168: 1 | E168: =E167 -> 16 | F168: 1 | G168: 0.2 | M168: CURVA CERO | O168: =P156 -> 50.0 | P168: =P157 -> 2.0 | Q168: =P154 -> 2.0 | R168: =P155 -> 100.0 | Y168: CURVA CERO | AA168: =AB156 -> 33.3 | AB168: =AB157 -> 33.3 | AC168: =AB154 -> 1.0 | AD168: =AB155 -> 5.0
A169: =A168 -> 16 | B169: 2 | C169: =C168 -> 16 | D169: 2 | E169: =E168 -> 16 | F169: 2 | G169: 0.4 | M169: CURVA UNO | O169: =P28 -> 50.0 | P169: =P29 -> 2.0 | Q169: =P26 -> 2.0 | R169: =P27 -> 100.0 | Y169: CURVA UNO | AA169: =AB28 -> 28.6 | AB169: =AB29 -> 28.6 | AC169: =AB26 -> 2.0 | AD169: =AB27 -> 5.0
A170: =A169 -> 16 | B170: 3 | C170: =C169 -> 16 | D170: 3 | E170: =E169 -> 16 | F170: 3 | G170: 0.6 | M170: CURVA DOS | O170: =P60 -> 50.0 | P170: =P61 -> 2.0 | Q170: =P58 -> 2.0 | R170: =P59 -> 100.0 | Y170: CURVA DOS | AA170: =AB60 -> 28.6 | AB170: =AB61 -> 28.6 | AC170: =AB58 -> 2.0 | AD170: =AB59 -> 5.0
A171: =A170 -> 16 | B171: 4 | C171: =C170 -> 16 | D171: 4 | E171: =E170 -> 16 | F171: 4 | G171: 0.8 | M171: CURVA TRES | O171: =P92 -> 50.0 | P171: =P93 -> 2.0 | Q171: =P90 -> 2.0 | R171: =P91 -> 100.0 | Y171: CURVA TRES | AA171: =AB92 -> 28.6 | AB171: =AB93 -> 28.6 | AC171: =AB90 -> 2.0 | AD171: =AB91 -> 5.0
A172: =A171 -> 16 | B172: 5 | C172: =C171 -> 16 | D172: 5 | E172: =E171 -> 16 | F172: 5 | G172: 1 | M172: CURVA CUATRO | O172: =P124 -> 66.7 | P172: =P125 -> 2.0 | Q172: =P122 -> 1.5 | R172: =P123 -> 100.0 | Y172: CURVA CUATRO | AA172: =AB124 -> 30.8 | AB172: =AB125 -> 30.8 | AC172: =AB122 -> 1.5 | AD172: =AB123 -> 5.0
M175: X2LINE1 | O175: X2LINE2 | Q175: X2LINE3 | S175: PONDERA | Y175: X2LINE1 | AA175: X2LINE2 | AC175: X2LINE3 | AE175: PONDERA
M176: =Q169 -> 2 | N176: =$O$169*S176 -> 0 | O176: =Q170 -> 2 | P176: =$O$170*S176 -> 0 | Q176: =Q171 -> 2 | R176: =$O$171*S176 -> 0 | S176: 0 | Y176: =AC169 -> 2 | Z176: =$AA$169*AE176 -> 0 | AA176: =AC170 -> 2 | AB176: =$AA$170*AE176 -> 0 | AC176: =AC171 -> 2 | AD176: =$AA$171*AE176 -> 0 | AE176: 0
M177: =M176 -> 2 | N177: 10 | O177: =O176 -> 2 | P177: 10 | Q177: =Q176 -> 2 | R177: 10 | S177: 0.2 | Y177: =Y176 -> 2 | Z177: 5.714285714 | AA177: =AA176 -> 2 | AB177: 5.714285714 | AC177: =AC176 -> 2 | AD177: 5.714285714 | AE177: 0.2
M178: =M177 -> 2 | N178: 20 | O178: =O177 -> 2 | P178: 20 | Q178: =Q177 -> 2 | R178: 20 | S178: 0.4 | Y178: =Y177 -> 2 | Z178: 11.42857143 | AA178: =AA177 -> 2 | AB178: 11.42857143 | AC178: =AC177 -> 2 | AD178: 11.42857143 | AE178: 0.4
M179: =M178 -> 2 | N179: 30 | O179: =O178 -> 2 | P179: 30 | Q179: =Q178 -> 2 | R179: 30 | S179: 0.6 | Y179: =Y178 -> 2 | Z179: 17.14285714 | AA179: =AA178 -> 2 | AB179: 17.14285714 | AC179: =AC178 -> 2 | AD179: 17.14285714 | AE179: 0.6
M180: =M179 -> 2 | N180: 40 | O180: =O179 -> 2 | P180: 40 | Q180: =Q179 -> 2 | R180: 40 | S180: 0.8 | Y180: =Y179 -> 2 | Z180: 22.85714286 | AA180: =AA179 -> 2 | AB180: 22.85714286 | AC180: =AC179 -> 2 | AD180: 22.85714286 | AE180: 0.8
M181: =M180 -> 2 | N181: 50 | O181: =O180 -> 2 | P181: 50 | Q181: =Q180 -> 2 | R181: 50 | S181: 1 | Y181: =Y180 -> 2 | Z181: 28.57142857 | AA181: =AA180 -> 2 | AB181: 28.57142857 | AC181: =AC180 -> 2 | AD181: 28.57142857 | AE181: 1
M183: X2LINE1 | O183: X2LINE2 | Q183: X2LINE3 | S183: PONDERA | Y183: X2LINE1 | AA183: X2LINE2 | AC183: X2LINE3 | AE183: PONDERA
M184: =O169 -> 50 | N184: =$Q$169*S184 -> 0 | O184: =O170 -> 50 | P184: =$Q$170*S184 -> 0 | Q184: =O171 -> 50 | R184: =$Q$171*S184 -> 0 | S184: 0 | Y184: =AA169 -> 28.57142857 | Z184: =$AC$169*AE184 -> 0 | AA184: =AA170 -> 28.57142857 | AB184: =$AC$170*AE184 -> 0 | AC184: =AA171 -> 28.57142857 | AD184: =$AC$171*AE184 -> 0 | AE184: 0
M185: =M184 -> 50 | N185: 0.4 | O185: =O184 -> 50 | P185: 0.4 | Q185: =Q184 -> 50 | R185: 0.4 | S185: 0.2 | Y185: =Y184 -> 28.57142857 | Z185: 0.4 | AA185: =AA184 -> 28.57142857 | AB185: 0.4 | AC185: =AC184 -> 28.57142857 | AD185: 0.4 | AE185: 0.2
M186: =M185 -> 50 | N186: 0.8 | O186: =O185 -> 50 | P186: 0.8 | Q186: =Q185 -> 50 | R186: 0.8 | S186: 0.4 | Y186: =Y185 -> 28.57142857 | Z186: 0.8 | AA186: =AA185 -> 28.57142857 | AB186: 0.8 | AC186: =AC185 -> 28.57142857 | AD186: 0.8 | AE186: 0.4
M187: =M186 -> 50 | N187: 1.2 | O187: =O186 -> 50 | P187: 1.2 | Q187: =Q186 -> 50 | R187: 1.2 | S187: 0.6 | Y187: =Y186 -> 28.57142857 | Z187: 1.2 | AA187: =AA186 -> 28.57142857 | AB187: 1.2 | AC187: =AC186 -> 28.57142857 | AD187: 1.2 | AE187: 0.6
M188: =M187 -> 50 | N188: 1.6 | O188: =O187 -> 50 | P188: 1.6 | Q188: =Q187 -> 50 | R188: 1.6 | S188: 0.8 | Y188: =Y187 -> 28.57142857 | Z188: 1.6 | AA188: =AA187 -> 28.57142857 | AB188: 1.6 | AC188: =AC187 -> 28.57142857 | AD188: 1.6 | AE188: 0.8
M189: =M188 -> 50 | N189: 2 | O189: =O188 -> 50 | P189: 2 | Q189: =Q188 -> 50 | R189: 2 | S189: 1 | Y189: =Y188 -> 28.57142857 | Z189: 2 | AA189: =AA188 -> 28.57142857 | AB189: 2 | AC189: =AC188 -> 28.57142857 | AD189: 2 | AE189: 1

Sheet Cobb-Douglas CPCD (hidden)
A1: CURVA PRECIO-CONSUMO
A2: Y FUNCIÓN DE DEMANDA
A4: COBB-DOUGLAS
C5: RECTA PRESUPUESTAL
C6: m | D6: p1 | E6: x1 | F6: p2 | G6: x2
B7: A | C7: 200.0 | D7: 5.0 | E7: =F14 -> 16.0 | F7: 6.0 | G7: =C14 -> 20.0
B8: B | C8: =$C$7 -> 200.0 | D8: =D7 -> 5.0 | E8: =F15 -> 16.0 | F8: =$F$7 -> 6.0 | G8: =C15 -> 20.0
B9: C | C9: =$C$7 -> 200.0 | D9: =D7 -> 5.0 | E9: =F16 -> 16.0 | F9: =$F$7 -> 6.0 | G9: =C16 -> 20.0
C10: Inserte los datos correspondientes
C12: PARÁMETROS DE LA RECTA PRESUPUESTAL
C13: x2 | D13: b0 | E13: b1 | F13: x1
B14: A | C14: =D14+(E14*F14) -> 20.0 | D14: =C7/F7 -> 33.3 | E14: =D7/F7*-1 -> (0.8) | F14: ='Oculto CPCD'!E27 -> 16.0
B15: B | C15: =D15+(E15*F15) -> 20.0 | D15: =C8/F8 -> 33.3 | E15: =D8/F8*-1 -> (0.8) | F15: ='Oculto CPCD'!E56 -> 16.0
B16: C | C16: =D16+(E16*F16) -> 20.0 | D16: =C9/F9 -> 33.3 | E16: =D9/F9*-1 -> (0.8) | F16: ='Oculto CPCD'!E85 -> 16.0
E18: A | F18: B | G18: C
C19: Máxima cantidad de x1 | E19: =C7/D7 -> 40.0 | F19: =C8/D8 -> 40.0 | G19: =C9/D9 -> 40.0
C20: Máxima cantidad de x2 | E20: =C7/F7 -> 33.3 | F20: =C8/F8 -> 33.3 | G20: =C9/F9 -> 33.3
C21: Precio relativo (<0) | E21: =(D7/F7)*(-1) -> (0.8) | F21: =(D8/F8)*(-1) -> (0.8) | G21: =(D9/F9)*(-1) -> (0.8)
C23: PARÁMETROS DE FUNCIÓN COBB-DOUGLAS
C24: k | D24: a | E24: x1* | F24: 1-a | G24: x2*
B25: A | C25: ='Oculto CPCD'!F28 -> 18.3 | D25: 0.4 | E25: ='Oculto CPCD'!$E$27 -> 16.0 | F25: =1-D25 -> 0.6 | G25: ='Oculto CPCD'!F27 -> 20.0
B26: B | C26: ='Oculto CPCD'!F57 -> 18.3 | D26: =D25 -> 0.4 | E26: ='Oculto CPCD'!$E$56 -> 16.0 | F26: =1-D26 -> 0.6 | G26: ='Oculto CPCD'!$F$56 -> 20.0
B27: C | C27: ='Oculto CPCD'!F86 -> 18.3 | D27: =D26 -> 0.4 | E27: ='Oculto CPCD'!$E$85 -> 16.0 | F27: =1-D27 -> 0.6 | G27: ='Oculto CPCD'!$F$85 -> 20.0
C30: Títulos
C31: Resultados
C32: Insertar datos
C33: Cantidad de equilibrio

Sheet CompPerf CPCD (hidden)
A1: CURVA PRECIO-CONSUMO
A2: Y FUNCIÓN DE DEMANDA
A4: COMPLEMENTOS PERFECTOS
C5: RECTA PRESUPUESTAL
C6: m | D6: p1 | E6: x1 | F6: p2 | G6: x2
B7: A | C7: 200.0 | D7: 2.0 | E7: =D26 -> 28.6 | F7: 5.0 | G7: =E26 -> 28.6
B8: B | C8: =C7 -> 200.0 | D8: =D7 -> 2.0 | E8: =D27 -> 28.6 | F8: =F7 -> 5.0 | G8: =E27 -> 28.6
B9: C | C9: =C8 -> 200.0 | D9: =D7 -> 2.0 | E9: =D28 -> 28.6 | F9: =F8 -> 5.0 | G9: =E28 -> 28.6
C10: Inserte los datos correspondientes
C12: PARÁMETROS DE LA RECTA PRESUPUESTAL
C13: x2 | D13: b0 | E13: b1 | F13: x1
B14: A | C14: =D14+(E14*F14) -> 28.6 | D14: =C7/F7 -> 40.0 | E14: =D7/F7*-1 -> (0.4) | F14: =E7 -> 28.6
B15: B | C15: =E27 -> 28.6 | D15: =C8/F8 -> 40.0 | E15: =D8/F8*-1 -> (0.4) | F15: =D27 -> 28.6
B16: C | C16: =E28 -> 28.6 | D16: =C9/F9 -> 40.0 | E16: =D9/F9*-1 -> (0.4) | F16: =D28 -> 28.6
E19: A | F19: B | G19: C
C20: Máxima cantidad de x1 | E20: =C7/D7 -> 100.0 | F20: =C8/D8 -> 100.0 | G20: =C9/D9 -> 100.0
C21: Máxima cantidad de x2 | E21: =C7/F7 -> 40.0 | F21: =C8/F8 -> 40.0 | G21: =C9/F9 -> 40.0
C22: Precio relativo (<0) | E22: =E14 -> (0.4) | F22: =E15 -> (0.4) | G22: =E16 -> (0.4)
C24: PARÁMETROS DE LA CURVA DE INDIFERENCIA
C25: k | D25: x1* | E25: x2*
B26: A | C26: =MAX('Oculto CPCD'!AB23,'Oculto CPCD'!AC3) -> 100.0 | D26: ='Oculto CPCD'!AB28 -> 28.6 | E26: ='Oculto CPCD'!AB29 -> 28.6
B27: B | C27: =MAX('Oculto CPCD'!AB55,'Oculto CPCD'!AC55) -> 100.0 | D27: ='Oculto CPCD'!AB60 -> 28.6 | E27: ='Oculto CPCD'!AB61 -> 28.6
B28: C | C28: =MAX('Oculto CPCD'!AB87,'Oculto CPCD'!AC87) -> 100.0 | D28: ='Oculto CPCD'!AB92 -> 28.6 | E28: ='Oculto CPCD'!AB93 -> 28.6
C31: Títulos
C32: Resultados
C33: Insertar datos
C34: Cantidad de equilibrio

Sheet Regulares CPCD (hidden)
A1: CURVA PRECIO-CONSUMO
A2: Y FUNCIÓN DE DEMANDA
A4: CUASILINEALES
C5: RECTA PRESUPUESTAL
C6: m | D6: p1 | E6: x1 | F6: p2 | G6: x2
B7: A | C7: 300.0 | D7: 2.0 | E7: =D25 -> 50.0 | F7: 100.0 | G7: =E25 -> 2.0
B8: B | C8: =C7 -> 300.0 | D8: =D7 -> 2.0 | E8: =D26 -> 50.0 | F8: =F7 -> 100.0 | G8: =E26 -> 2.0
B9: C | C9: =C8 -> 300.0 | D9: =D7 -> 2.0 | E9: =D27 -> 50.0 | F9: =F8 -> 100.0 | G9: =E27 -> 2.0
C10: Inserte los datos correspondientes
C12: PARÁMETROS DE LA RECTA PRESUPUESTAL
C13: x2 | D13: b0 | E13: b1 | F13: x1
B14: A | C14: =D14+(E14*F14) -> 2.0 | D14: =C7/F7 -> 3.0 | E14: =D7/F7*-1 -> (0.0) | F14: =E7 -> 50.0
B15: B | C15: =D15+(E15*F15) -> 2.0 | D15: =C8/F8 -> 3.0 | E15: =D8/F8*-1 -> (0.0) | F15: =E8 -> 50.0
B16: C | C16: =D16+(E16*F16) -> 2.0 | D16: =C9/F9 -> 3.0 | E16: =D9/F9*-1 -> (0.0) | F16: =E9 -> 50.0
D18: A | E18: B | F18: C
B19: Máxima cantidad de x1 | D19: =C7/D7 -> 150.0 | E19: =C8/D8 -> 150.0 | F19: =C9/D9 -> 150.0
B20: Máxima cantidad de x2 | D20: =C7/F7 -> 3.0 | E20: =C8/F8 -> 3.0 | F20: =C9/F9 -> 3.0
B21: Precio relativo (<0) | D21: =D7/F7*(-1) -> (0.0) | E21: =(D8/F8)*(-1) -> (0.0) | F21: =(D9/F9)*(-1) -> (0.0)
C23: PARÁMETROS DE FUNCIÓN REGULAR
C24: k | D24: x1* | E24: x2*
B25: A | C25: ='Oculto CPCD'!Q26 -> 5.9 | D25: ='Oculto CPCD'!P28 -> 50.0 | E25: ='Oculto CPCD'!P29 -> 2.0
B26: B | C26: ='Oculto CPCD'!Q58 -> 5.9 | D26: ='Oculto CPCD'!P60 -> 50.0 | E26: ='Oculto CPCD'!P61 -> 2.0
B27: C | C27: ='Oculto CPCD'!Q90 -> 5.9 | D27: ='Oculto CPCD'!P92 -> 50.0 | E27: ='Oculto CPCD'!P93 -> 2.0
B30: Títulos
B31: Resultados
B32: Insertar datos
B33: Cantidad de equilibrio

Sheet Oculto CMCCE (hidden)
A1: COBB-DOUGLAS 1 | C1: Recta Presupuestaria | J1: Curva de Indiferencia | M1: REGULARES 1 | O1: Recta Presupuestaria | V1: Curva de Indiferencia | Y1: COMP. PERFECTOS 1 | AB1: Recta Presupuestaria | AD1: Curva de Indiferencia
A2: Unidades | B2: ponderador | C2: x1 | D2: x2 | E2: x1lin | G2: x2lin | I2: Cota | J2: x1 | K2: x2 | M2: Unidades | N2: ponderador | O2: x1 | P2: x2 | Q2: x1lin | S2: x2lin | U2: Cota | V2: x1 | W2: x2 | Y2: Unidades | Z2: ponderador | AB2: x1 | AC2: x2 | AD2: vertice | AE2: x1line | AF2: x2line | AG2: X1 LINE
A3: 1 | B3: 0 | C3: =('Cobb-Douglas CMCCE'!$E$18)*B3 -> 0 | D3: ='Cobb-Douglas CMCCE'!$D$13+('Cobb-Douglas CMCCE'!$E$13*'Oculto CMCCE'!C3) -> 50.00 | E3: =$E$27 -> 75 | F3: =$F$27*B3 -> 0 | G3: =$E$27*'Oculto CMCCE'!B3 -> 0 | H3: =$F$27 -> 25 | M3: 1 | N3: 0 | O3: =$P$25/$P$26*N3 -> 0 | P3: =($P$25/$P$27)-(($P$26/$P$27)*O3) -> 2.00 | Q3: =$P$28 -> 5.56 | R3: =$P$29*N3 -> 0 | S3: =Q3*N3 -> 0 | T3: =$P$29 -> 1.00 | Y3: 1 | Z3: 0 | AA3: 1.00 | AB3: =$AB$25/$AB$26*Z3 -> 0 | AC3: =$AB$25/$AB$27*AA3 -> 20.00 | AD3: =AB28 -> 10.00 | AE3: =AD3+(($AB$23-AD3)*Z3) -> 10.00 | AF3: =AD3+(($AC$3-AD3)*Z3) -> 10.00 | AG3: =AD3*Z3 -> 0
A4: 2 | B4: 0.05 | C4: =('Cobb-Douglas CMCCE'!$E$18)*B4 -> 7.50 | D4: ='Cobb-Douglas CMCCE'!$D$13+('Cobb-Douglas CMCCE'!$E$13*'Oculto CMCCE'!C4) -> 47.50 | E4: =$E$27 -> 75 | F4: 1.25 | G4: =$E$27*'Oculto CMCCE'!B4 -> 3.75 | H4: =$F$27 -> 25 | I4: 0.28 | J4: =$E$27*I4 -> 21.00 | K4: =($F$28/(J4^($E$26)))^(1/$F$26) -> 89.29 | M4: 2 | N4: 0.05 | O4: =$P$25/$P$26*N4 -> 0.56 | P4: =($P$25/$P$27)-(($P$26/$P$27)*O4) -> 1.90 | Q4: =$P$28 -> 5.56 | R4: =$P$29*N4 -> 0.05 | S4: =Q4*N4 -> 0.28 | T4: =$P$29 -> 1.00 | U4: =$U$25 -> 0.1 | V4: =O4 -> 0.56 | W4: =$Q$26-LN(V4) -> 3.30 | Y4: 2 | Z4: 0.05 | AA4: 0.95 | AB4: =$AB$25/$AB$26*Z4 -> 1.00 | AC4: =$AB$25/$AB$27*AA4 -> 19.00 | AD4: =AD3 -> 10.00 | AE4: =AD4+(($AB$23-AD4)*Z4) -> 10.50 | AF4: =AD4+(($AC$3-AD4)*Z4) -> 10.50 | AG4: =AD4*Z4 -> 0.5
A5: 3 | B5: 0.10 | C5: =('Cobb-Douglas CMCCE'!$E$18)*B5 -> 15.00 | D5: ='Cobb-Douglas CMCCE'!$D$13+('Cobb-Douglas CMCCE'!$E$13*'Oculto CMCCE'!C5) -> 45.00 | E5: 75 | F5: 2.50 | G5: =$E$27*'Oculto CMCCE'!B5 -> 7.50 | H5: 25 | I5: 0.36 | J5: =$E$27*I5 -> 27.00 | K5: =($F$28/(J5^($E$26)))^(1/$F$26) -> 69.44 | M5: 3 | N5: 0.10 | O5: 1.11 | P5: 1.80 | Q5: 5.56 | R5: 0.10 | S5: 0.56 | T5: 1.00 | U5: =U4+$U$25 -> 0.2 | V5: =O5 -> 1.11 | W5: =$Q$26-LN(V5) -> 2.61 | Y5: 3 | Z5: 0.10 | AA5: 0.90 | AB5: 2.00 | AC5: 18.00 | AD5: =AD4 -> 10.00 | AE5: 11.00 | AF5: 11.00 | AG5: 1
A6: 4 | B6: 0.15 | C6: =('Cobb-Douglas CMCCE'!$E$18)*B6 -> 22.50 | D6: ='Cobb-Douglas CMCCE'!$D$13+('Cobb-Douglas CMCCE'!$E$13*'Oculto CMCCE'!C6) -> 42.50 | E6: 75 | F6: 3.75 | G6: =$E$27*'Oculto CMCCE'!B6 -> 11.25 | H6: 25 | I6: 0.44 | J6: 33.00 | K6: 56.82 | M6: 4 | N6: 0.15 | O6: 1.67 | P6: 1.70 | Q6: 5.56 | R6: 0.15 | S6: 0.83 | T6: 1.00 | U6: =U5+$U$25 -> 0.3 | V6: 1.67 | W6: 2.20 | Y6: 4 | Z6: 0.15 | AA6: 0.85 | AB6: 3.00 | AC6: 17.00 | AD6: 10.00 | AE6: 11.50 | AF6: 11.50 | AG6: 1.5
A7: 5 | B7: 0.20 | C7: =('Cobb-Douglas CMCCE'!$E$18)*B7 -> 30.00 | D7: ='Cobb-Douglas CMCCE'!$D$13+('Cobb-Douglas CMCCE'!$E$13*'Oculto CMCCE'!C7) -> 40.00 | E7: 75 | F7: 5.00 | G7: =$E$27*'Oculto CMCCE'!B7 -> 15.00 | H7: 25 | I7: 0.52 | J7: 39.00 | K7: 48.08 | M7: 5 | N7: 0.20 | O7: 2.22 | P7: 1.60 | Q7: 5.56 | R7: 0.20 | S7: 1.11 | T7: 1.00 | U7: 0.4 | V7: 2.22 | W7: 1.92 | Y7: 5 | Z7: 0.20 | AA7: 0.80 | AB7: 4.00 | AC7: 16.00 | AD7: 10.00 | AE7: 12.00 | AF7: 12.00 | AG7: 2
A8: 6 | B8: 0.25 | C8: =('Cobb-Douglas CMCCE'!$E$18)*B8 -> 37.50 | D8: ='Cobb-Douglas CMCCE'!$D$13+('Cobb-Douglas CMCCE'!$E$13*'Oculto CMCCE'!C8) -> 37.50 | E8: 75 | F8: 6.25 | G8: =$E$27*'Oculto CMCCE'!B8 -> 18.75 | H8: 25 | I8: 0.6 | J8: 45.00 | K8: 41.67 | M8: 6 | N8: 0.25 | O8: 2.78 | P8: 1.50 | Q8: 5.56 | R8: 0.25 | S8: 1.39 | T8: 1.00 | U8: 0.5 | V8: 2.78 | W8: 1.69 | Y8: 6 | Z8: 0.25 | AA8: 0.75 | AB8: 5.00 | AC8: 15.00 | AD8: 10.00 | AE8: 12.50 | AF8: 12.50 | AG8: 2.5
A9: 7 | B9: 0.30 | C9: =('Cobb-Douglas CMCCE'!$E$18)*B9 -> 45.00 | D9: ='Cobb-Douglas CMCCE'!$D$13+('Cobb-Douglas CMCCE'!$E$13*'Oculto CMCCE'!C9) -> 35.00 | E9: 75 | F9: 7.50 | G9: =$E$27*'Oculto CMCCE'!B9 -> 22.50 | H9: 25 | I9: 0.68 | J9: 51.00 | K9: 36.76 | M9: 7 | N9: 0.30 | O9: 3.33 | P9: 1.40 | Q9: 5.56 | R9: 0.30 | S9: 1.67 | T9: 1.00 | U9: 0.6 | V9: 3.33 | W9: 1.51 | Y9: 7 | Z9: 0.30 | AA9: 0.70 | AB9: 6.00 | AC9: 14.00 | AD9: 10.00 | AE9: 13.00 | AF9: 13.00 | AG9: 3
A10: 8 | B10: 0.35 | C10: =('Cobb-Douglas CMCCE'!$E$18)*B10 -> 52.50 | D10: ='Cobb-Douglas CMCCE'!$D$13+('Cobb-Douglas CMCCE'!$E$13*'Oculto CMCCE'!C10) -> 32.50 | E10: 75 | F10: 8.75 | G10: =$E$27*'Oculto CMCCE'!B10 -> 26.25 | H10: 25 | I10: 0.76 | J10: 57.00 | K10: 32.89 | M10: 8 | N10: 0.35 | O10: 3.89 | P10: 1.30 | Q10: 5.56 | R10: 0.35 | S10: 1.94 | T10: 1.00 | U10: 0.7 | V10: 3.89 | W10: 1.36 | Y10: 8 | Z10: 0.35 | AA10: 0.65 | AB10: 7.00 | AC10: 13.00 | AD10: 10.00 | AE10: 13.50 | AF10: 13.50 | AG10: 3.5
A11: 9 | B11: 0.40 | C11: =('Cobb-Douglas CMCCE'!$E$18)*B11 -> 60.00 | D11: ='Cobb-Douglas CMCCE'!$D$13+('Cobb-Douglas CMCCE'!$E$13*'Oculto CMCCE'!C11) -> 30.00 | E11: 75 | F11: 10.00 | G11: =$E$27*'Oculto CMCCE'!B11 -> 30.00 | H11: 25 | I11: 0.84 | J11: 63.00 | K11: 29.76 | M11: 9 | N11: 0.40 | O11: 4.44 | P11: 1.20 | Q11: 5.56 | R11: 0.40 | S11: 2.22 | T11: 1.00 | U11: 0.8 | V11: 4.44 | W11: 1.22 | Y11: 9 | Z11: 0.40 | AA11: 0.60 | AB11: 8.00 | AC11: 12.00 | AD11: 10.00 | AE11: 14.00 | AF11: 14.00 | AG11: 4
A12: 10 | B12: 0.45 | C12: =('Cobb-Douglas CMCCE'!$E$18)*B12 -> 67.50 | D12: ='Cobb-Douglas CMCCE'!$D$13+('Cobb-Douglas CMCCE'!$E$13*'Oculto CMCCE'!C12) -> 27.50 | E12: 75 | F12: 11.25 | G12: =$E$27*'Oculto CMCCE'!B12 -> 33.75 | H12: 25 | I12: 0.92 | J12: 69.00 | K12: 27.17 | M12: 10 | N12: 0.45 | O12: 5.00 | P12: 1.10 | Q12: 5.56 | R12: 0.45 | S12: 2.50 | T12: 1.00 | U12: 0.9 | V12: 5.00 | W12: 1.11 | Y12: 10 | Z12: 0.45 | AA12: 0.55 | AB12: 9.00 | AC12: 11.00 | AD12: 10.00 | AE12: 14.50 | AF12: 14.50 | AG12: 4.5
A13: 11 | B13: 0.50 | C13: =('Cobb-Douglas CMCCE'!$E$18)*B13 -> 75.00 | D13: ='Cobb-Douglas CMCCE'!$D$13+('Cobb-Douglas CMCCE'!$E$13*'Oculto CMCCE'!C13) -> 25.00 | E13: 75 | F13: 12.50 | G13: =$E$27*'Oculto CMCCE'!B13 -> 37.50 | H13: 25 | I13: 1 | J13: =$E$27*I13 -> 75.00 | K13: 25.00 | M13: 11 | N13: 0.50 | O13: 5.56 | P13: 1.00 | Q13: 5.56 | R13: 0.50 | S13: 2.78 | T13: 1.00 | U13: 1 | V13: 5.56 | W13: 1.00 | Y13: 11 | Z13: 0.50 | AA13: 0.50 | AB13: 10.00 | AC13: 10.00 | AD13: 10.00 | AE13: 15.00 | AF13: 15.00 | AG13: 5
A14: 12 | B14: 0.55 | C14: =('Cobb-Douglas CMCCE'!$E$18)*B14 -> 82.50 | D14: ='Cobb-Douglas CMCCE'!$D$13+('Cobb-Douglas CMCCE'!$E$13*'Oculto CMCCE'!C14) -> 22.50 | E14: 75 | F14: 13.75 | G14: =$E$27*'Oculto CMCCE'!B14 -> 41.25 | H14: 25 | I14: 1.08 | J14: =$E$27*I14 -> 81.00 | K14: 23.15 | M14: 12 | N14: 0.55 | O14: 6.11 | P14: 0.90 | Q14: 5.56 | R14: 0.55 | S14: 3.06 | T14: 1.00 | U14: =U13+$U$25 -> 1.1 | V14: 6.11 | W14: 0.90 | Y14: 12 | Z14: 0.55 | AA14: 0.45 | AB14: 11.00 | AC14: 9.00 | AD14: 10.00 | AE14: 15.50 | AF14: 15.50 | AG14: 5.5
A15: 13 | B15: 0.60 | C15: =('Cobb-Douglas CMCCE'!$E$18)*B15 -> 90.00 | D15: ='Cobb-Douglas CMCCE'!$D$13+('Cobb-Douglas CMCCE'!$E$13*'Oculto CMCCE'!C15) -> 20.00 | E15: 75 | F15: 15.00 | G15: =$E$27*'Oculto CMCCE'!B15 -> 45.00 | H15: 25 | I15: 1.16 | J15: 87.00 | K15: 21.55 | M15: 13 | N15: 0.60 | O15: 6.67 | P15: 0.80 | Q15: 5.56 | R15: 0.60 | S15: 3.33 | T15: 1.00 | U15: =U14+$U$25 -> 1.2 | V15: 6.67 | W15: 0.82 | Y15: 13 | Z15: 0.60 | AA15: 0.40 | AB15: 12.00 | AC15: 8.00 | AD15: 10.00 | AE15: 16.00 | AF15: 16.00 | AG15: 6
A16: 14 | B16: 0.65 | C16: =('Cobb-Douglas CMCCE'!$E$18)*B16 -> 97.50 | D16: ='Cobb-Douglas CMCCE'!$D$13+('Cobb-Douglas CMCCE'!$E$13*'Oculto CMCCE'!C16) -> 17.50 | E16: 75 | F16: 16.25 | G16: =$E$27*'Oculto CMCCE'!B16 -> 48.75 | H16: 25 | I16: 1.24 | J16: 93.00 | K16: 20.16 | M16: 14 | N16: 0.65 | O16: 7.22 | P16: 0.70 | Q16: 5.56 | R16: 0.65 | S16: 3.61 | T16: 1.00 | U16: 1.3 | V16: 7.22 | W16: 0.74 | Y16: 14 | Z16: 0.65 | AA16: 0.35 | AB16: 13.00 | AC16: 7.00 | AD16: 10.00 | AE16: 16.50 | AF16: 16.50 | AG16: 6.5
A17: 15 | B17: 0.70 | C17: =('Cobb-Douglas CMCCE'!$E$18)*B17 -> 105.00 | D17: ='Cobb-Douglas CMCCE'!$D$13+('Cobb-Douglas CMCCE'!$E$13*'Oculto CMCCE'!C17) -> 15.00 | E17: 75 | F17: 17.50 | G17: =$E$27*'Oculto CMCCE'!B17 -> 52.50 | H17: 25 | I17: 1.32 | J17: 99.00 | K17: 18.94 | M17: 15 | N17: 0.70 | O17: 7.78 | P17: 0.60 | Q17: 5.56 | R17: 0.70 | S17: 3.89 | T17: 1.00 | U17: 1.4 | V17: 7.78 | W17: 0.66 | Y17: 15 | Z17: 0.70 | AA17: 0.30 | AB17: 14.00 | AC17: 6.00 | AD17: 10.00 | AE17: 17.00 | AF17: 17.00 | AG17: 7
A18: 16 | B18: 0.75 | C18: =('Cobb-Douglas CMCCE'!$E$18)*B18 -> 112.50 | D18: ='Cobb-Douglas CMCCE'!$D$13+('Cobb-Douglas CMCCE'!$E$13*'Oculto CMCCE'!C18) -> 12.50 | E18: 75 | F18: 18.75 | G18: =$E$27*'Oculto CMCCE'!B18 -> 56.25 | H18: 25 | I18: 1.4 | J18: 105.00 | K18: 17.86 | M18: 16 | N18: 0.75 | O18: 8.33 | P18: 0.50 | Q18: 5.56 | R18: 0.75 | S18: 4.17 | T18: 1.00 | U18: 1.5 | V18: 8.33 | W18: 0.59 | Y18: 16 | Z18: 0.75 | AA18: 0.25 | AB18: 15.00 | AC18: 5.00 | AD18: 10.00 | AE18: 17.50 | AF18: 17.50 | AG18: 7.5
A19: 17 | B19: 0.80 | C19: =('Cobb-Douglas CMCCE'!$E$18)*B19 -> 120.00 | D19: ='Cobb-Douglas CMCCE'!$D$13+('Cobb-Douglas CMCCE'!$E$13*'Oculto CMCCE'!C19) -> 10.00 | E19: 75 | F19: 20.00 | G19: =$E$27*'Oculto CMCCE'!B19 -> 60.00 | H19: 25 | I19: 1.48 | J19: 111.00 | K19: 16.89 | M19: 17 | N19: 0.80 | O19: 8.89 | P19: 0.40 | Q19: 5.56 | R19: 0.80 | S19: 4.44 | T19: 1.00 | U19: 1.6 | V19: 8.89 | W19: 0.53 | Y19: 17 | Z19: 0.80 | AA19: 0.20 | AB19: 16.00 | AC19: 4.00 | AD19: 10.00 | AE19: 18.00 | AF19: 18.00 | AG19: 8
A20: 18 | B20: 0.85 | C20: =('Cobb-Douglas CMCCE'!$E$18)*B20 -> 127.50 | D20: ='Cobb-Douglas CMCCE'!$D$13+('Cobb-Douglas CMCCE'!$E$13*'Oculto CMCCE'!C20) -> 7.50 | E20: 75 | F20: 21.25 | G20: =$E$27*'Oculto CMCCE'!B20 -> 63.75 | H20: 25 | I20: 1.56 | J20: 117.00 | K20: 16.03 | M20: 18 | N20: 0.85 | O20: 9.44 | P20: 0.30 | Q20: 5.56 | R20: 0.85 | S20: 4.72 | T20: 1.00 | U20: 1.7 | V20: 9.44 | W20: 0.47 | Y20: 18 | Z20: 0.85 | AA20: 0.15 | AB20: 17.00 | AC20: 3.00 | AD20: 10.00 | AE20: 18.50 | AF20: 18.50 | AG20: 8.5
A21: 19 | B21: 0.90 | C21: =('Cobb-Douglas CMCCE'!$E$18)*B21 -> 135.00 | D21: ='Cobb-Douglas CMCCE'!$D$13+('Cobb-Douglas CMCCE'!$E$13*'Oculto CMCCE'!C21) -> 5.00 | E21: 75 | F21: 22.50 | G21: =$E$27*'Oculto CMCCE'!B21 -> 67.50 | H21: 25 | I21: 1.64 | J21: 123.00 | K21: 15.24 | M21: 19 | N21: 0.90 | O21: 10.00 | P21: 0.20 | Q21: 5.56 | R21: 0.90 | S21: 5.00 | T21: 1.00 | U21: 1.8 | V21: 10.00 | W21: 0.41 | Y21: 19 | Z21: 0.90 | AA21: 0.10 | AB21: 18.00 | AC21: 2.00 | AD21: 10.00 | AE21: 19.00 | AF21: 19.00 | AG21: 9
A22: 20 | B22: 0.95 | C22: =('Cobb-Douglas CMCCE'!$E$18)*B22 -> 142.50 | D22: ='Cobb-Douglas CMCCE'!$D$13+('Cobb-Douglas CMCCE'!$E$13*'Oculto CMCCE'!C22) -> 2.50 | E22: 75 | F22: 23.75 | G22: =$E$27*'Oculto CMCCE'!B22 -> 71.25 | H22: 25 | I22: 1.72 | J22: 129.00 | K22: 14.53 | M22: 20 | N22: 0.95 | O22: 10.56 | P22: 0.10 | Q22: 5.56 | R22: 0.95 | S22: 5.28 | T22: 1.00 | U22: 1.9 | V22: 10.56 | W22: 0.36 | Y22: 20 | Z22: 0.95 | AA22: 0.05 | AB22: 19.00 | AC22: 1.00 | AD22: 10.00 | AE22: 19.50 | AF22: 19.50 | AG22: 9.5
A23: 21 | B23: 1.00 | C23: =('Cobb-Douglas CMCCE'!$E$18)*B23 -> 150.00 | D23: ='Cobb-Douglas CMCCE'!$D$13+('Cobb-Douglas CMCCE'!$E$13*'Oculto CMCCE'!C23) -> 0 | E23: 75 | F23: =$F$27*B23 -> 25.00 | G23: =$E$27*'Oculto CMCCE'!B23 -> 75.00 | H23: 25 | I23: 1.8 | J23: 135.00 | K23: 13.89 | M23: 21 | N23: 1.00 | O23: 11.11 | P23: 0 | Q23: 5.56 | R23: 1.00 | S23: 5.56 | T23: 1.00 | U23: 2 | V23: 11.11 | W23: 0.31 | Y23: 21 | Z23: 1.00 | AA23: 0 | AB23: 20.00 | AC23: 0 | AD23: 10.00 | AE23: 20.00 | AF23: =AD23+(($AC$3-AD23)*Z23) -> 20.00 | AG23: 10
E25: x1 | F25: x2 | O25: m | P25: ='Regulares CMCCE'!$C$6 -> 100.00 | Q25: k | U25: =1/10 -> 0.1 | AA25: m | AB25: ='CompPerf CMCCE'!C6 -> 100
E26: ='Cobb-Douglas CMCCE'!$D$24 -> 0.5 | F26: ='Cobb-Douglas CMCCE'!$F$24 -> 0.5 | O26: p1 | P26: ='Regulares CMCCE'!D6 -> 9 | Q26: =LN(P28)+P29 -> 2.71 | AA26: p1 | AB26: ='CompPerf CMCCE'!D6 -> 5
E27: ='Cobb-Douglas CMCCE'!$D$24*('Cobb-Douglas CMCCE'!$C$6/'Cobb-Douglas CMCCE'!$D$6) -> 75 | F27: ='Cobb-Douglas CMCCE'!$F$24*('Cobb-Douglas CMCCE'!$C$6/'Cobb-Douglas CMCCE'!$F$6) -> 25 | O27: p2 | P27: ='Regulares CMCCE'!F6 -> 50 | AA27: p2 | AB27: ='CompPerf CMCCE'!F6 -> 5
F28: =(E27^(E26))*(F27^(F26)) -> 43.30127019 | O28: x1* | P28: =P27/P26 -> 5.56 | AA28: x1 | AB28: =AB25/(AB27+AB26) -> 10
O29: x2* | P29: =P25/P27-1 -> 1.00 | AA29: x2 | AB29: =AB28 -> 10
A30: COBB-DOUGLAS 2 | C30: Recta Presupuestaria | J30: Curva de Indiferencia | O30: lamda | P30: =(P25+(P26*Q28)+(P27*Q30))/(2*(P26*P27)) -> 0.11
A31: Unidades | B31: ponderador | C31: x1 | D31: x2 | E31: x3lin | G31: x4lin | I31: Cota | J31: x1 | K31: x2
A32: 1 | B32: 0 | C32: ='Cobb-Douglas CMCCE'!$F$18*B32 -> 0 | D32: ='Cobb-Douglas CMCCE'!$D$14+('Cobb-Douglas CMCCE'!$E$14*'Oculto CMCCE'!C32) -> 50.00 | E32: =$E$56 -> 75 | F32: =$F$56*B32 -> 0 | G32: =$E$56*'Oculto CMCCE'!B32 -> 0 | H32: =$F$56 -> 25
A33: 2 | B33: 0.05 | C33: ='Cobb-Douglas CMCCE'!$F$18*B33 -> 7.50 | D33: ='Cobb-Douglas CMCCE'!$D$14+('Cobb-Douglas CMCCE'!$E$14*'Oculto CMCCE'!C33) -> 47.50 | E33: =$E$56 -> 75 | F33: =$F$56*B33 -> 1.25 | G33: =$E$56*'Oculto CMCCE'!B33 -> 3.75 | H33: =$F$56 -> 25 | I33: 0.28 | J33: =$E$56*I33 -> 21.00 | K33: =($F$57/(J33^($E$55)))^(1/$F$55) -> 89.29 | M33: REGULARES 2 | O33: Recta Presupuestaria | V33: Curva de Indiferencia | Y33: COMP. PERFECTOS 2 | AB33: Recta Presupuestaria | AD33: Curva de Indiferencia
A34: 3 | B34: 0.10 | C34: ='Cobb-Douglas CMCCE'!$F$18*B34 -> 15.00 | D34: ='Cobb-Douglas CMCCE'!$D$14+('Cobb-Douglas CMCCE'!$E$14*'Oculto CMCCE'!C34) -> 45.00 | E34: 75 | F34: 2.50 | G34: =$E$56*'Oculto CMCCE'!B34 -> 7.50 | H34: 25 | I34: 0.36 | J34: =$E$56*I34 -> 27.00 | K34: =($F$57/(J34^($E$55)))^(1/$F$55) -> 69.44 | M34: Unidades | N34: ponderador | O34: x1 | P34: x2 | Q34: x1lin | S34: x2lin | U34: Cota | V34: x1 | W34: x2 | Y34: Unidades | Z34: ponderador | AB34: x1 | AC34: x2 | AD34: vertice | AE34: x1line | AF34: x2line | AG34: X1 LINE
A35: 4 | B35: 0.15 | C35: ='Cobb-Douglas CMCCE'!$F$18*B35 -> 22.50 | D35: ='Cobb-Douglas CMCCE'!$D$14+('Cobb-Douglas CMCCE'!$E$14*'Oculto CMCCE'!C35) -> 42.50 | E35: 75 | F35: 3.75 | G35: =$E$56*'Oculto CMCCE'!B35 -> 11.25 | H35: 25 | I35: 0.44 | J35: 33.00 | K35: 56.82 | M35: 1 | N35: 0 | O35: =$P$57/$P$58*N35 -> 0 | P35: =($P$57/$P$59)-(($P$58/$P$59)*O35) -> 2.00 | Q35: =$P$60 -> 5.56 | R35: =$P$61*N35 -> 0 | S35: =$P$60*N35 -> 0 | T35: =$P$61 -> 1.00 | Y35: 1 | Z35: 0 | AA35: 1.00 | AB35: =$AB$57/$AB$58*Z35 -> 0 | AC35: =$AB$57/$AB$59*AA35 -> 20.00 | AD35: =AB60 -> 10.00 | AE35: =AD35+(($AB$55-AD35)*Z35) -> 10.00 | AF35: =AD35+(($AC$35-AD35)*Z35) -> 10.00 | AG35: =AD35*Z35 -> 0
A36: 5 | B36: 0.20 | C36: ='Cobb-Douglas CMCCE'!$F$18*B36 -> 30.00 | D36: ='Cobb-Douglas CMCCE'!$D$14+('Cobb-Douglas CMCCE'!$E$14*'Oculto CMCCE'!C36) -> 40.00 | E36: 75 | F36: 5.00 | G36: =$E$56*'Oculto CMCCE'!B36 -> 15.00 | H36: 25 | I36: 0.52 | J36: 39.00 | K36: 48.08 | M36: 2 | N36: 0.05 | O36: =$P$57/$P$58*N36 -> 0.56 | P36: =($P$57/$P$59)-(($P$58/$P$59)*O36) -> 1.90 | Q36: =$P$60 -> 5.56 | R36: =$P$61*N36 -> 0.05 | S36: =$P$60*N36 -> 0.28 | T36: =$P$61 -> 1.00 | U36: =$U$25 -> 0.1 | V36: =O36 -> 0.56 | W36: =$Q$58-LN(V36) -> 3.30 | Y36: 2 | Z36: 0.05 | AA36: 0.95 | AB36: =$AB$57/$AB$58*Z36 -> 1.00 | AC36: =$AB$57/$AB$59*AA36 -> 19.00 | AD36: =AD35 -> 10.00 | AE36: 10.50 | AF36: =AD36+(($AC$35-AD36)*Z36) -> 10.50 | AG36: =AD36*Z36 -> 0.5
A37: 6 | B37: 0.25 | C37: ='Cobb-Douglas CMCCE'!$F$18*B37 -> 37.50 | D37: ='Cobb-Douglas CMCCE'!$D$14+('Cobb-Douglas CMCCE'!$E$14*'Oculto CMCCE'!C37) -> 37.50 | E37: 75 | F37: 6.25 | G37: =$E$56*'Oculto CMCCE'!B37 -> 18.75 | H37: 25 | I37: 0.6 | J37: 45.00 | K37: 41.67 | M37: 3 | N37: 0.10 | O37: 1.11 | P37: 1.80 | Q37: 5.56 | R37: 0.10 | S37: 0.56 | T37: 1.00 | U37: =U36+$U$25 -> 0.2 | V37: =O37 -> 1.11 | W37: =$Q$58-LN(V37) -> 2.61 | Y37: 3 | Z37: 0.10 | AA37: 0.90 | AB37: 2.00 | AC37: 18.00 | AD37: =AD36 -> 10.00 | AE37: 11.00 | AF37: 11.00 | AG37: 1
A38: 7 | B38: 0.30 | C38: ='Cobb-Douglas CMCCE'!$F$18*B38 -> 45.00 | D38: ='Cobb-Douglas CMCCE'!$D$14+('Cobb-Douglas CMCCE'!$E$14*'Oculto CMCCE'!C38) -> 35.00 | E38: 75 | F38: 7.50 | G38: =$E$56*'Oculto CMCCE'!B38 -> 22.50 | H38: 25 | I38: 0.68 | J38: 51.00 | K38: 36.76 | M38: 4 | N38: 0.15 | O38: 1.67 | P38: 1.70 | Q38: 5.56 | R38: 0.15 | S38: 0.83 | T38: 1.00 | U38: =U37+$U$25 -> 0.3 | V38: 1.67 | W38: 2.20 | Y38: 4 | Z38: 0.15 | AA38: 0.85 | AB38: 3.00 | AC38: 17.00 | AD38: 10.00 | AE38: 11.50 | AF38: 11.50 | AG38: 1.5
A39: 8 | B39: 0.35 | C39: ='Cobb-Douglas CMCCE'!$F$18*B39 -> 52.50 | D39: ='Cobb-Douglas CMCCE'!$D$14+('Cobb-Douglas CMCCE'!$E$14*'Oculto CMCCE'!C39) -> 32.50 | E39: 75 | F39: 8.75 | G39: =$E$56*'Oculto CMCCE'!B39 -> 26.25 | H39: 25 | I39: 0.76 | J39: 57.00 | K39: 32.89 | M39: 5 | N39: 0.20 | O39: 2.22 | P39: 1.60 | Q39: 5.56 | R39: 0.20 | S39: 1.11 | T39: 1.00 | U39: 0.4 | V39: 2.22 | W39: 1.92 | Y39: 5 | Z39: 0.20 | AA39: 0.80 | AB39: 4.00 | AC39: 16.00 | AD39: 10.00 | AE39: 12.00 | AF39: 12.00 | AG39: 2
A40: 9 | B40: 0.40 | C40: ='Cobb-Douglas CMCCE'!$F$18*B40 -> 60.00 | D40: ='Cobb-Douglas CMCCE'!$D$14+('Cobb-Douglas CMCCE'!$E$14*'Oculto CMCCE'!C40) -> 30.00 | E40: 75 | F40: 10.00 | G40: =$E$56*'Oculto CMCCE'!B40 -> 30.00 | H40: 25 | I40: 0.84 | J40: 63.00 | K40: 29.76 | M40: 6 | N40: 0.25 | O40: 2.78 | P40: 1.50 | Q40: 5.56 | R40: 0.25 | S40: 1.39 | T40: 1.00 | U40: 0.5 | V40: 2.78 | W40: 1.69 | Y40: 6 | Z40: 0.25 | AA40: 0.75 | AB40: 5.00 | AC40: 15.00 | AD40: 10.00 | AE40: 12.50 | AF40: 12.50 | AG40: 2.5
A41: 10 | B41: 0.45 | C41: ='Cobb-Douglas CMCCE'!$F$18*B41 -> 67.50 | D41: ='Cobb-Douglas CMCCE'!$D$14+('Cobb-Douglas CMCCE'!$E$14*'Oculto CMCCE'!C41) -> 27.50 | E41: 75 | F41: 11.25 | G41: =$E$56*'Oculto CMCCE'!B41 -> 33.75 | H41: 25 | I41: 0.92 | J41: 69.00 | K41: 27.17 | M41: 7 | N41: 0.30 | O41: 3.33 | P41: 1.40 | Q41: 5.56 | R41: 0.30 | S41: 1.67 | T41: 1.00 | U41: 0.6 | V41: 3.33 | W41: 1.51 | Y41: 7 | Z41: 0.30 | AA41: 0.70 | AB41: 6.00 | AC41: 14.00 | AD41: 10.00 | AE41: 13.00 | AF41: 13.00 | AG41: 3
A42: 11 | B42: 0.50 | C42: ='Cobb-Douglas CMCCE'!$F$18*B42 -> 75.00 | D42: ='Cobb-Douglas CMCCE'!$D$14+('Cobb-Douglas CMCCE'!$E$14*'Oculto CMCCE'!C42) -> 25.00 | E42: 75 | F42: 12.50 | G42: =$E$56*'Oculto CMCCE'!B42 -> 37.50 | H42: 25 | I42: 1 | J42: 75.00 | K42: 25.00 | M42: 8 | N42: 0.35 | O42: 3.89 | P42: 1.30 | Q42: 5.56 | R42: 0.35 | S42: 1.94 | T42: 1.00 | U42: 0.7 | V42: 3.89 | W42: 1.36 | Y42: 8 | Z42: 0.35 | AA42: 0.65 | AB42: 7.00 | AC42: 13.00 | AD42: 10.00 | AE42: 13.50 | AF42: 13.50 | AG42: 3.5
A43: 12 | B43: 0.55 | C43: ='Cobb-Douglas CMCCE'!$F$18*B43 -> 82.50 | D43: ='Cobb-Douglas CMCCE'!$D$14+('Cobb-Douglas CMCCE'!$E$14*'Oculto CMCCE'!C43) -> 22.50 | E43: 75 | F43: 13.75 | G43: =$E$56*'Oculto CMCCE'!B43 -> 41.25 | H43: 25 | I43: 1.08 | J43: 81.00 | K43: 23.15 | M43: 9 | N43: 0.40 | O43: 4.44 | P43: 1.20 | Q43: 5.56 | R43: 0.40 | S43: 2.22 | T43: 1.00 | U43: 0.8 | V43: 4.44 | W43: 1.22 | Y43: 9 | Z43: 0.40 | AA43: 0.60 | AB43: 8.00 | AC43: 12.00 | AD43: 10.00 | AE43: 14.00 | AF43: 14.00 | AG43: 4
A44: 13 | B44: 0.60 | C44: ='Cobb-Douglas CMCCE'!$F$18*B44 -> 90.00 | D44: ='Cobb-Douglas CMCCE'!$D$14+('Cobb-Douglas CMCCE'!$E$14*'Oculto CMCCE'!C44) -> 20.00 | E44: 75 | F44: 15.00 | G44: =$E$56*'Oculto CMCCE'!B44 -> 45.00 | H44: 25 | I44: 1.16 | J44: 87.00 | K44: 21.55 | M44: 10 | N44: 0.45 | O44: 5.00 | P44: 1.10 | Q44: 5.56 | R44: 0.45 | S44: 2.50 | T44: 1.00 | U44: 0.9 | V44: 5.00 | W44: 1.11 | Y44: 10 | Z44: 0.45 | AA44: 0.55 | AB44: 9.00 | AC44: 11.00 | AD44: 10.00 | AE44: 14.50 | AF44: 14.50 | AG44: 4.5
A45: 14 | B45: 0.65 | C45: ='Cobb-Douglas CMCCE'!$F$18*B45 -> 97.50 | D45: ='Cobb-Douglas CMCCE'!$D$14+('Cobb-Douglas CMCCE'!$E$14*'Oculto CMCCE'!C45) -> 17.50 | E45: 75 | F45: 16.25 | G45: =$E$56*'Oculto CMCCE'!B45 -> 48.75 | H45: 25 | I45: 1.24 | J45: 93.00 | K45: 20.16 | M45: 11 | N45: 0.50 | O45: 5.56 | P45: 1.00 | Q45: 5.56 | R45: 0.50 | S45: 2.78 | T45: 1.00 | U45: 1 | V45: 5.56 | W45: 1.00 | Y45: 11 | Z45: 0.50 | AA45: 0.50 | AB45: 10.00 | AC45: 10.00 | AD45: 10.00 | AE45: 15.00 | AF45: 15.00 | AG45: 5
A46: 15 | B46: 0.70 | C46: ='Cobb-Douglas CMCCE'!$F$18*B46 -> 105.00 | D46: ='Cobb-Douglas CMCCE'!$D$14+('Cobb-Douglas CMCCE'!$E$14*'Oculto CMCCE'!C46) -> 15.00 | E46: 75 | F46: 17.50 | G46: =$E$56*'Oculto CMCCE'!B46 -> 52.50 | H46: 25 | I46: 1.32 | J46: 99.00 | K46: 18.94 | M46: 12 | N46: 0.55 | O46: 6.11 | P46: 0.90 | Q46: 5.56 | R46: 0.55 | S46: 3.06 | T46: 1.00 | U46: =U45+$U$25 -> 1.1 | V46: 6.11 | W46: 0.90 | Y46: 12 | Z46: 0.55 | AA46: 0.45 | AB46: 11.00 | AC46: 9.00 | AD46: 10.00 | AE46: 15.50 | AF46: 15.50 | AG46: 5.5
A47: 16 | B47: 0.75 | C47: ='Cobb-Douglas CMCCE'!$F$18*B47 -> 112.50 | D47: ='Cobb-Douglas CMCCE'!$D$14+('Cobb-Douglas CMCCE'!$E$14*'Oculto CMCCE'!C47) -> 12.50 | E47: 75 | F47: 18.75 | G47: =$E$56*'Oculto CMCCE'!B47 -> 56.25 | H47: 25 | I47: 1.4 | J47: 105.00 | K47: 17.86 | M47: 13 | N47: 0.60 | O47: 6.67 | P47: 0.80 | Q47: 5.56 | R47: 0.60 | S47: 3.33 | T47: 1.00 | U47: =U46+$U$25 -> 1.2 | V47: 6.67 | W47: 0.82 | Y47: 13 | Z47: 0.60 | AA47: 0.40 | AB47: 12.00 | AC47: 8.00 | AD47: 10.00 | AE47: 16.00 | AF47: 16.00 | AG47: 6
A48: 17 | B48: 0.80 | C48: ='Cobb-Douglas CMCCE'!$F$18*B48 -> 120.00 | D48: ='Cobb-Douglas CMCCE'!$D$14+('Cobb-Douglas CMCCE'!$E$14*'Oculto CMCCE'!C48) -> 10.00 | E48: 75 | F48: 20.00 | G48: =$E$56*'Oculto CMCCE'!B48 -> 60.00 | H48: 25 | I48: 1.48 | J48: 111.00 | K48: 16.89 | M48: 14 | N48: 0.65 | O48: 7.22 | P48: 0.70 | Q48: 5.56 | R48: 0.65 | S48: 3.61 | T48: 1.00 | U48: 1.3 | V48: 7.22 | W48: 0.74 | Y48: 14 | Z48: 0.65 | AA48: 0.35 | AB48: 13.00 | AC48: 7.00 | AD48: 10.00 | AE48: 16.50 | AF48: 16.50 | AG48: 6.5
A49: 18 | B49: 0.85 | C49: ='Cobb-Douglas CMCCE'!$F$18*B49 -> 127.50 | D49: ='Cobb-Douglas CMCCE'!$D$14+('Cobb-Douglas CMCCE'!$E$14*'Oculto CMCCE'!C49) -> 7.50 | E49: 75 | F49: 21.25 | G49: =$E$56*'Oculto CMCCE'!B49 -> 63.75 | H49: 25 | I49: 1.56 | J49: 117.00 | K49: 16.03 | M49: 15 | N49: 0.70 | O49: 7.78 | P49: 0.60 | Q49: 5.56 | R49: 0.70 | S49: 3.89 | T49: 1.00 | U49: 1.4 | V49: 7.78 | W49: 0.66 | Y49: 15 | Z49: 0.70 | AA49: 0.30 | AB49: 14.00 | AC49: 6.00 | AD49: 10.00 | AE49: 17.00 | AF49: 17.00 | AG49: 7
A50: 19 | B50: 0.90 | C50: ='Cobb-Douglas CMCCE'!$F$18*B50 -> 135.00 | D50: ='Cobb-Douglas CMCCE'!$D$14+('Cobb-Douglas CMCCE'!$E$14*'Oculto CMCCE'!C50) -> 5.00 | E50: 75 | F50: 22.50 | G50: =$E$56*'Oculto CMCCE'!B50 -> 67.50 | H50: 25 | I50: 1.64 | J50: 123.00 | K50: 15.24 | M50: 16 | N50: 0.75 | O50: 8.33 | P50: 0.50 | Q50: 5.56 | R50: 0.75 | S50: 4.17 | T50: 1.00 | U50: 1.5 | V50: 8.33 | W50: 0.59 | Y50: 16 | Z50: 0.75 | AA50: 0.25 | AB50: 15.00 | AC50: 5.00 | AD50: 10.00 | AE50: 17.50 | AF50: 17.50 | AG50: 7.5
A51: 20 | B51: 0.95 | C51: ='Cobb-Douglas CMCCE'!$F$18*B51 -> 142.50 | D51: ='Cobb-Douglas CMCCE'!$D$14+('Cobb-Douglas CMCCE'!$E$14*'Oculto CMCCE'!C51) -> 2.50 | E51: 75 | F51: 23.75 | G51: =$E$56*'Oculto CMCCE'!B51 -> 71.25 | H51: 25 | I51: 1.72 | J51: 129.00 | K51: 14.53 | M51: 17 | N51: 0.80 | O51: 8.89 | P51: 0.40 | Q51: 5.56 | R51: 0.80 | S51: 4.44 | T51: 1.00 | U51: 1.6 | V51: 8.89 | W51: 0.53 | Y51: 17 | Z51: 0.80 | AA51: 0.20 | AB51: 16.00 | AC51: 4.00 | AD51: 10.00 | AE51: 18.00 | AF51: 18.00 | AG51: 8
A52: 21 | B52: 1.00 | C52: ='Cobb-Douglas CMCCE'!$F$18*B52 -> 150.00 | D52: ='Cobb-Douglas CMCCE'!$D$14+('Cobb-Douglas CMCCE'!$E$14*'Oculto CMCCE'!C52) -> 0 | E52: 75 | F52: 25.00 | G52: =$E$56*'Oculto CMCCE'!B52 -> 75.00 | H52: 25 | I52: 1.8 | J52: 135.00 | K52: 13.89 | M52: 18 | N52: 0.85 | O52: 9.44 | P52: 0.30 | Q52: 5.56 | R52: 0.85 | S52: 4.72 | T52: 1.00 | U52: 1.7 | V52: 9.44 | W52: 0.47 | Y52: 18 | Z52: 0.85 | AA52: 0.15 | AB52: 17.00 | AC52: 3.00 | AD52: 10.00 | AE52: 18.50 | AF52: 18.50 | AG52: 8.5
M53: 19 | N53: 0.90 | O53: 10.00 | P53: 0.20 | Q53: 5.56 | R53: 0.90 | S53: 5.00 | T53: 1.00 | U53: 1.8 | V53: 10.00 | W53: 0.41 | Y53: 19 | Z53: 0.90 | AA53: 0.10 | AB53: 18.00 | AC53: 2.00 | AD53: 10.00 | AE53: 19.00 | AF53: 19.00 | AG53: 9
E54: x1 | F54: x2 | M54: 20 | N54: 0.95 | O54: 10.56 | P54: 0.10 | Q54: 5.56 | R54: 0.95 | S54: 5.28 | T54: 1.00 | U54: 1.9 | V54: 10.56 | W54: 0.36 | Y54: 20 | Z54: 0.95 | AA54: 0.05 | AB54: 19.00 | AC54: 1.00 | AD54: 10.00 | AE54: 19.50 | AF54: 19.50 | AG54: 9.5
E55: ='Cobb-Douglas CMCCE'!$D$25 -> 0.5 | F55: ='Cobb-Douglas CMCCE'!$F$25 -> 0.5 | M55: 21 | N55: 1.00 | O55: 11.11 | P55: 0 | Q55: 5.56 | R55: 1.00 | S55: 5.56 | T55: 1.00 | U55: 2 | V55: 11.11 | W55: 0.31 | Y55: 21 | Z55: 1.00 | AA55: 0 | AB55: 20.00 | AC55: 0 | AD55: 10.00 | AE55: =AD55+(($AB$55-AD55)*Z55) -> 20.00 | AF55: 20.00 | AG55: 10
E56: ='Cobb-Douglas CMCCE'!$D$24*('Cobb-Douglas CMCCE'!$C$7/'Cobb-Douglas CMCCE'!$D$7) -> 75 | F56: ='Cobb-Douglas CMCCE'!$F$24*('Cobb-Douglas CMCCE'!$C$7/'Cobb-Douglas CMCCE'!$F$7) -> 25
F57: =(E56^(E55))*(F56^(F55)) -> 43.30127019 | O57: m | P57: ='Regulares CMCCE'!C7 -> 100.00 | Q57: k | U57: =1/10 -> 0.1 | AA57: m | AB57: ='CompPerf CMCCE'!$C$7 -> 100
O58: p1 | P58: ='Regulares CMCCE'!D6 -> 9 | Q58: =LN(P60)+P61 -> 2.71 | AA58: p1 | AB58: ='CompPerf CMCCE'!D7 -> 5
A59: COBB-DOUGLAS 3 | C59: Recta Presupuestaria | J59: Curva de Indiferencia | O59: p2 | P59: ='Regulares CMCCE'!F7 -> 50 | AA59: p2 | AB59: =AB27 -> 5
A60: Unidades | B60: ponderador | C60: x1 | D60: x2 | E60: x5lin | G60: x6lin | I60: Cota | J60: x1 | K60: x2 | O60: x1* | P60: =P59/P58 -> 5.56 | AA60: x1 | AB60: =AB57/(AB59+AB58) -> 10
A61: 1 | B61: 0 | C61: ='Cobb-Douglas CMCCE'!$G$18*B61 -> 0 | D61: ='Cobb-Douglas CMCCE'!$D$15+('Cobb-Douglas CMCCE'!$E$15*'Oculto CMCCE'!C61) -> 50.00 | E61: =$E$85 -> 75 | F61: =$F$85*B61 -> 0 | G61: =$E$85*B61 -> 0 | H61: =$F$85 -> 25 | O61: x2* | P61: =P57/P59-1 -> 1.00 | AA61: x2 | AB61: =AB60 -> 10
A62: 2 | B62: 0.05 | C62: ='Cobb-Douglas CMCCE'!$G$18*B62 -> 7.50 | D62: ='Cobb-Douglas CMCCE'!$D$15+('Cobb-Douglas CMCCE'!$E$15*'Oculto CMCCE'!C62) -> 47.50 | E62: =$E$85 -> 75 | F62: =$F$85*B62 -> 1.25 | G62: =$E$85*B62 -> 3.75 | H62: =$F$85 -> 25 | I62: 0.28 | J62: =I62*$E$85 -> 21.00 | K62: =($F$86/(J62^($E$84)))^(1/$F$84) -> 89.29
A63: 3 | B63: 0.10 | C63: ='Cobb-Douglas CMCCE'!$G$18*B63 -> 15.00 | D63: ='Cobb-Douglas CMCCE'!$D$15+('Cobb-Douglas CMCCE'!$E$15*'Oculto CMCCE'!C63) -> 45.00 | E63: 75 | F63: 2.50 | G63: 7.50 | H63: 25 | I63: 0.36 | J63: =I63*$E$85 -> 27.00 | K63: =($F$86/(J63^($E$84)))^(1/$F$84) -> 69.44
A64: 4 | B64: 0.15 | C64: ='Cobb-Douglas CMCCE'!$G$18*B64 -> 22.50 | D64: ='Cobb-Douglas CMCCE'!$D$15+('Cobb-Douglas CMCCE'!$E$15*'Oculto CMCCE'!C64) -> 42.50 | E64: 75 | F64: 3.75 | G64: 11.25 | H64: 25 | I64: 0.44 | J64: 33.00 | K64: 56.82
A65: 5 | B65: 0.20 | C65: ='Cobb-Douglas CMCCE'!$G$18*B65 -> 30.00 | D65: ='Cobb-Douglas CMCCE'!$D$15+('Cobb-Douglas CMCCE'!$E$15*'Oculto CMCCE'!C65) -> 40.00 | E65: 75 | F65: 5.00 | G65: 15.00 | H65: 25 | I65: 0.52 | J65: 39.00 | K65: 48.08 | M65: REGULARES 3 | O65: Recta Presupuestaria | V65: Curva de Indiferencia | Y65: COMP. PERFECTOS 3 | AB65: Recta Presupuestaria | AD65: Curva de Indiferencia
A66: 6 | B66: 0.25 | C66: ='Cobb-Douglas CMCCE'!$G$18*B66 -> 37.50 | D66: ='Cobb-Douglas CMCCE'!$D$15+('Cobb-Douglas CMCCE'!$E$15*'Oculto CMCCE'!C66) -> 37.50 | E66: 75 | F66: 6.25 | G66: 18.75 | H66: 25 | I66: 0.6 | J66: 45.00 | K66: 41.67 | M66: Unidades | N66: ponderador | O66: x1 | P66: x2 | Q66: x1lin | S66: x2lin | U66: Cota | V66: x1 | W66: x2 | Y66: Unidades | Z66: ponderador | AB66: x1 | AC66: x2 | AD66: vertice | AE66: x1line | AF66: x2line | AG66: X1 LINE
A67: 7 | B67: 0.30 | C67: ='Cobb-Douglas CMCCE'!$G$18*B67 -> 45.00 | D67: ='Cobb-Douglas CMCCE'!$D$15+('Cobb-Douglas CMCCE'!$E$15*'Oculto CMCCE'!C67) -> 35.00 | E67: 75 | F67: 7.50 | G67: 22.50 | H67: 25 | I67: 0.68 | J67: 51.00 | K67: 36.76 | M67: 1 | N67: 0 | O67: =$P$89/$P$90*N67 -> 0 | P67: =($P$89/$P$27)-(($P$90/$P$27)*O67) -> 2.00 | Q67: =$P$92 -> 5.56 | R67: =$P$93*N67 -> 0 | S67: =Q67*N67 -> 0 | T67: =$P$93 -> 1.00 | Y67: 1 | Z67: 0 | AA67: 1.00 | AB67: =$AB$89/$AB$90*Z67 -> 0 | AC67: =$AB$89/$AB$91*AA67 -> 20.00 | AD67: =AB92 -> 10.00 | AE67: =AD67+(($AB$87-AD67)*Z67) -> 10.00 | AF67: =AD67+(($AC$67-AD67)*Z67) -> 10.00 | AG67: =AD67*Z67 -> 0
A68: 8 | B68: 0.35 | C68: ='Cobb-Douglas CMCCE'!$G$18*B68 -> 52.50 | D68: ='Cobb-Douglas CMCCE'!$D$15+('Cobb-Douglas CMCCE'!$E$15*'Oculto CMCCE'!C68) -> 32.50 | E68: 75 | F68: 8.75 | G68: 26.25 | H68: 25 | I68: 0.76 | J68: 57.00 | K68: 32.89 | M68: 2 | N68: 0.05 | O68: =$P$89/$P$90*N68 -> 0.56 | P68: =($P$89/$P$27)-(($P$90/$P$27)*O68) -> 1.90 | Q68: =$P$92 -> 5.56 | R68: =$P$93*N68 -> 0.05 | S68: =Q68*N68 -> 0.28 | T68: =$P$93 -> 1.00 | U68: =$U$25 -> 0.1 | V68: =O68 -> 0.56 | W68: =$Q$90-LN(V68) -> 3.30 | Y68: 2 | Z68: 0.05 | AA68: 0.95 | AB68: =$AB$89/$AB$90*Z68 -> 1.00 | AC68: =$AB$89/$AB$91*AA68 -> 19.00 | AD68: =AD67 -> 10.00 | AE68: 10.50 | AF68: =AD68+(($AC$67-AD68)*Z68) -> 10.50 | AG68: =AD68*Z68 -> 0.5
A69: 9 | B69: 0.40 | C69: ='Cobb-Douglas CMCCE'!$G$18*B69 -> 60.00 | D69: ='Cobb-Douglas CMCCE'!$D$15+('Cobb-Douglas CMCCE'!$E$15*'Oculto CMCCE'!C69) -> 30.00 | E69: 75 | F69: 10.00 | G69: 30.00 | H69: 25 | I69: 0.84 | J69: 63.00 | K69: 29.76 | M69: 3 | N69: 0.10 | O69: 1.11 | P69: 1.80 | Q69: 5.56 | R69: 0.10 | S69: 0.56 | T69: 1.00 | U69: =U68+$U$25 -> 0.2 | V69: =O69 -> 1.11 | W69: =$Q$90-LN(V69) -> 2.61 | Y69: 3 | Z69: 0.10 | AA69: 0.90 | AB69: 2.00 | AC69: 18.00 | AD69: =AD68 -> 10.00 | AE69: 11.00 | AF69: 11.00 | AG69: 1
A70: 10 | B70: 0.45 | C70: ='Cobb-Douglas CMCCE'!$G$18*B70 -> 67.50 | D70: ='Cobb-Douglas CMCCE'!$D$15+('Cobb-Douglas CMCCE'!$E$15*'Oculto CMCCE'!C70) -> 27.50 | E70: 75 | F70: 11.25 | G70: 33.75 | H70: 25 | I70: 0.92 | J70: 69.00 | K70: 27.17 | M70: 4 | N70: 0.15 | O70: 1.67 | P70: 1.70 | Q70: 5.56 | R70: 0.15 | S70: 0.83 | T70: 1.00 | U70: =U69+$U$25 -> 0.3 | V70: 1.67 | W70: 2.20 | Y70: 4 | Z70: 0.15 | AA70: 0.85 | AB70: 3.00 | AC70: 17.00 | AD70: 10.00 | AE70: 11.50 | AF70: 11.50 | AG70: 1.5
A71: 11 | B71: 0.50 | C71: ='Cobb-Douglas CMCCE'!$G$18*B71 -> 75.00 | D71: ='Cobb-Douglas CMCCE'!$D$15+('Cobb-Douglas CMCCE'!$E$15*'Oculto CMCCE'!C71) -> 25.00 | E71: 75 | F71: 12.50 | G71: 37.50 | H71: 25 | I71: 1 | J71: 75.00 | K71: 25.00 | M71: 5 | N71: 0.20 | O71: 2.22 | P71: 1.60 | Q71: 5.56 | R71: 0.20 | S71: 1.11 | T71: 1.00 | U71: 0.4 | V71: 2.22 | W71: 1.92 | Y71: 5 | Z71: 0.20 | AA71: 0.80 | AB71: 4.00 | AC71: 16.00 | AD71: 10.00 | AE71: 12.00 | AF71: 12.00 | AG71: 2
A72: 12 | B72: 0.55 | C72: ='Cobb-Douglas CMCCE'!$G$18*B72 -> 82.50 | D72: ='Cobb-Douglas CMCCE'!$D$15+('Cobb-Douglas CMCCE'!$E$15*'Oculto CMCCE'!C72) -> 22.50 | E72: 75 | F72: 13.75 | G72: 41.25 | H72: 25 | I72: 1.08 | J72: 81.00 | K72: 23.15 | M72: 6 | N72: 0.25 | O72: 2.78 | P72: 1.50 | Q72: 5.56 | R72: 0.25 | S72: 1.39 | T72: 1.00 | U72: 0.5 | V72: 2.78 | W72: 1.69 | Y72: 6 | Z72: 0.25 | AA72: 0.75 | AB72: 5.00 | AC72: 15.00 | AD72: 10.00 | AE72: 12.50 | AF72: 12.50 | AG72: 2.5
A73: 13 | B73: 0.60 | C73: ='Cobb-Douglas CMCCE'!$G$18*B73 -> 90.00 | D73: ='Cobb-Douglas CMCCE'!$D$15+('Cobb-Douglas CMCCE'!$E$15*'Oculto CMCCE'!C73) -> 20.00 | E73: 75 | F73: 15.00 | G73: 45.00 | H73: 25 | I73: 1.16 | J73: 87.00 | K73: 21.55 | M73: 7 | N73: 0.30 | O73: 3.33 | P73: 1.40 | Q73: 5.56 | R73: 0.30 | S73: 1.67 | T73: 1.00 | U73: 0.6 | V73: 3.33 | W73: 1.51 | Y73: 7 | Z73: 0.30 | AA73: 0.70 | AB73: 6.00 | AC73: 14.00 | AD73: 10.00 | AE73: 13.00 | AF73: 13.00 | AG73: 3
A74: 14 | B74: 0.65 | C74: ='Cobb-Douglas CMCCE'!$G$18*B74 -> 97.50 | D74: ='Cobb-Douglas CMCCE'!$D$15+('Cobb-Douglas CMCCE'!$E$15*'Oculto CMCCE'!C74) -> 17.50 | E74: 75 | F74: 16.25 | G74: 48.75 | H74: 25 | I74: 1.24 | J74: 93.00 | K74: 20.16 | M74: 8 | N74: 0.35 | O74: 3.89 | P74: 1.30 | Q74: 5.56 | R74: 0.35 | S74: 1.94 | T74: 1.00 | U74: 0.7 | V74: 3.89 | W74: 1.36 | Y74: 8 | Z74: 0.35 | AA74: 0.65 | AB74: 7.00 | AC74: 13.00 | AD74: 10.00 | AE74: 13.50 | AF74: 13.50 | AG74: 3.5
A75: 15 | B75: 0.70 | C75: ='Cobb-Douglas CMCCE'!$G$18*B75 -> 105.00 | D75: ='Cobb-Douglas CMCCE'!$D$15+('Cobb-Douglas CMCCE'!$E$15*'Oculto CMCCE'!C75) -> 15.00 | E75: 75 | F75: 17.50 | G75: 52.50 | H75: 25 | I75: 1.32 | J75: 99.00 | K75: 18.94 | M75: 9 | N75: 0.40 | O75: 4.44 | P75: 1.20 | Q75: 5.56 | R75: 0.40 | S75: 2.22 | T75: 1.00 | U75: 0.8 | V75: 4.44 | W75: 1.22 | Y75: 9 | Z75: 0.40 | AA75: 0.60 | AB75: 8.00 | AC75: 12.00 | AD75: 10.00 | AE75: 14.00 | AF75: 14.00 | AG75: 4
A76: 16 | B76: 0.75 | C76: ='Cobb-Douglas CMCCE'!$G$18*B76 -> 112.50 | D76: ='Cobb-Douglas CMCCE'!$D$15+('Cobb-Douglas CMCCE'!$E$15*'Oculto CMCCE'!C76) -> 12.50 | E76: 75 | F76: 18.75 | G76: 56.25 | H76: 25 | I76: 1.4 | J76: 105.00 | K76: 17.86 | M76: 10 | N76: 0.45 | O76: 5.00 | P76: 1.10 | Q76: 5.56 | R76: 0.45 | S76: 2.50 | T76: 1.00 | U76: 0.9 | V76: 5.00 | W76: 1.11 | Y76: 10 | Z76: 0.45 | AA76: 0.55 | AB76: 9.00 | AC76: 11.00 | AD76: 10.00 | AE76: 14.50 | AF76: 14.50 | AG76: 4.5
A77: 17 | B77: 0.80 | C77: ='Cobb-Douglas CMCCE'!$G$18*B77 -> 120.00 | D77: ='Cobb-Douglas CMCCE'!$D$15+('Cobb-Douglas CMCCE'!$E$15*'Oculto CMCCE'!C77) -> 10.00 | E77: 75 | F77: 20.00 | G77: 60.00 | H77: 25 | I77: 1.48 | J77: 111.00 | K77: 16.89 | M77: 11 | N77: 0.50 | O77: 5.56 | P77: 1.00 | Q77: 5.56 | R77: 0.50 | S77: 2.78 | T77: 1.00 | U77: 1 | V77: 5.56 | W77: 1.00 | Y77: 11 | Z77: 0.50 | AA77: 0.50 | AB77: 10.00 | AC77: 10.00 | AD77: 10.00 | AE77: 15.00 | AF77: 15.00 | AG77: 5
A78: 18 | B78: 0.85 | C78: ='Cobb-Douglas CMCCE'!$G$18*B78 -> 127.50 | D78: ='Cobb-Douglas CMCCE'!$D$15+('Cobb-Douglas CMCCE'!$E$15*'Oculto CMCCE'!C78) -> 7.50 | E78: 75 | F78: 21.25 | G78: 63.75 | H78: 25 | I78: 1.56 | J78: 117.00 | K78: 16.03 | M78: 12 | N78: 0.55 | O78: 6.11 | P78: 0.90 | Q78: 5.56 | R78: 0.55 | S78: 3.06 | T78: 1.00 | U78: =U77+$U$25 -> 1.1 | V78: 6.11 | W78: 0.90 | Y78: 12 | Z78: 0.55 | AA78: 0.45 | AB78: 11.00 | AC78: 9.00 | AD78: 10.00 | AE78: 15.50 | AF78: 15.50 | AG78: 5.5
A79: 19 | B79: 0.90 | C79: ='Cobb-Douglas CMCCE'!$G$18*B79 -> 135.00 | D79: ='Cobb-Douglas CMCCE'!$D$15+('Cobb-Douglas CMCCE'!$E$15*'Oculto CMCCE'!C79) -> 5.00 | E79: 75 | F79: 22.50 | G79: 67.50 | H79: 25 | I79: 1.64 | J79: 123.00 | K79: 15.24 | M79: 13 | N79: 0.60 | O79: 6.67 | P79: 0.80 | Q79: 5.56 | R79: 0.60 | S79: 3.33 | T79: 1.00 | U79: =U78+$U$25 -> 1.2 | V79: 6.67 | W79: 0.82 | Y79: 13 | Z79: 0.60 | AA79: 0.40 | AB79: 12.00 | AC79: 8.00 | AD79: 10.00 | AE79: 16.00 | AF79: 16.00 | AG79: 6
A80: 20 | B80: 0.95 | C80: ='Cobb-Douglas CMCCE'!$G$18*B80 -> 142.50 | D80: ='Cobb-Douglas CMCCE'!$D$15+('Cobb-Douglas CMCCE'!$E$15*'Oculto CMCCE'!C80) -> 2.50 | E80: 75 | F80: 23.75 | G80: 71.25 | H80: 25 | I80: 1.72 | J80: 129.00 | K80: 14.53 | M80: 14 | N80: 0.65 | O80: 7.22 | P80: 0.70 | Q80: 5.56 | R80: 0.65 | S80: 3.61 | T80: 1.00 | U80: 1.3 | V80: 7.22 | W80: 0.74 | Y80: 14 | Z80: 0.65 | AA80: 0.35 | AB80: 13.00 | AC80: 7.00 | AD80: 10.00 | AE80: 16.50 | AF80: 16.50 | AG80: 6.5
A81: 21 | B81: 1.00 | C81: ='Cobb-Douglas CMCCE'!$G$18*B81 -> 150.00 | D81: ='Cobb-Douglas CMCCE'!$D$15+('Cobb-Douglas CMCCE'!$E$15*'Oculto CMCCE'!C81) -> 0 | E81: 75 | F81: 25.00 | G81: 75.00 | H81: 25 | I81: 1.8 | J81: 135.00 | K81: 13.89 | M81: 15 | N81: 0.70 | O81: 7.78 | P81: 0.60 | Q81: 5.56 | R81: 0.70 | S81: 3.89 | T81: 1.00 | U81: 1.4 | V81: 7.78 | W81: 0.66 | Y81: 15 | Z81: 0.70 | AA81: 0.30 | AB81: 14.00 | AC81: 6.00 | AD81: 10.00 | AE81: 17.00 | AF81: 17.00 | AG81: 7
M82: 16 | N82: 0.75 | O82: 8.33 | P82: 0.50 | Q82: 5.56 | R82: 0.75 | S82: 4.17 | T82: 1.00 | U82: 1.5 | V82: 8.33 | W82: 0.59 | Y82: 16 | Z82: 0.75 | AA82: 0.25 | AB82: 15.00 | AC82: 5.00 | AD82: 10.00 | AE82: 17.50 | AF82: 17.50 | AG82: 7.5
E83: x1 | F83: x2 | M83: 17 | N83: 0.80 | O83: 8.89 | P83: 0.40 | Q83: 5.56 | R83: 0.80 | S83: 4.44 | T83: 1.00 | U83: 1.6 | V83: 8.89 | W83: 0.53 | Y83: 17 | Z83: 0.80 | AA83: 0.20 | AB83: 16.00 | AC83: 4.00 | AD83: 10.00 | AE83: 18.00 | AF83: 18.00 | AG83: 8
E84: ='Cobb-Douglas CMCCE'!$D$26 -> 0.5 | F84: ='Cobb-Douglas CMCCE'!$F$26 -> 0.5 | M84: 18 | N84: 0.85 | O84: 9.44 | P84: 0.30 | Q84: 5.56 | R84: 0.85 | S84: 4.72 | T84: 1.00 | U84: 1.7 | V84: 9.44 | W84: 0.47 | Y84: 18 | Z84: 0.85 | AA84: 0.15 | AB84: 17.00 | AC84: 3.00 | AD84: 10.00 | AE84: 18.50 | AF84: 18.50 | AG84: 8.5
E85: ='Cobb-Douglas CMCCE'!$D$24*('Cobb-Douglas CMCCE'!$C$8/'Cobb-Douglas CMCCE'!$D$8) -> 75 | F85: ='Cobb-Douglas CMCCE'!$F$24*('Cobb-Douglas CMCCE'!$C$8/'Cobb-Douglas CMCCE'!$F$8) -> 25 | M85: 19 | N85: 0.90 | O85: 10.00 | P85: 0.20 | Q85: 5.56 | R85: 0.90 | S85: 5.00 | T85: 1.00 | U85: 1.8 | V85: 10.00 | W85: 0.41 | Y85: 19 | Z85: 0.90 | AA85: 0.10 | AB85: 18.00 | AC85: 2.00 | AD85: 10.00 | AE85: 19.00 | AF85: 19.00 | AG85: 9
F86: =(E85^(E84))*(F85^(F84)) -> 43.30127019 | M86: 20 | N86: 0.95 | O86: 10.56 | P86: 0.10 | Q86: 5.56 | R86: 0.95 | S86: 5.28 | T86: 1.00 | U86: 1.9 | V86: 10.56 | W86: 0.36 | Y86: 20 | Z86: 0.95 | AA86: 0.05 | AB86: 19.00 | AC86: 1.00 | AD86: 10.00 | AE86: 19.50 | AF86: 19.50 | AG86: 9.5
M87: 21 | N87: 1.00 | O87: 11.11 | P87: 0 | Q87: 5.56 | R87: 1.00 | S87: 5.56 | T87: 1.00 | U87: 2 | V87: 11.11 | W87: 0.31 | Y87: 21 | Z87: 1.00 | AA87: 0 | AB87: 20.00 | AC87: 0 | AD87: 10.00 | AE87: =AD87+(($AB$87-AD87)*Z87) -> 20.00 | AF87: 20.00 | AG87: 10
O89: m | P89: ='Regulares CMCCE'!C8 -> 100.00 | Q89: k | U89: =1/10 -> 0.1 | AA89: m | AB89: ='CompPerf CMCCE'!$C$8 -> 100
A90: COBB-DOUGLAS 4 | C90: Recta Presupuestaria | J90: Curva de Indiferencia | O90: p1 | P90: ='Regulares CMCCE'!D6 -> 9 | Q90: =LN(P92)+P93 -> 2.71 | AA90: p1 | AB90: ='CompPerf CMCCE'!D8 -> 5
A91: Unidades | B91: ponderador | C91: x1 | D91: x2 | E91: x7lin | G91: x8lin | I91: Cota | J91: x1 | K91: x2 | O91: p2 | P91: ='Regulares CMCCE'!F8 -> 50 | AA91: p2 | AB91: =AB59 -> 5
A92: 1 | B92: 0 | C92: =('Cobb-Douglas CMCCE'!$C$8+('Cobb-Douglas CMCCE'!$C$7-'Cobb-Douglas CMCCE'!$C$6))*B92 -> 0 | D92: =($E$118/$F$117)-(($E$117/$F$117)*C92) -> 50.00 | E92: =$E$116 -> 75 | F92: =$F$116*B92 -> 0 | G92: =B92*$E$116 -> 0 | H92: =$F$116 -> 25 | O92: x1* | P92: =P91/P90 -> 5.56 | AA92: x1 | AB92: =AB89/(AB91+AB90) -> 10
A93: 2 | B93: 0.05 | C93: =('Cobb-Douglas CMCCE'!$C$8+('Cobb-Douglas CMCCE'!$C$7-'Cobb-Douglas CMCCE'!$C$6))*B93 -> 7.50 | D93: =($E$118/$F$117)-(($E$117/$F$117)*C93) -> 47.50 | E93: =$E$116 -> 75 | F93: =$F$116*B93 -> 1.25 | G93: =B93*$E$116 -> 3.75 | H93: =$F$116 -> 25 | I93: 0.28 | J93: =I93*$E$116 -> 21.00 | K93: =($G$118/(J93^($E$115)))^(1/$F$115) -> 89.29 | O93: x2* | P93: =P89/P91-1 -> 1.00 | AA93: x2 | AB93: =AB92 -> 10
A94: 3 | B94: 0.10 | C94: =('Cobb-Douglas CMCCE'!$C$8+('Cobb-Douglas CMCCE'!$C$7-'Cobb-Douglas CMCCE'!$C$6))*B94 -> 15.00 | D94: 45.00 | E94: 75 | F94: 2.50 | G94: 7.50 | H94: 25 | I94: 0.36 | J94: =I94*$E$116 -> 27.00 | K94: 69.44
A95: 4 | B95: 0.15 | C95: =('Cobb-Douglas CMCCE'!$C$8+('Cobb-Douglas CMCCE'!$C$7-'Cobb-Douglas CMCCE'!$C$6))*B95 -> 22.50 | D95: 42.50 | E95: 75 | F95: 3.75 | G95: 11.25 | H95: 25 | I95: 0.44 | J95: 33.00 | K95: 56.82
A96: 5 | B96: 0.20 | C96: =('Cobb-Douglas CMCCE'!$C$8+('Cobb-Douglas CMCCE'!$C$7-'Cobb-Douglas CMCCE'!$C$6))*B96 -> 30.00 | D96: 40.00 | E96: 75 | F96: 5.00 | G96: 15.00 | H96: 25 | I96: 0.52 | J96: 39.00 | K96: 48.08
A97: 6 | B97: 0.25 | C97: =('Cobb-Douglas CMCCE'!$C$8+('Cobb-Douglas CMCCE'!$C$7-'Cobb-Douglas CMCCE'!$C$6))*B97 -> 37.50 | D97: 37.50 | E97: 75 | F97: 6.25 | G97: 18.75 | H97: 25 | I97: 0.6 | J97: 45.00 | K97: 41.67 | M97: REGULARES 4 | O97: Recta Presupuestaria | V97: Curva de Indiferencia | Y97: COMP. PERFECTOS 4 | AB97: Recta Presupuestaria | AD97: Curva de Indiferencia
A98: 7 | B98: 0.30 | C98: =('Cobb-Douglas CMCCE'!$C$8+('Cobb-Douglas CMCCE'!$C$7-'Cobb-Douglas CMCCE'!$C$6))*B98 -> 45.00 | D98: 35.00 | E98: 75 | F98: 7.50 | G98: 22.50 | H98: 25 | I98: 0.68 | J98: 51.00 | K98: 36.76 | M98: Unidades | N98: ponderador | O98: x1 | P98: x2 | Q98: x1lin | S98: x2lin | U98: Cota | V98: x1 | W98: x2 | Y98: Unidades | Z98: ponderador | AB98: x1 | AC98: x2 | AD98: vertice | AE98: x1line | AF98: x2line
A99: 8 | B99: 0.35 | C99: =('Cobb-Douglas CMCCE'!$C$8+('Cobb-Douglas CMCCE'!$C$7-'Cobb-Douglas CMCCE'!$C$6))*B99 -> 52.50 | D99: 32.50 | E99: 75 | F99: 8.75 | G99: 26.25 | H99: 25 | I99: 0.76 | J99: 57.00 | K99: 32.89 | M99: 1 | N99: 0 | O99: =$P$25/$P$26*N99 -> 0 | P99: =($P$25/$P$27)-(($P$26/$P$27)*O99) -> 2.00 | Q99: =$P$124 -> 5.56 | R99: =T99*N99 -> 0 | S99: =Q99*N99 -> 0 | T99: =$P$125 -> 1.00 | Y99: 1 | Z99: 0 | AA99: 1.00 | AB99: =$AB$121/$AB$122*Z99 -> 0 | AC99: =$AB$121/$AB$123*AA99 -> 20.00 | AD99: =AB124 -> 10.00 | AE99: =AD99+(($AB$119-AD99)*Z99) -> 10.00 | AF99: =AD99+(($AC$99-AD99)*Z99) -> 10.00
A100: 9 | B100: 0.40 | C100: =('Cobb-Douglas CMCCE'!$C$8+('Cobb-Douglas CMCCE'!$C$7-'Cobb-Douglas CMCCE'!$C$6))*B100 -> 60.00 | D100: 30.00 | E100: 75 | F100: 10.00 | G100: 30.00 | H100: 25 | I100: 0.84 | J100: 63.00 | K100: 29.76 | M100: 2 | N100: 0.05 | O100: =$P$25/$P$26*N100 -> 0.56 | P100: =($P$25/$P$27)-(($P$26/$P$27)*O100) -> 1.90 | Q100: =$P$124 -> 5.56 | R100: =T100*N100 -> 0.05 | S100: =Q100*N100 -> 0.28 | T100: =$P$125 -> 1.00 | U100: =$U$25 -> 0.1 | V100: =$V$13*U100 -> 0.56 | W100: =($Q$26-($Q$30*V100)-($Q$28*$Q$30))/(V100+$Q$28) -> 4.89 | Y100: 2 | Z100: 0.05 | AA100: 0.95 | AB100: =$AB$121/$AB$122*Z100 -> 1.00 | AC100: =$AB$121/$AB$123*AA100 -> 19.00 | AD100: =AD99 -> 10.00 | AE100: 10.50 | AF100: =AD100+(($AC$99-AD100)*Z100) -> 10.50
A101: 10 | B101: 0.45 | C101: =('Cobb-Douglas CMCCE'!$C$8+('Cobb-Douglas CMCCE'!$C$7-'Cobb-Douglas CMCCE'!$C$6))*B101 -> 67.50 | D101: 27.50 | E101: 75 | F101: 11.25 | G101: 33.75 | H101: 25 | I101: 0.92 | J101: 69.00 | K101: 27.17 | M101: 3 | N101: 0.10 | O101: 1.11 | P101: 1.80 | Q101: 5.56 | R101: 0.10 | S101: 0.56 | T101: 1.00 | U101: =U100+$U$25 -> 0.2 | V101: 1.11 | W101: 2.44 | Y101: 3 | Z101: 0.10 | AA101: 0.90 | AB101: 2.00 | AC101: 18.00 | AD101: =AD100 -> 10.00 | AE101: 11.00 | AF101: 11.00
A102: 11 | B102: 0.50 | C102: =('Cobb-Douglas CMCCE'!$C$8+('Cobb-Douglas CMCCE'!$C$7-'Cobb-Douglas CMCCE'!$C$6))*B102 -> 75.00 | D102: 25.00 | E102: 75 | F102: 12.50 | G102: 37.50 | H102: 25 | I102: 1 | J102: 75.00 | K102: 25.00 | M102: 4 | N102: 0.15 | O102: 1.67 | P102: 1.70 | Q102: 5.56 | R102: 0.15 | S102: 0.83 | T102: 1.00 | U102: =U101+$U$25 -> 0.3 | V102: 1.67 | W102: 1.63 | Y102: 4 | Z102: 0.15 | AA102: 0.85 | AB102: 3.00 | AC102: 17.00 | AD102: 10.00 | AE102: 11.50 | AF102: 11.50
A103: 12 | B103: 0.55 | C103: =('Cobb-Douglas CMCCE'!$C$8+('Cobb-Douglas CMCCE'!$C$7-'Cobb-Douglas CMCCE'!$C$6))*B103 -> 82.50 | D103: 22.50 | E103: 75 | F103: 13.75 | G103: 41.25 | H103: 25 | I103: 1.08 | J103: 81.00 | K103: 23.15 | M103: 5 | N103: 0.20 | O103: 2.22 | P103: 1.60 | Q103: 5.56 | R103: 0.20 | S103: 1.11 | T103: 1.00 | U103: 0.4 | V103: 2.22 | W103: 1.22 | Y103: 5 | Z103: 0.20 | AA103: 0.80 | AB103: 4.00 | AC103: 16.00 | AD103: 10.00 | AE103: 12.00 | AF103: 12.00
A104: 13 | B104: 0.60 | C104: =('Cobb-Douglas CMCCE'!$C$8+('Cobb-Douglas CMCCE'!$C$7-'Cobb-Douglas CMCCE'!$C$6))*B104 -> 90.00 | D104: 20.00 | E104: 75 | F104: 15.00 | G104: 45.00 | H104: 25 | I104: 1.16 | J104: 87.00 | K104: 21.55 | M104: 6 | N104: 0.25 | O104: 2.78 | P104: 1.50 | Q104: 5.56 | R104: 0.25 | S104: 1.39 | T104: 1.00 | U104: 0.5 | V104: 2.78 | W104: 0.98 | Y104: 6 | Z104: 0.25 | AA104: 0.75 | AB104: 5.00 | AC104: 15.00 | AD104: 10.00 | AE104: 12.50 | AF104: 12.50
A105: 14 | B105: 0.65 | C105: =('Cobb-Douglas CMCCE'!$C$8+('Cobb-Douglas CMCCE'!$C$7-'Cobb-Douglas CMCCE'!$C$6))*B105 -> 97.50 | D105: 17.50 | E105: 75 | F105: 16.25 | G105: 48.75 | H105: 25 | I105: 1.24 | J105: 93.00 | K105: 20.16 | M105: 7 | N105: 0.30 | O105: 3.33 | P105: 1.40 | Q105: 5.56 | R105: 0.30 | S105: 1.67 | T105: 1.00 | U105: 0.6 | V105: 3.33 | W105: 0.81 | Y105: 7 | Z105: 0.30 | AA105: 0.70 | AB105: 6.00 | AC105: 14.00 | AD105: 10.00 | AE105: 13.00 | AF105: 13.00
A106: 15 | B106: 0.70 | C106: =('Cobb-Douglas CMCCE'!$C$8+('Cobb-Douglas CMCCE'!$C$7-'Cobb-Douglas CMCCE'!$C$6))*B106 -> 105.00 | D106: 15.00 | E106: 75 | F106: 17.50 | G106: 52.50 | H106: 25 | I106: 1.32 | J106: 99.00 | K106: 18.94 | M106: 8 | N106: 0.35 | O106: 3.89 | P106: 1.30 | Q106: 5.56 | R106: 0.35 | S106: 1.94 | T106: 1.00 | U106: 0.7 | V106: 3.89 | W106: 0.70 | Y106: 8 | Z106: 0.35 | AA106: 0.65 | AB106: 7.00 | AC106: 13.00 | AD106: 10.00 | AE106: 13.50 | AF106: 13.50
A107: 16 | B107: 0.75 | C107: =('Cobb-Douglas CMCCE'!$C$8+('Cobb-Douglas CMCCE'!$C$7-'Cobb-Douglas CMCCE'!$C$6))*B107 -> 112.50 | D107: 12.50 | E107: 75 | F107: 18.75 | G107: 56.25 | H107: 25 | I107: 1.4 | J107: 105.00 | K107: 17.86 | M107: 9 | N107: 0.40 | O107: 4.44 | P107: 1.20 | Q107: 5.56 | R107: 0.40 | S107: 2.22 | T107: 1.00 | U107: 0.8 | V107: 4.44 | W107: 0.61 | Y107: 9 | Z107: 0.40 | AA107: 0.60 | AB107: 8.00 | AC107: 12.00 | AD107: 10.00 | AE107: 14.00 | AF107: 14.00
A108: 17 | B108: 0.80 | C108: =('Cobb-Douglas CMCCE'!$C$8+('Cobb-Douglas CMCCE'!$C$7-'Cobb-Douglas CMCCE'!$C$6))*B108 -> 120.00 | D108: 10.00 | E108: 75 | F108: 20.00 | G108: 60.00 | H108: 25 | I108: 1.48 | J108: 111.00 | K108: 16.89 | M108: 10 | N108: 0.45 | O108: 5.00 | P108: 1.10 | Q108: 5.56 | R108: 0.45 | S108: 2.50 | T108: 1.00 | U108: 0.9 | V108: 5.00 | W108: 0.54 | Y108: 10 | Z108: 0.45 | AA108: 0.55 | AB108: 9.00 | AC108: 11.00 | AD108: 10.00 | AE108: 14.50 | AF108: 14.50
A109: 18 | B109: 0.85 | C109: =('Cobb-Douglas CMCCE'!$C$8+('Cobb-Douglas CMCCE'!$C$7-'Cobb-Douglas CMCCE'!$C$6))*B109 -> 127.50 | D109: 7.50 | E109: 75 | F109: 21.25 | G109: 63.75 | H109: 25 | I109: 1.56 | J109: 117.00 | K109: 16.03 | M109: 11 | N109: 0.50 | O109: 5.56 | P109: 1.00 | Q109: 5.56 | R109: 0.50 | S109: 2.78 | T109: 1.00 | U109: 1 | V109: =P124 -> 5.56 | W109: =($Q$26-($Q$30*V109)-($Q$28*$Q$30))/(V109+$Q$28) -> 0.49 | Y109: 11 | Z109: 0.50 | AA109: 0.50 | AB109: 10.00 | AC109: 10.00 | AD109: 10.00 | AE109: 15.00 | AF109: 15.00
A110: 19 | B110: 0.90 | C110: =('Cobb-Douglas CMCCE'!$C$8+('Cobb-Douglas CMCCE'!$C$7-'Cobb-Douglas CMCCE'!$C$6))*B110 -> 135.00 | D110: 5.00 | E110: 75 | F110: 22.50 | G110: 67.50 | H110: 25 | I110: 1.64 | J110: 123.00 | K110: 15.24 | M110: 12 | N110: 0.55 | O110: 6.11 | P110: 0.90 | Q110: 5.56 | R110: 0.55 | S110: 3.06 | T110: 1.00 | U110: =U109+$U$25 -> 1.1 | V110: =$V$13*U110 -> 6.11 | W110: =($Q$26-($Q$30*V110)-($Q$28*$Q$30))/(V110+$Q$28) -> 0.44 | Y110: 12 | Z110: 0.55 | AA110: 0.45 | AB110: 11.00 | AC110: 9.00 | AD110: 10.00 | AE110: 15.50 | AF110: 15.50
A111: 20 | B111: 0.95 | C111: =('Cobb-Douglas CMCCE'!$C$8+('Cobb-Douglas CMCCE'!$C$7-'Cobb-Douglas CMCCE'!$C$6))*B111 -> 142.50 | D111: 2.50 | E111: 75 | F111: 23.75 | G111: 71.25 | H111: 25 | I111: 1.72 | J111: 129.00 | K111: 14.53 | M111: 13 | N111: 0.60 | O111: 6.67 | P111: 0.80 | Q111: 5.56 | R111: 0.60 | S111: 3.33 | T111: 1.00 | U111: =U110+$U$25 -> 1.2 | V111: =$V$13*U111 -> 6.67 | W111: 0.41 | Y111: 13 | Z111: 0.60 | AA111: 0.40 | AB111: 12.00 | AC111: 8.00 | AD111: 10.00 | AE111: 16.00 | AF111: 16.00
A112: 21 | B112: 1.00 | C112: =('Cobb-Douglas CMCCE'!$C$8+('Cobb-Douglas CMCCE'!$C$7-'Cobb-Douglas CMCCE'!$C$6))*B112 -> 150.00 | D112: 0 | E112: 75 | F112: 25.00 | G112: 75.00 | H112: 25 | I112: 1.8 | J112: 135.00 | K112: 13.89 | M112: 14 | N112: 0.65 | O112: 7.22 | P112: 0.70 | Q112: 5.56 | R112: 0.65 | S112: 3.61 | T112: 1.00 | U112: 1.3 | V112: 7.22 | W112: 0.38 | Y112: 14 | Z112: 0.65 | AA112: 0.35 | AB112: 13.00 | AC112: 7.00 | AD112: 10.00 | AE112: 16.50 | AF112: 16.50
M113: 15 | N113: 0.70 | O113: 7.78 | P113: 0.60 | Q113: 5.56 | R113: 0.70 | S113: 3.89 | T113: 1.00 | U113: 1.4 | V113: 7.78 | W113: 0.35 | Y113: 15 | Z113: 0.70 | AA113: 0.30 | AB113: 14.00 | AC113: 6.00 | AD113: 10.00 | AE113: 17.00 | AF113: 17.00
E114: 1 | F114: 2 | M114: 16 | N114: 0.75 | O114: 8.33 | P114: 0.50 | Q114: 5.56 | R114: 0.75 | S114: 4.17 | T114: 1.00 | U114: 1.5 | V114: 8.33 | W114: 0.33 | Y114: 16 | Z114: 0.75 | AA114: 0.25 | AB114: 15.00 | AC114: 5.00 | AD114: 10.00 | AE114: 17.50 | AF114: 17.50
D115: ALFA | E115: ='Cobb-Douglas CMCCE'!$D$26 -> 0.5 | F115: ='Cobb-Douglas CMCCE'!$F$26 -> 0.5 | M115: 17 | N115: 0.80 | O115: 8.89 | P115: 0.40 | Q115: 5.56 | R115: 0.80 | S115: 4.44 | T115: 1.00 | U115: 1.6 | V115: 8.89 | W115: 0.31 | Y115: 17 | Z115: 0.80 | AA115: 0.20 | AB115: 16.00 | AC115: 4.00 | AD115: 10.00 | AE115: 18.00 | AF115: 18.00
D116: X | E116: =E115*E118/E117 -> 75.0 | F116: =F115*E118/F117 -> 25.0 | M116: 18 | N116: 0.85 | O116: 9.44 | P116: 0.30 | Q116: 5.56 | R116: 0.85 | S116: 4.72 | T116: 1.00 | U116: 1.7 | V116: 9.44 | W116: 0.29 | Y116: 18 | Z116: 0.85 | AA116: 0.15 | AB116: 17.00 | AC116: 3.00 | AD116: 10.00 | AE116: 18.50 | AF116: 18.50
D117: P | E117: ='Cobb-Douglas CMCCE'!$D$6 -> 1.0 | F117: ='Cobb-Douglas CMCCE'!$F$6 -> 3.0 | M117: 19 | N117: 0.90 | O117: 10.00 | P117: 0.20 | Q117: 5.56 | R117: 0.90 | S117: 5.00 | T117: 1.00 | U117: 1.8 | V117: 10.00 | W117: 0.27 | Y117: 19 | Z117: 0.90 | AA117: 0.10 | AB117: 18.00 | AC117: 2.00 | AD117: 10.00 | AE117: 19.00 | AF117: 19.00
D118: M | E118: ='Cobb-Douglas CMCCE'!$C$8+('Cobb-Douglas CMCCE'!$C$8-'Cobb-Douglas CMCCE'!$C$7) -> 150.0 | G118: =(E116^(E115))*(F116^(F115)) -> 43.30127019 | M118: 20 | N118: 0.95 | O118: 10.56 | P118: 0.10 | Q118: 5.56 | R118: 0.95 | S118: 5.28 | T118: 1.00 | U118: 1.9 | V118: 10.56 | W118: 0.26 | Y118: 20 | Z118: 0.95 | AA118: 0.05 | AB118: 19.00 | AC118: 1.00 | AD118: 10.00 | AE118: 19.50 | AF118: 19.50
M119: 21 | N119: 1.00 | O119: 11.11 | P119: 0 | Q119: 5.56 | R119: 1.00 | S119: 5.56 | T119: 1.00 | U119: 2 | V119: 11.11 | W119: 0.24 | Y119: 21 | Z119: 1.00 | AA119: 0 | AB119: 20.00 | AC119: 0 | AD119: 10.00 | AE119: =AD119+(($AB$119-AD119)*Z119) -> 20.00 | AF119: 20.00
A120: COBB-DOUGLAS 0 | C120: Recta Presupuestaria | J120: Curva de Indiferencia
A121: Unidades | B121: ponderador | C121: x1 | D121: x2 | E121: x9lin | G121: x10lin | I121: Cota | J121: x1 | K121: x2 | O121: m | P121: =P89+(P89-P57) -> 100.00 | Q121: k | U121: =1/10 -> 0.1 | AA121: m | AB121: =AB89+(AB89-AB57) -> 100
A122: 1 | B122: 0 | C122: =$E$148/$E$147*B122 -> 0 | D122: =($E$148/$F$147)-(($E$147/$F$147)*C122) -> 37.50 | E122: =$E$146 -> 56.25 | F122: =B122*$F$146 -> 0 | G122: =B122*$E$146 -> 0 | H122: =$F$146 -> 18.75 | O122: p1 | P122: =P90+(P90-P58) -> 9 | Q122: =LN(P124)+P125 -> 2.71 | AA122: p1 | AB122: =AB90 -> 5
A123: 2 | B123: 0.05 | C123: =$E$148/$E$147*B123 -> 5.63 | D123: =($E$148/$F$147)-(($E$147/$F$147)*C123) -> 35.63 | E123: =$E$146 -> 56.25 | F123: =B123*$F$146 -> 0.94 | G123: =B123*$E$146 -> 2.81 | H123: =$F$146 -> 18.75 | I123: 0.28 | J123: =I123*$E$146 -> 15.75 | K123: =($G$148/(J123^($E$145)))^(1/$F$145) -> 66.96 | O123: p2 | P123: =P91 -> 50 | AA123: p2 | AB123: =AB91 -> 5
A124: 3 | B124: 0.10 | C124: 11.25 | D124: 33.75 | E124: 56.25 | F124: 1.88 | G124: 5.63 | H124: 18.75 | I124: 0.36 | J124: =I124*$E$146 -> 20.25 | K124: 52.08 | O124: x1* | P124: =P123/P122 -> 5.56 | AA124: x1 | AB124: =AB121/(AB123+AB122) -> 10
A125: 4 | B125: 0.15 | C125: 16.88 | D125: 31.88 | E125: 56.25 | F125: 2.81 | G125: 8.44 | H125: 18.75 | I125: 0.44 | J125: 24.75 | K125: 42.61 | O125: x2* | P125: =P121/P123-1 -> 1.00 | AA125: x2 | AB125: =AB124 -> 10
A126: 5 | B126: 0.20 | C126: 22.50 | D126: 30.00 | E126: 56.25 | F126: 3.75 | G126: 11.25 | H126: 18.75 | I126: 0.52 | J126: 29.25 | K126: 36.06
A127: 6 | B127: 0.25 | C127: 28.13 | D127: 28.13 | E127: 56.25 | F127: 4.69 | G127: 14.06 | H127: 18.75 | I127: 0.6 | J127: 33.75 | K127: 31.25
A128: 7 | B128: 0.30 | C128: 33.75 | D128: 26.25 | E128: 56.25 | F128: 5.63 | G128: 16.88 | H128: 18.75 | I128: 0.68 | J128: 38.25 | K128: 27.57
A129: 8 | B129: 0.35 | C129: 39.38 | D129: 24.38 | E129: 56.25 | F129: 6.56 | G129: 19.69 | H129: 18.75 | I129: 0.76 | J129: 42.75 | K129: 24.67 | M129: REGULARES 0 | O129: Recta Presupuestaria | V129: Curva de Indiferencia | Y129: COMP. PERFECTOS 0 | AB129: Recta Presupuestaria | AD129: Curva de Indiferencia
A130: 9 | B130: 0.40 | C130: 45.00 | D130: 22.50 | E130: 56.25 | F130: 7.50 | G130: 22.50 | H130: 18.75 | I130: 0.84 | J130: 47.25 | K130: 22.32 | M130: Unidades | N130: ponderador | O130: x1 | P130: x2 | Q130: x1lin | S130: x2lin | U130: Cota | V130: x1 | W130: x2 | Y130: Unidades | Z130: ponderador | AB130: x1 | AC130: x2 | AD130: vertice | AE130: x1line | AF130: x2line
A131: 10 | B131: 0.45 | C131: 50.63 | D131: 20.63 | E131: 56.25 | F131: 8.44 | G131: 25.31 | H131: 18.75 | I131: 0.92 | J131: 51.75 | K131: 20.38 | M131: 1 | N131: 0 | O131: =$P$153/$P$26*N131 -> 0 | P131: =($P$153/$P$27)-(($P$26/$P$27)*O131) -> 2.00 | Q131: =$P$156 -> 5.56 | R131: =$P$157*N131 -> 0 | S131: =Q131*N131 -> 0 | T131: =$P$157 -> 1.00 | Y131: 1 | Z131: 0 | AA131: 1.00 | AB131: =$AB$153/$AB$154*Z131 -> 0 | AC131: =$AB$153/$AB$155*AA131 -> 20.00 | AD131: =AB156 -> 10.00 | AE131: =AD131+(($AB$151-AD131)*Z131) -> 10.00 | AF131: =AD131+(($AC$131-AD131)*Z131) -> 10.00
A132: 11 | B132: 0.50 | C132: 56.25 | D132: 18.75 | E132: 56.25 | F132: 9.38 | G132: 28.13 | H132: 18.75 | I132: 1 | J132: 56.25 | K132: 18.75 | M132: 2 | N132: 0.05 | O132: =$P$153/$P$26*N132 -> 0.56 | P132: =($P$153/$P$27)-(($P$26/$P$27)*O132) -> 1.90 | Q132: =$P$156 -> 5.56 | R132: =$P$157*N132 -> 0.05 | S132: =Q132*N132 -> 0.28 | T132: =$P$157 -> 1.00 | U132: =$U$25 -> 0.1 | V132: =O132 -> 0.56 | W132: =$Q$154-LN(V132) -> 3.30 | Y132: 2 | Z132: 0.05 | AA132: 0.95 | AB132: =$AB$153/$AB$154*Z132 -> 1.00 | AC132: =$AB$153/$AB$155*AA132 -> 19.00 | AD132: =AD131 -> 10.00 | AE132: 10.50 | AF132: =AD132+(($AC$131-AD132)*Z132) -> 10.50
A133: 12 | B133: 0.55 | C133: 61.88 | D133: 16.88 | E133: 56.25 | F133: 10.31 | G133: 30.94 | H133: 18.75 | I133: 1.08 | J133: 60.75 | K133: 17.36 | M133: 3 | N133: 0.10 | O133: 1.11 | P133: 1.80 | Q133: 5.56 | R133: 0.10 | S133: 0.56 | T133: 1.00 | U133: =U132+$U$25 -> 0.2 | V133: =O133 -> 1.11 | W133: =$Q$154-LN(V133) -> 2.61 | Y133: 3 | Z133: 0.10 | AA133: 0.90 | AB133: 2.00 | AC133: 18.00 | AD133: =AD132 -> 10.00 | AE133: 11.00 | AF133: 11.00
A134: 13 | B134: 0.60 | C134: 67.50 | D134: 15.00 | E134: 56.25 | F134: 11.25 | G134: 33.75 | H134: 18.75 | I134: 1.16 | J134: 65.25 | K134: 16.16 | M134: 4 | N134: 0.15 | O134: 1.67 | P134: 1.70 | Q134: 5.56 | R134: 0.15 | S134: 0.83 | T134: 1.00 | U134: =U133+$U$25 -> 0.3 | V134: 1.67 | W134: 2.20 | Y134: 4 | Z134: 0.15 | AA134: 0.85 | AB134: 3.00 | AC134: 17.00 | AD134: 10.00 | AE134: 11.50 | AF134: 11.50
A135: 14 | B135: 0.65 | C135: 73.13 | D135: 13.13 | E135: 56.25 | F135: 12.19 | G135: 36.56 | H135: 18.75 | I135: 1.24 | J135: 69.75 | K135: 15.12 | M135: 5 | N135: 0.20 | O135: 2.22 | P135: 1.60 | Q135: 5.56 | R135: 0.20 | S135: 1.11 | T135: 1.00 | U135: 0.4 | V135: 2.22 | W135: 1.92 | Y135: 5 | Z135: 0.20 | AA135: 0.80 | AB135: 4.00 | AC135: 16.00 | AD135: 10.00 | AE135: 12.00 | AF135: 12.00
A136: 15 | B136: 0.70 | C136: 78.75 | D136: 11.25 | E136: 56.25 | F136: 13.13 | G136: 39.38 | H136: 18.75 | I136: 1.32 | J136: 74.25 | K136: 14.20 | M136: 6 | N136: 0.25 | O136: 2.78 | P136: 1.50 | Q136: 5.56 | R136: 0.25 | S136: 1.39 | T136: 1.00 | U136: 0.5 | V136: 2.78 | W136: 1.69 | Y136: 6 | Z136: 0.25 | AA136: 0.75 | AB136: 5.00 | AC136: 15.00 | AD136: 10.00 | AE136: 12.50 | AF136: 12.50
A137: 16 | B137: 0.75 | C137: 84.38 | D137: 9.38 | E137: 56.25 | F137: 14.06 | G137: 42.19 | H137: 18.75 | I137: 1.4 | J137: 78.75 | K137: 13.39 | M137: 7 | N137: 0.30 | O137: 3.33 | P137: 1.40 | Q137: 5.56 | R137: 0.30 | S137: 1.67 | T137: 1.00 | U137: 0.6 | V137: 3.33 | W137: 1.51 | Y137: 7 | Z137: 0.30 | AA137: 0.70 | AB137: 6.00 | AC137: 14.00 | AD137: 10.00 | AE137: 13.00 | AF137: 13.00
A138: 17 | B138: 0.80 | C138: 90.00 | D138: 7.50 | E138: 56.25 | F138: 15.00 | G138: 45.00 | H138: 18.75 | I138: 1.48 | J138: 83.25 | K138: 12.67 | M138: 8 | N138: 0.35 | O138: 3.89 | P138: 1.30 | Q138: 5.56 | R138: 0.35 | S138: 1.94 | T138: 1.00 | U138: 0.7 | V138: 3.89 | W138: 1.36 | Y138: 8 | Z138: 0.35 | AA138: 0.65 | AB138: 7.00 | AC138: 13.00 | AD138: 10.00 | AE138: 13.50 | AF138: 13.50
A139: 18 | B139: 0.85 | C139: 95.63 | D139: 5.63 | E139: 56.25 | F139: 15.94 | G139: 47.81 | H139: 18.75 | I139: 1.56 | J139: 87.75 | K139: 12.02 | M139: 9 | N139: 0.40 | O139: 4.44 | P139: 1.20 | Q139: 5.56 | R139: 0.40 | S139: 2.22 | T139: 1.00 | U139: 0.8 | V139: 4.44 | W139: 1.22 | Y139: 9 | Z139: 0.40 | AA139: 0.60 | AB139: 8.00 | AC139: 12.00 | AD139: 10.00 | AE139: 14.00 | AF139: 14.00
A140: 19 | B140: 0.90 | C140: 101.25 | D140: 3.75 | E140: 56.25 | F140: 16.88 | G140: 50.63 | H140: 18.75 | I140: 1.64 | J140: 92.25 | K140: 11.43 | M140: 10 | N140: 0.45 | O140: 5.00 | P140: 1.10 | Q140: 5.56 | R140: 0.45 | S140: 2.50 | T140: 1.00 | U140: 0.9 | V140: 5.00 | W140: 1.11 | Y140: 10 | Z140: 0.45 | AA140: 0.55 | AB140: 9.00 | AC140: 11.00 | AD140: 10.00 | AE140: 14.50 | AF140: 14.50
A141: 20 | B141: 0.95 | C141: 106.88 | D141: 1.88 | E141: 56.25 | F141: 17.81 | G141: 53.44 | H141: 18.75 | I141: 1.72 | J141: 96.75 | K141: 10.90 | M141: 11 | N141: 0.50 | O141: 5.56 | P141: 1.00 | Q141: 5.56 | R141: 0.50 | S141: 2.78 | T141: 1.00 | U141: 1 | V141: 5.56 | W141: 1.00 | Y141: 11 | Z141: 0.50 | AA141: 0.50 | AB141: 10.00 | AC141: 10.00 | AD141: 10.00 | AE141: 15.00 | AF141: 15.00
A142: 21 | B142: 1.00 | C142: 112.50 | D142: 0 | E142: 56.25 | F142: 18.75 | G142: 56.25 | H142: 18.75 | I142: 1.8 | J142: 101.25 | K142: 10.42 | M142: 12 | N142: 0.55 | O142: 6.11 | P142: 0.90 | Q142: 5.56 | R142: 0.55 | S142: 3.06 | T142: 1.00 | U142: =U141+$U$25 -> 1.1 | V142: 6.11 | W142: 0.90 | Y142: 12 | Z142: 0.55 | AA142: 0.45 | AB142: 11.00 | AC142: 9.00 | AD142: 10.00 | AE142: 15.50 | AF142: 15.50
M143: 13 | N143: 0.60 | O143: 6.67 | P143: 0.80 | Q143: 5.56 | R143: 0.60 | S143: 3.33 | T143: 1.00 | U143: =U142+$U$25 -> 1.2 | V143: 6.67 | W143: 0.82 | Y143: 13 | Z143: 0.60 | AA143: 0.40 | AB143: 12.00 | AC143: 8.00 | AD143: 10.00 | AE143: 16.00 | AF143: 16.00
E144: x1 | F144: x2 | M144: 14 | N144: 0.65 | O144: 7.22 | P144: 0.70 | Q144: 5.56 | R144: 0.65 | S144: 3.61 | T144: 1.00 | U144: 1.3 | V144: 7.22 | W144: 0.74 | Y144: 14 | Z144: 0.65 | AA144: 0.35 | AB144: 13.00 | AC144: 7.00 | AD144: 10.00 | AE144: 16.50 | AF144: 16.50
D145: ALFA | E145: =E115 -> 0.5 | F145: =F115 -> 0.5 | M145: 15 | N145: 0.70 | O145: 7.78 | P145: 0.60 | Q145: 5.56 | R145: 0.70 | S145: 3.89 | T145: 1.00 | U145: 1.4 | V145: 7.78 | W145: 0.66 | Y145: 15 | Z145: 0.70 | AA145: 0.30 | AB145: 14.00 | AC145: 6.00 | AD145: 10.00 | AE145: 17.00 | AF145: 17.00
D146: X | E146: =E145*E148/E147 -> 56.3 | F146: =F145*E148/F147 -> 18.8 | M146: 16 | N146: 0.75 | O146: 8.33 | P146: 0.50 | Q146: 5.56 | R146: 0.75 | S146: 4.17 | T146: 1.00 | U146: 1.5 | V146: 8.33 | W146: 0.59 | Y146: 16 | Z146: 0.75 | AA146: 0.25 | AB146: 15.00 | AC146: 5.00 | AD146: 10.00 | AE146: 17.50 | AF146: 17.50
D147: P | E147: =E117 -> 1.0 | F147: =F117 -> 3.0 | M147: 17 | N147: 0.80 | O147: 8.89 | P147: 0.40 | Q147: 5.56 | R147: 0.80 | S147: 4.44 | T147: 1.00 | U147: 1.6 | V147: 8.89 | W147: 0.53 | Y147: 17 | Z147: 0.80 | AA147: 0.20 | AB147: 16.00 | AC147: 4.00 | AD147: 10.00 | AE147: 18.00 | AF147: 18.00
D148: M | E148: ='Cobb-Douglas CMCCE'!$C$6*0.75 -> 112.5 | G148: =(E146^(E145))*(F146^(F145)) -> 32.47595264 | M148: 18 | N148: 0.85 | O148: 9.44 | P148: 0.30 | Q148: 5.56 | R148: 0.85 | S148: 4.72 | T148: 1.00 | U148: 1.7 | V148: 9.44 | W148: 0.47 | Y148: 18 | Z148: 0.85 | AA148: 0.15 | AB148: 17.00 | AC148: 3.00 | AD148: 10.00 | AE148: 18.50 | AF148: 18.50
M149: 19 | N149: 0.90 | O149: 10.00 | P149: 0.20 | Q149: 5.56 | R149: 0.90 | S149: 5.00 | T149: 1.00 | U149: 1.8 | V149: 10.00 | W149: 0.41 | Y149: 19 | Z149: 0.90 | AA149: 0.10 | AB149: 18.00 | AC149: 2.00 | AD149: 10.00 | AE149: 19.00 | AF149: 19.00
A150: CURVA PRECIO-CONSUMO | C150: X1 | D150: X2 | E150: p1 | F150: p2 | I150: M | M150: 20 | N150: 0.95 | O150: 10.56 | P150: 0.10 | Q150: 5.56 | R150: 0.95 | S150: 5.28 | T150: 1.00 | U150: 1.9 | V150: 10.56 | W150: 0.36 | Y150: 20 | Z150: 0.95 | AA150: 0.05 | AB150: 19.00 | AC150: 1.00 | AD150: 10.00 | AE150: 19.50 | AF150: 19.50
A151: CURVA CERO | C151: =IF(G152=H152,C152,0) -> 75 | D151: =IF(G152=H152,D152,0) -> 25 | E151: =IF(H152=I152,E152,0) -> 0 | I151: =IF(G152=H152,I152,0) -> 150 | M151: 21 | N151: 1.00 | O151: 11.11 | P151: 0 | Q151: 5.56 | R151: 1.00 | S151: 5.56 | T151: 1.00 | U151: 2 | V151: 11.11 | W151: 0.31 | Y151: 21 | Z151: 1.00 | AA151: 0 | AB151: 20.00 | AC151: 0 | AD151: 10.00 | AE151: =AD151+(($AB$151-AD151)*Z151) -> 20.00 | AF151: 20.00
A152: CURVA UNO | C152: =E27 -> 75 | D152: =F27 -> 25 | E152: =0 -> 0 | F152: =MAX(D152:D156) -> 25 | G152: =C152+C153+C154 -> 225 | H152: =C152*3 -> 225 | I152: ='Cobb-Douglas CMCCE'!$C$6 -> 150
A153: CURVA DOS | C153: =E56 -> 75 | D153: =F56 -> 25 | E153: =MAX(C152:C156) -> 75 | F153: =MAX(D152:D156) -> 25 | I153: ='Cobb-Douglas CMCCE'!$C$7 -> 150 | O153: m | P153: =P25 -> 100.00 | Q153: k | U153: =1/10 -> 0.1 | AA153: m | AB153: =AB25-(AB57-AB25) -> 100
A154: CURVA TRES | C154: =E85 -> 75 | D154: =F85 -> 25 | I154: ='Cobb-Douglas CMCCE'!$C$8 -> 150 | O154: p1 | P154: =P26 -> 9 | Q154: =LN(P156)+P157 -> 2.71 | AA154: p1 | AB154: =AB122 -> 5
A155: CURVA CUATRO | C155: =IF(G152=H152,C152,E116) -> 75 | D155: =F116 -> 25 | I155: ='Cobb-Douglas CMCCE'!$C$8+('Cobb-Douglas CMCCE'!$C$8-'Cobb-Douglas CMCCE'!$C$7) -> 150 | O155: p2 | P155: =P123 -> 50 | AA155: p2 | AB155: =AB123 -> 5
O156: x1* | P156: =P155/P154 -> 5.56 | AA156: x1 | AB156: =AB153/(AB155+AB154) -> 10
O157: x2* | P157: =P153/P155-1 -> 1.00 | AA157: x2 | AB157: =AB156 -> 10
A158: X2LINE1 | C158: X2LINE2 | E158: X2LINE3 | G158: PONDERA
A159: =I152 -> 150 | B159: =$C$152*G159 -> 0 | C159: =I153 -> 150 | D159: =$C$153*G159 -> 0 | E159: =I154 -> 150 | F159: =$C$154*G159 -> 0 | G159: 0
A160: =A159 -> 150 | B160: 15 | C160: =C159 -> 150 | D160: 15 | E160: =E159 -> 150 | F160: 15 | G160: 0.2
A161: =A160 -> 150 | B161: 30 | C161: =C160 -> 150 | D161: 30 | E161: =E160 -> 150 | F161: 30 | G161: 0.4 | M161: CURVA INGRESO-CONSUMO | Y161: CURVA INGRESO-CONSUMO
A162: =A161 -> 150 | B162: 45 | C162: =C161 -> 150 | D162: 45 | E162: =E161 -> 150 | F162: 45 | G162: 0.6 | N162: 0 | O162: 1 | P162: 2 | Q162: 3 | R162: 4 | T162: =P25+P57+P89 -> 300.00 | U162: =P25*3 -> 300.00 | Z162: 0 | AA162: 1 | AB162: 2 | AC162: 3 | AD162: 4 | AF162: =AB25+AB57+AB89 -> 300.00 | AG162: =AB25*3 -> 300.00
A163: =A162 -> 150 | B163: 60 | C163: =C162 -> 150 | D163: 60 | E163: =E162 -> 150 | F163: 60 | G163: 0.8 | M163: x1* | N163: =IF(T162=U162,IF(T162=U162,O163,0),O163) -> 5.56 | O163: =P28 -> 5.56 | P163: =P60 -> 5.56 | Q163: =P92 -> 5.56 | R163: =P124 -> 5.56 | Y163: x1* | Z163: =IF(AF162=AG162,AA163,AB156) -> 10.00 | AA163: =AB28 -> 10.00 | AB163: =AB60 -> 10.00 | AC163: =AB92 -> 10.00 | AD163: =IF(AF162=AG162,Z163,AB124) -> 10.00
A164: =A163 -> 150 | B164: 75 | C164: =C163 -> 150 | D164: 75 | E164: =E163 -> 150 | F164: 75 | G164: 1 | M164: x2* | N164: =IF(T162=U162,P157,0) -> 1.00 | O164: =P29 -> 1.00 | P164: =P61 -> 1.00 | Q164: =P93 -> 1.00 | R164: =P125 -> 1.00 | Y164: x2* | Z164: =IF(AF162=AG162,AA164,AB157) -> 10.00 | AA164: =AB29 -> 10.00 | AB164: =AB61 -> 10.00 | AC164: =AB93 -> 10.00 | AD164: =IF(AF162=AG162,AA164,AB125) -> 10.00
A166: X2LINE1 | C166: X2LINE2 | E166: X2LINE3 | G166: PONDERA
A167: =C152 -> 75 | B167: =$I$152*G167 -> 0 | C167: =C153 -> 75 | D167: =$I$153*G167 -> 0 | E167: =C154 -> 75 | F167: =$I$154*G167 -> 0 | G167: 0 | M167: CURVA PRECIO-CONSUMO | O167: X1 | P167: X2 | Q167: p1 | R167: p2 | S167: M | Y167: CURVA PRECIO-CONSUMO | AA167: X1 | AB167: X2 | AC167: p1 | AD167: p2 | AE167: M
A168: =A167 -> 75 | B168: 30 | C168: =C167 -> 75 | D168: 30 | E168: =E167 -> 75 | F168: 30 | G168: 0.2 | M168: CURVA CERO | O168: =P156 -> 5.6 | P168: =P157 -> 1.0 | Q168: =P154 -> 9.0 | R168: =P155 -> 50.0 | S168: =IF(T162=U162,S169,0) -> 100.00 | Y168: CURVA CERO | AA168: =AB156 -> 10.0 | AB168: =AB157 -> 10.0 | AC168: =AB154 -> 5.0 | AD168: =AB155 -> 5.0 | AE168: =AB153 -> 100
A169: =A168 -> 75 | B169: 60 | C169: =C168 -> 75 | D169: 60 | E169: =E168 -> 75 | F169: 60 | G169: 0.4 | M169: CURVA UNO | O169: =P28 -> 5.6 | P169: =P29 -> 1.0 | Q169: =P26 -> 9.0 | R169: =P27 -> 50.0 | S169: =P25 -> 100.00 | Y169: CURVA UNO | AA169: =AB28 -> 10.0 | AB169: =AB29 -> 10.0 | AC169: =AB26 -> 5.0 | AD169: =AB27 -> 5.0 | AE169: =AB25 -> 100
A170: =A169 -> 75 | B170: 90 | C170: =C169 -> 75 | D170: 90 | E170: =E169 -> 75 | F170: 90 | G170: 0.6 | M170: CURVA DOS | O170: =P60 -> 5.6 | P170: =P61 -> 1.0 | Q170: =P58 -> 9.0 | R170: =P59 -> 50.0 | S170: =P57 -> 100.00 | Y170: CURVA DOS | AA170: =AB60 -> 10.0 | AB170: =AB61 -> 10.0 | AC170: =AB58 -> 5.0 | AD170: =AB59 -> 5.0 | AE170: =AB57 -> 100
A171: =A170 -> 75 | B171: 120 | C171: =C170 -> 75 | D171: 120 | E171: =E170 -> 75 | F171: 120 | G171: 0.8 | M171: CURVA TRES | O171: =P92 -> 5.6 | P171: =P93 -> 1.0 | Q171: =P90 -> 9.0 | R171: =P91 -> 50.0 | S171: =P89 -> 100.00 | Y171: CURVA TRES | AA171: =AB92 -> 10.0 | AB171: =AB93 -> 10.0 | AC171: =AB90 -> 5.0 | AD171: =AB91 -> 5.0 | AE171: =AB89 -> 100
A172: =A171 -> 75 | B172: 150 | C172: =C171 -> 75 | D172: 150 | E172: =E171 -> 75 | F172: 150 | G172: 1 | M172: CURVA CUATRO | O172: =P124 -> 5.6 | P172: =P125 -> 1.0 | Q172: =P122 -> 9.0 | R172: =P123 -> 50.0 | S172: =P121 -> 100.00 | Y172: CURVA CUATRO | AA172: =AB124 -> 10.0 | AB172: =AB125 -> 10.0 | AC172: =AB122 -> 5.0 | AD172: =AB123 -> 5.0 | AE172: =AB121 -> 100
E174: =(I154-I152)/(C154-C152) -> 
M175: X2LINE1 | O175: X2LINE2 | Q175: X2LINE3 | S175: PONDERA | Y175: X2LINE1 | AA175: X2LINE2 | AC175: X2LINE3 | AE175: PONDERA
M176: =S169 -> 100.00 | N176: =$O$169*S176 -> 0 | O176: =S170 -> 100.00 | P176: =$O$170*S176 -> 0 | Q176: =S171 -> 100.00 | R176: =$O$171*S176 -> 0 | S176: 0 | Y176: =AE169 -> 100 | Z176: =$AA$169*AE176 -> 0 | AA176: =AE170 -> 100 | AB176: =$AA$170*AE176 -> 0 | AC176: =AE171 -> 100 | AD176: =$AA$171*AE176 -> 0 | AE176: 0
M177: =M176 -> 100 | N177: 1.111111111 | O177: =O176 -> 100 | P177: 1.111111111 | Q177: =Q176 -> 100 | R177: 1.111111111 | S177: 0.2 | Y177: =Y176 -> 100 | Z177: 2 | AA177: =AA176 -> 100 | AB177: 2 | AC177: =AC176 -> 100 | AD177: 2 | AE177: 0.2
M178: =M177 -> 100 | N178: 2.222222222 | O178: =O177 -> 100 | P178: 2.222222222 | Q178: =Q177 -> 100 | R178: 2.222222222 | S178: 0.4 | Y178: =Y177 -> 100 | Z178: 4 | AA178: =AA177 -> 100 | AB178: 4 | AC178: =AC177 -> 100 | AD178: 4 | AE178: 0.4
M179: =M178 -> 100 | N179: 3.333333333 | O179: =O178 -> 100 | P179: 3.333333333 | Q179: =Q178 -> 100 | R179: 3.333333333 | S179: 0.6 | Y179: =Y178 -> 100 | Z179: 6 | AA179: =AA178 -> 100 | AB179: 6 | AC179: =AC178 -> 100 | AD179: 6 | AE179: 0.6
M180: =M179 -> 100 | N180: 4.444444444 | O180: =O179 -> 100 | P180: 4.444444444 | Q180: =Q179 -> 100 | R180: 4.444444444 | S180: 0.8 | Y180: =Y179 -> 100 | Z180: 8 | AA180: =AA179 -> 100 | AB180: 8 | AC180: =AC179 -> 100 | AD180: 8 | AE180: 0.8
M181: =M180 -> 100 | N181: 5.555555556 | O181: =O180 -> 100 | P181: 5.555555556 | Q181: =Q180 -> 100 | R181: 5.555555556 | S181: 1 | Y181: =Y180 -> 100 | Z181: 10 | AA181: =AA180 -> 100 | AB181: 10 | AC181: =AC180 -> 100 | AD181: 10 | AE181: 1
M183: X2LINE1 | O183: X2LINE2 | Q183: X2LINE3 | S183: PONDERA | Y183: X2LINE1 | AA183: X2LINE2 | AC183: X2LINE3 | AE183: PONDERA
M184: =O169 -> 5.555555556 | N184: =$S$169*S184 -> 0 | O184: =O170 -> 5.555555556 | P184: =$S$170*S184 -> 0 | Q184: =O171 -> 5.555555556 | R184: =$S$171*S184 -> 0 | S184: 0 | Y184: =AA169 -> 10 | Z184: =$AE$169*AE184 -> 0 | AA184: =AA170 -> 10 | AB184: =$AE$170*AE184 -> 0 | AC184: =AA171 -> 10 | AD184: =$AE$171*AE184 -> 0 | AE184: 0
M185: =M184 -> 5.555555556 | N185: 20.00 | O185: =O184 -> 5.555555556 | P185: 20.00 | Q185: =Q184 -> 5.555555556 | R185: 20.00 | S185: 0.2 | Y185: =Y184 -> 10 | Z185: 20 | AA185: =AA184 -> 10 | AB185: 20 | AC185: =AC184 -> 10 | AD185: 20 | AE185: 0.2
M186: =M185 -> 5.555555556 | N186: 40.00 | O186: =O185 -> 5.555555556 | P186: 40.00 | Q186: =Q185 -> 5.555555556 | R186: 40.00 | S186: 0.4 | Y186: =Y185 -> 10 | Z186: 40 | AA186: =AA185 -> 10 | AB186: 40 | AC186: =AC185 -> 10 | AD186: 40 | AE186: 0.4
M187: =M186 -> 5.555555556 | N187: 60.00 | O187: =O186 -> 5.555555556 | P187: 60.00 | Q187: =Q186 -> 5.555555556 | R187: 60.00 | S187: 0.6 | Y187: =Y186 -> 10 | Z187: 60 | AA187: =AA186 -> 10 | AB187: 60 | AC187: =AC186 -> 10 | AD187: 60 | AE187: 0.6
M188: =M187 -> 5.555555556 | N188: 80.00 | O188: =O187 -> 5.555555556 | P188: 80.00 | Q188: =Q187 -> 5.555555556 | R188: 80.00 | S188: 0.8 | Y188: =Y187 -> 10 | Z188: 80 | AA188: =AA187 -> 10 | AB188: 80 | AC188: =AC187 -> 10 | AD188: 80 | AE188: 0.8
M189: =M188 -> 5.555555556 | N189: 100.00 | O189: =O188 -> 5.555555556 | P189: 100.00 | Q189: =Q188 -> 5.555555556 | R189: 100.00 | S189: 1 | Y189: =Y188 -> 10 | Z189: 100 | AA189: =AA188 -> 10 | AB189: 100 | AC189: =AC188 -> 10 | AD189: 100 | AE189: 1

Sheet Cobb-Douglas CMCCE (hidden)
A1: CURVA INGRESO-CONSUMO
A3: COBB-DOUGLAS
C4: RECTA PRESUPUESTAL
C5: m | D5: p1 | E5: x1 | F5: p2 | G5: x2
B6: A | C6: 150.0 | D6: 1.0 | E6: =F13 -> 75.0 | F6: 3.0 | G6: =C13 -> 25.0
B7: B | C7: =C6 -> 150.0 | D7: 1.0 | E7: =F14 -> 75.0 | F7: =$F$6 -> 3.0 | G7: =C14 -> 25.0
B8: C | C8: =C6 -> 150.0 | D8: 1.0 | E8: =F15 -> 75.0 | F8: =$F$6 -> 3.0 | G8: =C15 -> 25.0
C9: Inserte los datos correspondientes
C11: PARÁMETROS DE LA RECTA PRESUPUESTAL
C12: x2 | D12: b0 | E12: b1 | F12: x1
B13: A | C13: =D13+(E13*F13) -> 25.0 | D13: =C6/F6 -> 50.0 | E13: =D6/F6*-1 -> -0.3 | F13: ='Oculto CMCCE'!E27 -> 75.0
B14: B | C14: =D14+(E14*F14) -> 25.0 | D14: =C7/F7 -> 50.0 | E14: =D7/F7*-1 -> -0.3 | F14: ='Oculto CMCCE'!E56 -> 75.0
B15: C | C15: =D15+(E15*F15) -> 25.0 | D15: =C8/F8 -> 50.0 | E15: =D8/F8*-1 -> -0.3 | F15: ='Oculto CMCCE'!E85 -> 75.0
E17: A | F17: B | G17: C
C18: Máxima cantidad de x1 | E18: =C6/D6 -> 150.0 | F18: =C7/D7 -> 150.0 | G18: =C8/D8 -> 150.0
C19: Máxima cantidad de x2 | E19: =C6/F6 -> 50.0 | F19: =C7/F7 -> 50.0 | G19: =C8/F8 -> 50.0
C20: Precio relativo (<0) | E20: =(D6/F6)*(-1) -> -0.3 | F20: =(D7/F7)*(-1) -> -0.3 | G20: =(D8/F8)*(-1) -> -0.3
C22: PARÁMETROS DE FUNCIÓN COBB-DOUGLAS
C23: k | D23: a | E23: x1* | F23: 1-a | G23: x2*
B24: A | C24: ='Oculto CMCCE'!F28 -> 43.3 | D24: 0.5 | E24: ='Oculto CMCCE'!$E$27 -> 75.0 | F24: =1-D24 -> 0.5 | G24: ='Oculto CMCCE'!F27 -> 25.0
B25: B | C25: ='Oculto CMCCE'!F57 -> 43.3 | D25: =D24 -> 0.5 | E25: ='Oculto CMCCE'!$E$56 -> 75.0 | F25: =1-D25 -> 0.5 | G25: ='Oculto CMCCE'!$F$56 -> 25.0
B26: C | C26: ='Oculto CMCCE'!F86 -> 43.3 | D26: =D25 -> 0.5 | E26: ='Oculto CMCCE'!$E$85 -> 75.0 | F26: =1-D26 -> 0.5 | G26: ='Oculto CMCCE'!$F$85 -> 25.0
C28: Pendiente CdeE
C29: =D6/D24 -> 2.0
C31: Títulos
C32: Resultados
C33: Insertar datos
C34: Cantidad de equilibrio

Sheet CompPerf CMCCE (hidden)
A1: CURVA INGRESO-CONSUMO
A3: COMPLEMENTOS PERFECTOS
C4: RECTA PRESUPUESTAL
C5: m | D5: p1 | E5: x1 | F5: p2 | G5: x2
B6: A | C6: 100.0 | D6: 5.0 | E6: =D25 -> 10.0 | F6: 5.0 | G6: =E25 -> 10.0
B7: B | C7: =C6 -> 100.0 | D7: 5.0 | E7: =D26 -> 10.0 | F7: =F6 -> 5.0 | G7: =E26 -> 10.0
B8: C | C8: =C6 -> 100.0 | D8: 5.0 | E8: =D27 -> 10.0 | F8: =F7 -> 5.0 | G8: =E27 -> 10.0
C9: Inserte los datos correspondientes
C11: PARÁMETROS DE LA RECTA PRESUPUESTAL
C12: x2 | D12: b0 | E12: b1 | F12: x1
B13: A | C13: =D13+(E13*F13) -> 10.0 | D13: =C6/F6 -> 20.0 | E13: =D6/F6*-1 -> (1.0) | F13: =E6 -> 10.0
B14: B | C14: =E26 -> 10.0 | D14: =C7/F7 -> 20.0 | E14: =D7/F7*-1 -> (1.0) | F14: =D26 -> 10.0
B15: C | C15: =E27 -> 10.0 | D15: =C8/F8 -> 20.0 | E15: =D8/F8*-1 -> (1.0) | F15: =D27 -> 10.0
E18: A | F18: B | G18: C
C19: Máxima cantidad de x1 | E19: =C6/D6 -> 20.0 | F19: =C7/D7 -> 20.0 | G19: =C8/D8 -> 20.0
C20: Máxima cantidad de x2 | E20: =C6/F6 -> 20.0 | F20: =C7/F7 -> 20.0 | G20: =C8/F8 -> 20.0
C21: Precio relativo (<0) | E21: =E13 -> (1.0) | F21: =E14 -> (1.0) | G21: =E15 -> (1.0)
C23: PARÁMETROS DE LA CURVA DE INDIFERENCIA
C24: k | D24: x1* | E24: x2*
B25: A | C25: =MAX('Oculto CMCCE'!AB23,'Oculto CMCCE'!AC3) -> 20.0 | D25: ='Oculto CMCCE'!AB28 -> 10.0 | E25: ='Oculto CMCCE'!AB29 -> 10.0
B26: B | C26: =MAX('Oculto CMCCE'!AB55,'Oculto CMCCE'!AC55) -> 20.0 | D26: ='Oculto CMCCE'!AB60 -> 10.0 | E26: ='Oculto CMCCE'!AB61 -> 10.0
B27: C | C27: =MAX('Oculto CMCCE'!AB87,'Oculto CMCCE'!AC87) -> 20.0 | D27: ='Oculto CMCCE'!AB92 -> 10.0 | E27: ='Oculto CMCCE'!AB93 -> 10.0
C29: Pendiente CdeE
C30: =C7/C25 -> 5.0
C32: Títulos
C33: Resultados
C34: Insertar datos
C35: Cantidad de equilibrio

Sheet Regulares CMCCE (hidden)
A1: CURVA INGRESO-CONSUMO
A3: CUASILINEALES
B4: RECTA PRESUPUESTAL
C5: m | D5: p1 | E5: x1 | F5: p2 | G5: x2
B6: A | C6: 100.0 | D6: 9.0 | E6: =D24 -> 5.6 | F6: 50.0 | G6: =E24 -> 1.0
B7: B | C7: =C6 -> 100.0 | D7: =D6 -> 9.0 | E7: =D25 -> 5.6 | F7: =F6 -> 50.0 | G7: =E25 -> 1.0
B8: C | C8: =C6 -> 100.0 | D8: =D7 -> 9.0 | E8: =D26 -> 5.6 | F8: =F7 -> 50.0 | G8: =E26 -> 1.0
C9: Inserte los datos correspondientes
C11: PARÁMETROS DE LA RECTA PRESUPUESTAL
C12: x2 | D12: b0 | E12: b1 | F12: x1
B13: A | C13: =D13+(E13*F13) -> 1.0 | D13: =C6/F6 -> 2.0 | E13: =D6/F6*-1 -> -0.2 | F13: =E6 -> 5.6
B14: B | C14: =D14+(E14*F14) -> 1.0 | D14: =C7/F7 -> 2.0 | E14: =D7/F7*-1 -> -0.2 | F14: =E7 -> 5.6
B15: C | C15: =D15+(E15*F15) -> 1.0 | D15: =C8/F8 -> 2.0 | E15: =D8/F8*-1 -> -0.2 | F15: =E8 -> 5.6
D17: A | E17: B | F17: C
B18: Máxima cantidad de x1 | D18: =C6/D6 -> 11.1 | E18: =C7/D7 -> 11.1 | F18: =C8/D8 -> 11.1
B19: Máxima cantidad de x2 | D19: =C6/F6 -> 2.0 | E19: =C7/F7 -> 2.0 | F19: =C8/F8 -> 2.0
B20: Precio relativo (<0) | D20: =D6/F6*(-1) -> -0.2 | E20: =(D7/F7)*(-1) -> -0.2 | F20: =(D8/F8)*(-1) -> -0.2
C22: PARÁMETROS DE FUNCIÓN REGULAR
C23: v | D23: x1* | E23: x2*
B24: A | C24: ='Oculto CMCCE'!Q26 -> 2.7 | D24: ='Oculto CMCCE'!V13 -> 5.6 | E24: ='Oculto CMCCE'!P29 -> 1.0
B25: B | C25: ='Oculto CMCCE'!Q58 -> 2.7 | D25: ='Oculto CMCCE'!P60 -> 5.6 | E25: ='Oculto CMCCE'!P61 -> 1.0
B26: C | C26: ='Oculto CMCCE'!Q90 -> 2.7 | D26: ='Oculto CMCCE'!P92 -> 5.6 | E26: ='Oculto CMCCE'!P93 -> 1.0
B28: Pendiente CdeE
B29: Indefinida
B31: Títulos
B32: Resultados
B33: Insertar datos
B34: Cantidad de equilibrio
